SERVICE_CODE,ORGANISATION_UNIT,EXPENDITURE_CATEGORY,EXPENDITURE_DESCRIPTION,EXPENDITURE_CODE,NARRATIVE,DATE,TRANSATION_CODE,NET_AMOUNT,SUPPLIER_CODE,SUPPLIER_NAME,FROM_DATE,TO_DATE,FINANCIAL_PERIOD_YEAR
,LEE VALLEY MARINA SPRINGFIELD,EMPLOYEES,APPOINTMENT EXPENSES,1301,P113461-SERVICE-RECRUITMENT BANNER MARINAS,16/8/2021 00:00:00,251636,38.86,MA0167,MARTIN DANNELL & CO LTD,26/7/2021 00:00:00,29/8/2021 00:00:00,P05-2022
,LEE VALLEY MARINA SPRINGFIELD,EMPLOYEES,APPOINTMENT EXPENSES,1301,P113461-SERVICE-RECRUITMENT BANNER MARINAS,24/8/2021 00:00:00,251637,38.86,MA0167,MARTIN DANNELL & CO LTD,26/7/2021 00:00:00,29/8/2021 00:00:00,P05-2022
,LEE VALLEY MARINA STANSTEAD,EMPLOYEES,APPOINTMENT EXPENSES,1301,P113461-SERVICE-RECRUITMENT BANNER MARINAS,16/8/2021 00:00:00,251636,38.86,MA0167,MARTIN DANNELL & CO LTD,26/7/2021 00:00:00,29/8/2021 00:00:00,P05-2022
,LEE VALLEY MARINA STANSTEAD,EMPLOYEES,APPOINTMENT EXPENSES,1301,P113461-SERVICE-RECRUITMENT BANNER MARINAS,24/8/2021 00:00:00,251637,38.86,MA0167,MARTIN DANNELL & CO LTD,26/7/2021 00:00:00,29/8/2021 00:00:00,P05-2022
P&V,SOUTH AREA RANGERS,EMPLOYEES,APPOINTMENT EXPENSES,1301,P113510-SERVICE-RANGER VACANCY ADVERT COSTS,16/8/2021 00:00:00,251614,312.55,SA0133,SOWERBY ADVERTISING AND COMMUNICATIONS,26/7/2021 00:00:00,29/8/2021 00:00:00,P05-2022
P&V,RIVER LEE COUNTRY PARK,EMPLOYEES,APPOINTMENT EXPENSES,1301,P113510-SERVICE-RANGER VACANCY ADVERT COSTS,16/8/2021 00:00:00,251614,312.55,SA0133,SOWERBY ADVERTISING AND COMMUNICATIONS,26/7/2021 00:00:00,29/8/2021 00:00:00,P05-2022
,LV HOCKEY AND TENNIS CENTRE,EMPLOYEES,APPOINTMENT EXPENSES,1301,P113276-SERVICE-HEAD TENNIS COACH RECRUITMENT ADVERT,08/09/2021 00:00,251058,180,SA0133,SOWERBY ADVERTISING AND COMMUNICATIONS,26/7/2021 00:00:00,29/8/2021 00:00:00,P05-2022
R&B,CORPORATE TRAINING,EMPLOYEES,TRAINING EXPENSES,1305,P113348-SERVICE-FAAW 26-28 APRIL 21,16/8/2021 00:00:00,251408,1575,RI0181,RD HEALTH & SAFETY LIMITED,26/7/2021 00:00:00,29/8/2021 00:00:00,P05-2022
R&B,CORPORATE TRAINING,EMPLOYEES,TRAINING EXPENSES,1305,P113349-SERVICE-FIRE MARSHALL TRAINING 19/05/2021,16/8/2021 00:00:00,251409,595,RI0181,RD HEALTH & SAFETY LIMITED,26/7/2021 00:00:00,29/8/2021 00:00:00,P05-2022
R&B,CORPORATE TRAINING,EMPLOYEES,TRAINING EXPENSES,1305,P113351-SERVICE-LEGIONELLA AWARENESS TRAINING 01/06/2021,16/8/2021 00:00:00,251410,275,RI0181,RD HEALTH & SAFETY LIMITED,26/7/2021 00:00:00,29/8/2021 00:00:00,P05-2022
R&B,CORPORATE TRAINING,EMPLOYEES,TRAINING EXPENSES,1305,P113350-SERVICE-EFAW TRAINING 26/05/2021,16/8/2021 00:00:00,251411,595,RI0181,RD HEALTH & SAFETY LIMITED,26/7/2021 00:00:00,29/8/2021 00:00:00,P05-2022
R&B,CORPORATE TRAINING,EMPLOYEES,TRAINING EXPENSES,1305,P113353-SERVICE-FAAW TRAINING 2-4/08/2021,16/8/2021 00:00:00,251412,1575,RI0181,RD HEALTH & SAFETY LIMITED,26/7/2021 00:00:00,29/8/2021 00:00:00,P05-2022
R&B,CORPORATE TRAINING,EMPLOYEES,TRAINING EXPENSES,1305,P113352-SERVICE-MANUAL HANDLING TRAINING 22/06/2021,16/8/2021 00:00:00,251413,275,RI0181,RD HEALTH & SAFETY LIMITED,26/7/2021 00:00:00,29/8/2021 00:00:00,P05-2022
P&V,LEE VALLEY FARM HOLYFIELDHALL,EMPLOYEES,TRAINING EXPENSES,1305,"P113293-SERVICE-Jennifer Painter Co-Invest for Levy, Due to I",29/7/2021 00:00:00,250740,185,WR0023,WRITTLE COLLEGE,26/7/2021 00:00:00,29/8/2021 00:00:00,P05-2022
P&V,LEE VALLEY FARM HOLYFIELDHALL,EMPLOYEES,TRAINING EXPENSES,1305,P113489-SERVICE-Rhys Benton Apprenticeship,08/10/2021 00:00,250742,400,WR0023,WRITTLE COLLEGE,26/7/2021 00:00:00,29/8/2021 00:00:00,P05-2022
P&V,RIVER LEE COUNTRY PARK,EMPLOYEES,TRAINING EXPENSES,1305,P113333-SERVICE-Powerboat Training x2 - Level 1,08/09/2021 00:00,251044,140,HE0379,HERTFORD COUNTY YACHT CLUB,26/7/2021 00:00:00,29/8/2021 00:00:00,P05-2022
,LEE VALLEY WHITE WATER CENTRE,EMPLOYEES,TRAINING EXPENSES,1305,P113304-SERVICE-Raft Guides Assessments,08/03/2021 00:00,250987,600,BO0584,BOB TIMMS CONSULTING,26/7/2021 00:00:00,29/8/2021 00:00:00,P05-2022
R&B,NON DISTRIBUTED COSTS,EMPLOYEES,SUPERANNUATION ADDED YEARS,1310,LONDON PENSIONS FUND AUTHORITY,08/02/2021 00:00,251000,5668.87,LO0031,LONDON PENSIONS FUND AUTHORITY,26/7/2021 00:00:00,29/8/2021 00:00:00,P05-2022
,LEE VALLEY MARINA SPRINGFIELD,EMPLOYEES,CRB CHECKS,1330,ADMIN FEE,08/09/2021 00:00,251094,18,DD0119,DUE DILIGENCE CHECKING LIMITED,26/7/2021 00:00:00,29/8/2021 00:00:00,P05-2022
,LEE VALLEY MARINA SPRINGFIELD,EMPLOYEES,CRB CHECKS,1330,DBS CHECK,08/09/2021 00:00,251094,23,DD0119,DUE DILIGENCE CHECKING LIMITED,26/7/2021 00:00:00,29/8/2021 00:00:00,P05-2022
,LEE VALLEY CARAVAN PARK,EMPLOYEES,CRB CHECKS,1330,DBS CHECKS,08/09/2021 00:00,251094,23,DD0119,DUE DILIGENCE CHECKING LIMITED,26/7/2021 00:00:00,29/8/2021 00:00:00,P05-2022
,LEE VALLEY CARAVAN PARK,EMPLOYEES,CRB CHECKS,1330,ADMIN FEE,08/09/2021 00:00,251094,18,DD0119,DUE DILIGENCE CHECKING LIMITED,26/7/2021 00:00:00,29/8/2021 00:00:00,P05-2022
,LEE VALLEY VELOPARK,EMPLOYEES,CRB CHECKS,1330,ADMIN FEE,08/09/2021 00:00,251094,18,DD0119,DUE DILIGENCE CHECKING LIMITED,26/7/2021 00:00:00,29/8/2021 00:00:00,P05-2022
,LEE VALLEY VELOPARK,EMPLOYEES,CRB CHECKS,1330,DBS CHECKS,08/09/2021 00:00,251094,40,DD0119,DUE DILIGENCE CHECKING LIMITED,26/7/2021 00:00:00,29/8/2021 00:00:00,P05-2022
,LEE VALLEY RIDING CENTRE,EMPLOYEES,CRB CHECKS,1330,DBS CHECKS,08/09/2021 00:00,251094,120,DD0119,DUE DILIGENCE CHECKING LIMITED,26/7/2021 00:00:00,29/8/2021 00:00:00,P05-2022
,LEE VALLEY RIDING CENTRE,EMPLOYEES,CRB CHECKS,1330,ADMIN FEE,08/09/2021 00:00,251094,72,DD0119,DUE DILIGENCE CHECKING LIMITED,26/7/2021 00:00:00,29/8/2021 00:00:00,P05-2022
,LV LEISURE CENTRE CAMPSITE,EMPLOYEES,CRB CHECKS,1330,DBS CHECKS,08/09/2021 00:00,251094,94,DD0119,DUE DILIGENCE CHECKING LIMITED,26/7/2021 00:00:00,29/8/2021 00:00:00,P05-2022
,LV LEISURE CENTRE CAMPSITE,EMPLOYEES,CRB CHECKS,1330,ADMIN FEE,08/09/2021 00:00,251094,72,DD0119,DUE DILIGENCE CHECKING LIMITED,26/7/2021 00:00:00,29/8/2021 00:00:00,P05-2022
,LV WHITE WATER CATERING,EMPLOYEES,CRB CHECKS,1330,DBS CHECKS,08/09/2021 00:00,251094,23,DD0119,DUE DILIGENCE CHECKING LIMITED,26/7/2021 00:00:00,29/8/2021 00:00:00,P05-2022
,LV WHITE WATER CATERING,EMPLOYEES,CRB CHECKS,1330,ADMIN FEE,08/09/2021 00:00,251094,18,DD0119,DUE DILIGENCE CHECKING LIMITED,26/7/2021 00:00:00,29/8/2021 00:00:00,P05-2022
R&B,CORPORATE TRAINING,EMPLOYEES,APPRENTICE LEVY,1390,HMRC,16/8/2021 00:00:00,251588,1913,HM0368,HMRC,26/7/2021 00:00:00,29/8/2021 00:00:00,P05-2022
CEO,LVLC SERVICE CHARGE,PREMISES RELATED EXPENDITURE,SCHEDULED GROUND MAINTENANCE,2111,P113014-SERVICE-Rear of Odeon - Litter Pick & Vegetation Clea,08/09/2021 00:00,250771,644.94,GL0214,GLENDALE GROUNDS MANAGEMENT LIMITED,26/7/2021 00:00:00,29/8/2021 00:00:00,P05-2022
CEO,LVLC SERVICE CHARGE,PREMISES RELATED EXPENDITURE,SCHEDULED GROUND MAINTENANCE,2111,P113015-SERVICE-Picketts Lock Central Island - Vegetation Cle,08/09/2021 00:00,250772,795.97,GL0214,GLENDALE GROUNDS MANAGEMENT LIMITED,26/7/2021 00:00:00,29/8/2021 00:00:00,P05-2022
CEO,LVLC SERVICE CHARGE,PREMISES RELATED EXPENDITURE,SCHEDULED GROUND MAINTENANCE,2111,GLENDALE GROUNDS MANAGEMENT LI,25/8/2021 00:00:00,251453,2299.79,GL0214,GLENDALE GROUNDS MANAGEMENT LIMITED,26/7/2021 00:00:00,29/8/2021 00:00:00,P05-2022
CEO,LVLC SERVICE CHARGE,PREMISES RELATED EXPENDITURE,SCHEDULED GROUND MAINTENANCE,2111,GLENDALE GROUNDS MANAGEMENT LI,25/8/2021 00:00:00,251453,101.35,GL0214,GLENDALE GROUNDS MANAGEMENT LIMITED,26/7/2021 00:00:00,29/8/2021 00:00:00,P05-2022
P&V,MYDDELTON HOUSE,PREMISES RELATED EXPENDITURE,CONTRACT CLEANING,2120,P112094-SERVICE-Myddelton House Cleaning Contract,08/09/2021 00:00,250846,1659.97,BR0632,BRITANNIA SERVICES GROUP LTD,26/7/2021 00:00:00,29/8/2021 00:00:00,P05-2022
P&V,MYDDELTON HOUSE,PREMISES RELATED EXPENDITURE,CONTRACT CLEANING,2120,P112094-SERVICE-Myddelton House Cleaning Contract,29/8/2021 00:00:00,252030,2291.64,BR0632,BRITANNIA SERVICES GROUP LTD,26/7/2021 00:00:00,29/8/2021 00:00:00,P05-2022
,LEE VALLEY CAMPSITE,PREMISES RELATED EXPENDITURE,CONTRACT CLEANING,2120,P113451-SERVICE-Cleaning July 21,08/09/2021 00:00,251282,2353,LI0305,LIMPIAR CLEANING,26/7/2021 00:00:00,29/8/2021 00:00:00,P05-2022
,LEE VALLEY CARAVAN PARK,PREMISES RELATED EXPENDITURE,CONTRACT CLEANING,2120,P113310-SERVICE-Monthly hygiene check,08/09/2021 00:00,250781,90.39,IN0012,INITIAL WASHROOM HYGIENE,26/7/2021 00:00:00,29/8/2021 00:00:00,P05-2022
,LEE VALLEY CARAVAN PARK,PREMISES RELATED EXPENDITURE,CONTRACT CLEANING,2120,P113407-SERVICE-Monthly laundry,08/09/2021 00:00,250992,483.69,JO0168,JOHNSON STALBRIDGE LINEN SERVICES,26/7/2021 00:00:00,29/8/2021 00:00:00,P05-2022
,LEE VALLEY CARAVAN PARK,PREMISES RELATED EXPENDITURE,CONTRACT CLEANING,2120,P113400-SERVICE-Monthly cleaning,08/09/2021 00:00,251283,3673,LI0305,LIMPIAR CLEANING,26/7/2021 00:00:00,29/8/2021 00:00:00,P05-2022
P&V,NORTH AREA RANGERS,PREMISES RELATED EXPENDITURE,CONTRACT CLEANING,2120,GLENDALE GROUNDS MANAGEMENT LI,25/8/2021 00:00:00,251453,509.09,GL0214,GLENDALE GROUNDS MANAGEMENT LIMITED,26/7/2021 00:00:00,29/8/2021 00:00:00,P05-2022
P&V,GUNPOWDER PARK,PREMISES RELATED EXPENDITURE,CONTRACT CLEANING,2120,GLENDALE GROUNDS MANAGEMENT LI,25/8/2021 00:00:00,251453,509.09,GL0214,GLENDALE GROUNDS MANAGEMENT LIMITED,26/7/2021 00:00:00,29/8/2021 00:00:00,P05-2022
P&V,RIVER LEE COUNTRY PARK,PREMISES RELATED EXPENDITURE,CONTRACT CLEANING,2120,GLENDALE GROUNDS MANAGEMENT LI,25/8/2021 00:00:00,251453,1018.19,GL0214,GLENDALE GROUNDS MANAGEMENT LIMITED,26/7/2021 00:00:00,29/8/2021 00:00:00,P05-2022
,LEE VALLEY VELOPARK,PREMISES RELATED EXPENDITURE,CONTRACT CLEANING,2120,P113499-SERVICE-Cleaning WE 11 & 18 Jul,08/11/2021 00:00,250797,637.2,CA0498,CASNA GROUP,26/7/2021 00:00:00,29/8/2021 00:00:00,P05-2022
,LEE VALLEY VELOPARK,PREMISES RELATED EXPENDITURE,CONTRACT CLEANING,2120,P113499-SERVICE-Cleaning WE 11 & 18 Jul,08/11/2021 00:00,250832,637.2,CA0498,CASNA GROUP,26/7/2021 00:00:00,29/8/2021 00:00:00,P05-2022
,LEE VALLEY VELOPARK,PREMISES RELATED EXPENDITURE,CONTRACT CLEANING,2120,P112746-SERVICE-Full Site Window Cleaning,26/8/2021 00:00:00,250986,712.13,ELI0362,ELITE SUPPORT SERVICES (LONDON) LIMITED,26/7/2021 00:00:00,29/8/2021 00:00:00,P05-2022
,LV LEISURE CENTRE CAMPSITE,PREMISES RELATED EXPENDITURE,CONTRACT CLEANING,2120,P113434-SERVICE-Cleaning,08/09/2021 00:00,251303,2483,LI0305,LIMPIAR CLEANING,26/7/2021 00:00:00,29/8/2021 00:00:00,P05-2022
,LV LEISURE CENTRE CAMPSITE,PREMISES RELATED EXPENDITURE,CONTRACT CLEANING,2120,P113613-SERVICE-Contract cleaning,25/8/2021 00:00:00,251587,300,LI0305,LIMPIAR CLEANING,26/7/2021 00:00:00,29/8/2021 00:00:00,P05-2022
,LEE VALLEY CAMPSITE,PREMISES RELATED EXPENDITURE,CLEANING CONTRACT,2121,P113083-SERVICE-Cleaning Supplies,16/8/2021 00:00:00,250604,30.48,HY0043,HYGIENE SYSTEMS LTD,26/7/2021 00:00:00,29/8/2021 00:00:00,P05-2022
,LEE VALLEY CAMPSITE,PREMISES RELATED EXPENDITURE,CLEANING CONTRACT,2121,P113083-SERVICE-Cleaning Supplies,08/02/2021 00:00,251005,5.38,HY0043,HYGIENE SYSTEMS LTD,26/7/2021 00:00:00,29/8/2021 00:00:00,P05-2022
,LEE VALLEY CAMPSITE,PREMISES RELATED EXPENDITURE,CLEANING CONTRACT,2121,P113083-SERVICE-Cleaning Supplies,08/09/2021 00:00,251273,14.62,HY0043,HYGIENE SYSTEMS LTD,26/7/2021 00:00:00,29/8/2021 00:00:00,P05-2022
,LEE VALLEY CAMPSITE,PREMISES RELATED EXPENDITURE,CLEANING CONTRACT,2121,P113083-SERVICE-Cleaning Supplies,08/09/2021 00:00,251308,5.38,HY0043,HYGIENE SYSTEMS LTD,26/7/2021 00:00:00,29/8/2021 00:00:00,P05-2022
,LEE VALLEY RIDING CENTRE,PREMISES RELATED EXPENDITURE,CLEANING CONTRACT,2121,P113363-SERVICE-reduced cleaning fee for July,08/05/2021 00:00,251027,540.24,MA0015,MAYFAIR CLEANING COMPANY LIMITED,26/7/2021 00:00:00,29/8/2021 00:00:00,P05-2022
,LEE VALLEY WHITE WATER CENTRE,PREMISES RELATED EXPENDITURE,CLEANING CONTRACT,2121,P112742-SERVICE-Blanket order from Jun 2021 to Nov 21,08/03/2021 00:00,250831,767.34,CA0498,CASNA GROUP,26/7/2021 00:00:00,29/8/2021 00:00:00,P05-2022
,LEE VALLEY WHITE WATER CENTRE,PREMISES RELATED EXPENDITURE,CLEANING CONTRACT,2121,P112742-SERVICE-Blanket order from Jun 2021 to Nov 21,16/8/2021 00:00:00,251170,820.26,CA0498,CASNA GROUP,26/7/2021 00:00:00,29/8/2021 00:00:00,P05-2022
,LEE VALLEY WHITE WATER CENTRE,PREMISES RELATED EXPENDITURE,CLEANING CONTRACT,2121,P112742-SERVICE-Blanket order from Jun 2021 to Nov 21,29/8/2021 00:00:00,251398,965.79,CA0498,CASNA GROUP,26/7/2021 00:00:00,29/8/2021 00:00:00,P05-2022
,LEE VALLEY WHITE WATER CENTRE,PREMISES RELATED EXPENDITURE,CLEANING CONTRACT,2121,P112742-SERVICE-Blanket order from Jun 2021 to Nov 21,24/8/2021 00:00:00,251835,714.42,CA0498,CASNA GROUP,26/7/2021 00:00:00,29/8/2021 00:00:00,P05-2022
,LEE VALLEY MARINA STANSTEAD,PREMISES RELATED EXPENDITURE,GM MAIN CONTRACT SCHEDULED,2141,GLENDALE GROUNDS MANAGEMENT LI,25/8/2021 00:00:00,251453,353.97,GL0214,GLENDALE GROUNDS MANAGEMENT LIMITED,26/7/2021 00:00:00,29/8/2021 00:00:00,P05-2022
,LEE VALLEY WATERWORKS CENTRE,PREMISES RELATED EXPENDITURE,GM MAIN CONTRACT SCHEDULED,2141,GLENDALE GROUNDS MANAGEMENT LI,25/8/2021 00:00:00,251453,174.98,GL0214,GLENDALE GROUNDS MANAGEMENT LIMITED,26/7/2021 00:00:00,29/8/2021 00:00:00,P05-2022
,LEE VALLEY WATERWORKS CENTRE,PREMISES RELATED EXPENDITURE,GM MAIN CONTRACT SCHEDULED,2141,GLENDALE GROUNDS MANAGEMENT LI,25/8/2021 00:00:00,251453,403.45,GL0214,GLENDALE GROUNDS MANAGEMENT LIMITED,26/7/2021 00:00:00,29/8/2021 00:00:00,P05-2022
,LEE VALLEY FARM HAYES HILL,PREMISES RELATED EXPENDITURE,GM MAIN CONTRACT SCHEDULED,2141,GLENDALE GROUNDS MANAGEMENT LI,25/8/2021 00:00:00,251453,188.49,GL0214,GLENDALE GROUNDS MANAGEMENT LIMITED,26/7/2021 00:00:00,29/8/2021 00:00:00,P05-2022
P&V,EAST INDIA DOCK AND BOW CREEK,PREMISES RELATED EXPENDITURE,GM MAIN CONTRACT SCHEDULED,2141,GLENDALE GROUNDS MANAGEMENT LI,25/8/2021 00:00:00,251453,716.43,GL0214,GLENDALE GROUNDS MANAGEMENT LIMITED,26/7/2021 00:00:00,29/8/2021 00:00:00,P05-2022
P&V,EAST INDIA DOCK AND BOW CREEK,PREMISES RELATED EXPENDITURE,GM MAIN CONTRACT SCHEDULED,2141,GLENDALE GROUNDS MANAGEMENT LI,25/8/2021 00:00:00,251453,874.91,GL0214,GLENDALE GROUNDS MANAGEMENT LIMITED,26/7/2021 00:00:00,29/8/2021 00:00:00,P05-2022
P&V,NORTH AREA RANGERS,PREMISES RELATED EXPENDITURE,GM MAIN CONTRACT SCHEDULED,2141,GLENDALE GROUNDS MANAGEMENT LI,25/8/2021 00:00:00,251453,5126.83,GL0214,GLENDALE GROUNDS MANAGEMENT LIMITED,26/7/2021 00:00:00,29/8/2021 00:00:00,P05-2022
P&V,SOUTH AREA RANGERS,PREMISES RELATED EXPENDITURE,GM MAIN CONTRACT SCHEDULED,2141,GLENDALE GROUNDS MANAGEMENT LI,25/8/2021 00:00:00,251453,10016.33,GL0214,GLENDALE GROUNDS MANAGEMENT LIMITED,26/7/2021 00:00:00,29/8/2021 00:00:00,P05-2022
P&V,SOUTH AREA RANGERS,PREMISES RELATED EXPENDITURE,GM MAIN CONTRACT SCHEDULED,2141,GLENDALE GROUNDS MANAGEMENT LI,25/8/2021 00:00:00,251453,349.97,GL0214,GLENDALE GROUNDS MANAGEMENT LIMITED,26/7/2021 00:00:00,29/8/2021 00:00:00,P05-2022
P&V,ABBEY GARDENS,PREMISES RELATED EXPENDITURE,GM MAIN CONTRACT SCHEDULED,2141,GLENDALE GROUNDS MANAGEMENT LI,25/8/2021 00:00:00,251453,2663.45,GL0214,GLENDALE GROUNDS MANAGEMENT LIMITED,26/7/2021 00:00:00,29/8/2021 00:00:00,P05-2022
P&V,GUNPOWDER PARK,PREMISES RELATED EXPENDITURE,GM MAIN CONTRACT SCHEDULED,2141,GLENDALE GROUNDS MANAGEMENT LI,25/8/2021 00:00:00,251453,3028.85,GL0214,GLENDALE GROUNDS MANAGEMENT LIMITED,26/7/2021 00:00:00,29/8/2021 00:00:00,P05-2022
P&V,RIVER LEE COUNTRY PARK,PREMISES RELATED EXPENDITURE,GM MAIN CONTRACT SCHEDULED,2141,GLENDALE GROUNDS MANAGEMENT LI,25/8/2021 00:00:00,251453,2099.79,GL0214,GLENDALE GROUNDS MANAGEMENT LIMITED,26/7/2021 00:00:00,29/8/2021 00:00:00,P05-2022
P&V,RIVER LEE COUNTRY PARK,PREMISES RELATED EXPENDITURE,GM MAIN CONTRACT SCHEDULED,2141,GLENDALE GROUNDS MANAGEMENT LI,25/8/2021 00:00:00,251453,18151.82,GL0214,GLENDALE GROUNDS MANAGEMENT LIMITED,26/7/2021 00:00:00,29/8/2021 00:00:00,P05-2022
,LEE VALLEY VELOPARK,PREMISES RELATED EXPENDITURE,GM MAIN CONTRACT SCHEDULED,2141,GLENDALE GROUNDS MANAGEMENT LI,25/8/2021 00:00:00,251453,1692.19,GL0214,GLENDALE GROUNDS MANAGEMENT LIMITED,26/7/2021 00:00:00,29/8/2021 00:00:00,P05-2022
,LV HOCKEY AND TENNIS CENTRE,PREMISES RELATED EXPENDITURE,GM MAIN CONTRACT SCHEDULED,2141,GLENDALE GROUNDS MANAGEMENT LI,25/8/2021 00:00:00,251453,2067.88,GL0214,GLENDALE GROUNDS MANAGEMENT LIMITED,26/7/2021 00:00:00,29/8/2021 00:00:00,P05-2022
P&V,THREE MILLS,PREMISES RELATED EXPENDITURE,GM MAIN CONTRACT SCHEDULED,2141,GLENDALE GROUNDS MANAGEMENT LI,25/8/2021 00:00:00,251453,1201.75,GL0214,GLENDALE GROUNDS MANAGEMENT LIMITED,26/7/2021 00:00:00,29/8/2021 00:00:00,P05-2022
,LEE VALLEY RIDING CENTRE,PREMISES RELATED EXPENDITURE,GM MAIN CONTRACT SCHEDULED,2141,GLENDALE GROUNDS MANAGEMENT LI,25/8/2021 00:00:00,251453,394.45,GL0214,GLENDALE GROUNDS MANAGEMENT LIMITED,26/7/2021 00:00:00,29/8/2021 00:00:00,P05-2022
,LEE VALLEY ICE CENTRE,PREMISES RELATED EXPENDITURE,GM MAIN CONTRACT SCHEDULED,2141,GLENDALE GROUNDS MANAGEMENT LI,25/8/2021 00:00:00,251453,288.71,GL0214,GLENDALE GROUNDS MANAGEMENT LIMITED,26/7/2021 00:00:00,29/8/2021 00:00:00,P05-2022
P&V,FORMER LV LIDO SITE,PREMISES RELATED EXPENDITURE,GM MAIN CONTRACT SCHEDULED,2141,GLENDALE GROUNDS MANAGEMENT LI,25/8/2021 00:00:00,251453,954.78,GL0214,GLENDALE GROUNDS MANAGEMENT LIMITED,26/7/2021 00:00:00,29/8/2021 00:00:00,P05-2022
,LEE VALLEY ATHLETICS CENTRE,PREMISES RELATED EXPENDITURE,GM MAIN CONTRACT SCHEDULED,2141,GLENDALE GROUNDS MANAGEMENT LI,25/8/2021 00:00:00,251453,467.68,GL0214,GLENDALE GROUNDS MANAGEMENT LIMITED,26/7/2021 00:00:00,29/8/2021 00:00:00,P05-2022
,LEE VALLEY WHITE WATER CENTRE,PREMISES RELATED EXPENDITURE,GM MAIN CONTRACT SCHEDULED,2141,GLENDALE GROUNDS MANAGEMENT LI,25/8/2021 00:00:00,251453,1658.49,GL0214,GLENDALE GROUNDS MANAGEMENT LIMITED,26/7/2021 00:00:00,29/8/2021 00:00:00,P05-2022
,LEE VALLEY WATERWORKS CENTRE,PREMISES RELATED EXPENDITURE,GM HORTICULTURE SCHEDULED,2143,GLENDALE GROUNDS MANAGEMENT LI,25/8/2021 00:00:00,251453,155.61,GL0214,GLENDALE GROUNDS MANAGEMENT LIMITED,26/7/2021 00:00:00,29/8/2021 00:00:00,P05-2022
P&V,NORTH AREA RANGERS,PREMISES RELATED EXPENDITURE,GM HORTICULTURE SCHEDULED,2143,GLENDALE GROUNDS MANAGEMENT LI,25/8/2021 00:00:00,251453,218.65,GL0214,GLENDALE GROUNDS MANAGEMENT LIMITED,26/7/2021 00:00:00,29/8/2021 00:00:00,P05-2022
P&V,SOUTH AREA RANGERS,PREMISES RELATED EXPENDITURE,GM HORTICULTURE SCHEDULED,2143,GLENDALE GROUNDS MANAGEMENT LI,25/8/2021 00:00:00,251453,126.51,GL0214,GLENDALE GROUNDS MANAGEMENT LIMITED,26/7/2021 00:00:00,29/8/2021 00:00:00,P05-2022
P&V,ABBEY GARDENS,PREMISES RELATED EXPENDITURE,GM HORTICULTURE SCHEDULED,2143,GLENDALE GROUNDS MANAGEMENT LI,25/8/2021 00:00:00,251453,1819.81,GL0214,GLENDALE GROUNDS MANAGEMENT LIMITED,26/7/2021 00:00:00,29/8/2021 00:00:00,P05-2022
P&V,GUNPOWDER PARK,PREMISES RELATED EXPENDITURE,GM HORTICULTURE SCHEDULED,2143,GLENDALE GROUNDS MANAGEMENT LI,25/8/2021 00:00:00,251453,238.2,GL0214,GLENDALE GROUNDS MANAGEMENT LIMITED,26/7/2021 00:00:00,29/8/2021 00:00:00,P05-2022
P&V,RIVER LEE COUNTRY PARK,PREMISES RELATED EXPENDITURE,GM HORTICULTURE SCHEDULED,2143,GLENDALE GROUNDS MANAGEMENT LI,25/8/2021 00:00:00,251453,122.16,GL0214,GLENDALE GROUNDS MANAGEMENT LIMITED,26/7/2021 00:00:00,29/8/2021 00:00:00,P05-2022
,LEE VALLEY VELOPARK,PREMISES RELATED EXPENDITURE,GM HORTICULTURE SCHEDULED,2143,GLENDALE GROUNDS MANAGEMENT LI,25/8/2021 00:00:00,251453,39.32,GL0214,GLENDALE GROUNDS MANAGEMENT LIMITED,26/7/2021 00:00:00,29/8/2021 00:00:00,P05-2022
,LV HOCKEY AND TENNIS CENTRE,PREMISES RELATED EXPENDITURE,GM HORTICULTURE SCHEDULED,2143,GLENDALE GROUNDS MANAGEMENT LI,25/8/2021 00:00:00,251453,1056.86,GL0214,GLENDALE GROUNDS MANAGEMENT LIMITED,26/7/2021 00:00:00,29/8/2021 00:00:00,P05-2022
P&V,THREE MILLS,PREMISES RELATED EXPENDITURE,GM HORTICULTURE SCHEDULED,2143,GLENDALE GROUNDS MANAGEMENT LI,25/8/2021 00:00:00,251453,40,GL0214,GLENDALE GROUNDS MANAGEMENT LIMITED,26/7/2021 00:00:00,29/8/2021 00:00:00,P05-2022
,LEE VALLEY RIDING CENTRE,PREMISES RELATED EXPENDITURE,GM HORTICULTURE SCHEDULED,2143,GLENDALE GROUNDS MANAGEMENT LI,25/8/2021 00:00:00,251453,12.38,GL0214,GLENDALE GROUNDS MANAGEMENT LIMITED,26/7/2021 00:00:00,29/8/2021 00:00:00,P05-2022
,LEE VALLEY WHITE WATER CENTRE,PREMISES RELATED EXPENDITURE,GM HORTICULTURE SCHEDULED,2143,GLENDALE GROUNDS MANAGEMENT LI,25/8/2021 00:00:00,251453,5.73,GL0214,GLENDALE GROUNDS MANAGEMENT LIMITED,26/7/2021 00:00:00,29/8/2021 00:00:00,P05-2022
P&V,SOUTH AREA RANGERS,PREMISES RELATED EXPENDITURE,GM NON MAIN CONT UNSCHEDULED,2147,P112956-SERVICE-Graffiti Vandalism - Velo Park,18/8/2021 00:00:00,250717,900,GR0287,GRAFFITI BUSTERS LTD,26/7/2021 00:00:00,29/8/2021 00:00:00,P05-2022
P&V,SOUTH AREA RANGERS,PREMISES RELATED EXPENDITURE,GM NON MAIN CONT UNSCHEDULED,2147,P112620-SERVICE-Install Bollards at Tottenham Marsh,16/8/2021 00:00:00,250775,160,JO0019,R G JOYCE,26/7/2021 00:00:00,29/8/2021 00:00:00,P05-2022
P&V,SOUTH AREA RANGERS,PREMISES RELATED EXPENDITURE,GM NON MAIN CONT UNSCHEDULED,2147,P112620-SERVICE-Install Bollards at Tottenham Marsh,16/8/2021 00:00:00,250775,80,JO0019,R G JOYCE,26/7/2021 00:00:00,29/8/2021 00:00:00,P05-2022
P&V,THREE MILLS,PREMISES RELATED EXPENDITURE,GM NON MAIN CONT UNSCHEDULED,2147,P112621-SERVICE-Repair Swing Frame - Three Mills,16/8/2021 00:00:00,250999,225,AR0291,ARD PLAYGROUNDS,26/7/2021 00:00:00,29/8/2021 00:00:00,P05-2022
P&V,FORMER LV LIDO SITE,PREMISES RELATED EXPENDITURE,GM NON MAIN CONT UNSCHEDULED,2147,P112809-SERVICE-Repair Slab Work at Broxbourne Riverside,08/03/2021 00:00,250309,300,BU0090,BUSH WHEELER SERVICES LTD,26/7/2021 00:00:00,29/8/2021 00:00:00,P05-2022
,LEE VALLEY RIDING CENTRE,PREMISES RELATED EXPENDITURE,CESSPOOL EMPTYING,2210,P111895-SERVICE-quarterly visits plus tanker,24/8/2021 00:00:00,251893,1250,HY0042,HYDRO DRAINS LTD,26/7/2021 00:00:00,29/8/2021 00:00:00,P05-2022
,LEE VALLEY MARINA SPRINGFIELD,PREMISES RELATED EXPENDITURE,GENERAL WASTE,2211,P113556-SERVICE-July & August General waste & Recyling,16/8/2021 00:00:00,251163,1113.28,CL0037,VEOLIA ES (UK) LTD,26/7/2021 00:00:00,29/8/2021 00:00:00,P05-2022
,LEE VALLEY MARINA STANSTEAD,PREMISES RELATED EXPENDITURE,GENERAL WASTE,2211,P112012-SERVICE-Annual waste removal RH &SA moorings,08/09/2021 00:00,251156,197.16,CL0037,VEOLIA ES (UK) LTD,26/7/2021 00:00:00,29/8/2021 00:00:00,P05-2022
,LEE VALLEY MARINA STANSTEAD,PREMISES RELATED EXPENDITURE,GENERAL WASTE,2211,P112012-SERVICE-Annual waste removal RH &SA moorings,08/09/2021 00:00,251161,597.75,CL0037,VEOLIA ES (UK) LTD,26/7/2021 00:00:00,29/8/2021 00:00:00,P05-2022
,LEE VALLEY CAMPSITE,PREMISES RELATED EXPENDITURE,GENERAL WASTE,2211,P113566-SERVICE-12 yd July 21,16/8/2021 00:00:00,251153,1145.25,CL0037,VEOLIA ES (UK) LTD,26/7/2021 00:00:00,29/8/2021 00:00:00,P05-2022
,LEE VALLEY CAMPSITE,PREMISES RELATED EXPENDITURE,GENERAL WASTE,2211,P113566-SERVICE-8 & 16 Yd July 21,16/8/2021 00:00:00,251153,0.03,CL0037,VEOLIA ES (UK) LTD,26/7/2021 00:00:00,29/8/2021 00:00:00,P05-2022
,LEE VALLEY CAMPSITE,PREMISES RELATED EXPENDITURE,GENERAL WASTE,2211,P113566-SERVICE-8 & 16 Yd July 21,16/8/2021 00:00:00,251154,1133.05,CL0037,VEOLIA ES (UK) LTD,26/7/2021 00:00:00,29/8/2021 00:00:00,P05-2022
,LEE VALLEY CARAVAN PARK,PREMISES RELATED EXPENDITURE,GENERAL WASTE,2211,P113455-SERVICE-Monthly contract,08/09/2021 00:00,251162,1943,CL0037,VEOLIA ES (UK) LTD,26/7/2021 00:00:00,29/8/2021 00:00:00,P05-2022
P&V,NORTH AREA RANGERS,PREMISES RELATED EXPENDITURE,GENERAL WASTE,2211,"P113179-SERVICE-Remove Caravan - Meadgate Road, Nazeing Meads",08/04/2021 00:00,250984,720,MK0465,M K CLEANING & MAINTENANCE LTD,26/7/2021 00:00:00,29/8/2021 00:00:00,P05-2022
P&V,SOUTH AREA RANGERS,PREMISES RELATED EXPENDITURE,GENERAL WASTE,2211,P112775-SERVICE-Matteress Removal,08/04/2021 00:00,250559,25,GB0239,GBN SERVICES LTD,26/7/2021 00:00:00,29/8/2021 00:00:00,P05-2022
P&V,SOUTH AREA RANGERS,PREMISES RELATED EXPENDITURE,GENERAL WASTE,2211,P112775-SERVICE-Skip at WaterWorks Centre,08/04/2021 00:00,250559,245,GB0239,GBN SERVICES LTD,26/7/2021 00:00:00,29/8/2021 00:00:00,P05-2022
P&V,SOUTH AREA RANGERS,PREMISES RELATED EXPENDITURE,GENERAL WASTE,2211,"P113174-SERVICE-Litter Clearance - WaterWorks Field, Walthams",08/04/2021 00:00,250774,150,JO0019,R G JOYCE,26/7/2021 00:00:00,29/8/2021 00:00:00,P05-2022
P&V,SOUTH AREA RANGERS,PREMISES RELATED EXPENDITURE,GENERAL WASTE,2211,P113375-SERVICE-Skip at WaterWorks Centre,08/09/2021 00:00,251317,270,GB0239,GBN SERVICES LTD,26/7/2021 00:00:00,29/8/2021 00:00:00,P05-2022
P&V,RIVER LEE COUNTRY PARK,PREMISES RELATED EXPENDITURE,GENERAL WASTE,2211,P112864-SERVICE-12yd General Rubbish Skip at Holyfield Hall F,08/04/2021 00:00,250588,270,GB0239,GBN SERVICES LTD,26/7/2021 00:00:00,29/8/2021 00:00:00,P05-2022
P&V,RIVER LEE COUNTRY PARK,PREMISES RELATED EXPENDITURE,GENERAL WASTE,2211,P112864-SERVICE-12yd General Rubbish Skip at Holyfield Hall F,08/04/2021 00:00,251015,270,GB0239,GBN SERVICES LTD,26/7/2021 00:00:00,29/8/2021 00:00:00,P05-2022
P&V,RIVER LEE COUNTRY PARK,PREMISES RELATED EXPENDITURE,GENERAL WASTE,2211,P113459-SERVICE-10x 746625 - Black Refuse Bags,24/8/2021 00:00:00,251471,224.7,GR0020,GREENHAM TRADING LIMITED,26/7/2021 00:00:00,29/8/2021 00:00:00,P05-2022
P&V,RIVER LEE COUNTRY PARK,PREMISES RELATED EXPENDITURE,GENERAL WASTE,2211,P113371-SERVICE-12yd General Rubbish Skip at Holyfield Hall F,25/8/2021 00:00:00,251776,270,GB0239,GBN SERVICES LTD,26/7/2021 00:00:00,29/8/2021 00:00:00,P05-2022
,LEE VALLEY RIDING CENTRE,PREMISES RELATED EXPENDITURE,GENERAL WASTE,2211,P112045-SERVICE-RECYCLING WASTE AND COMPACTOR RENTAL,08/10/2021 00:00,251298,2161.08,BY0049,BYWATERS (LEYTON) LTD,26/7/2021 00:00:00,29/8/2021 00:00:00,P05-2022
,LEE VALLEY ICE CENTRE,PREMISES RELATED EXPENDITURE,GENERAL WASTE,2211,P113058-SERVICE-Skip Exch\nge July 21,08/02/2021 00:00,250746,282.15,OD0010,O'DONOVAN (WASTE DISPOSAL) LTD,26/7/2021 00:00:00,29/8/2021 00:00:00,P05-2022
,LEE VALLEY ICE CENTRE,PREMISES RELATED EXPENDITURE,GENERAL WASTE,2211,P113706-SERVICE-Portable Compactor July,25/8/2021 00:00:00,251297,413.74,BY0049,BYWATERS (LEYTON) LTD,26/7/2021 00:00:00,29/8/2021 00:00:00,P05-2022
,LV LEISURE CENTRE CAMPSITE,PREMISES RELATED EXPENDITURE,GENERAL WASTE,2211,P113438-SERVICE-General waste,08/09/2021 00:00,251155,1177.9,CL0037,VEOLIA ES (UK) LTD,26/7/2021 00:00:00,29/8/2021 00:00:00,P05-2022
,LV LEISURE CENTRE CAMPSITE,PREMISES RELATED EXPENDITURE,GENERAL WASTE,2211,P113435-SERVICE-Compactor empty,08/09/2021 00:00,251300,177.6,BY0049,BYWATERS (LEYTON) LTD,26/7/2021 00:00:00,29/8/2021 00:00:00,P05-2022
,LV LEISURE CENTRE GOLF COURSE,PREMISES RELATED EXPENDITURE,GENERAL WASTE,2211,P113725-SERVICE-PHS,26/8/2021 00:00:00,251376,142.29,PE0015,PHS GROUP PLC,26/7/2021 00:00:00,29/8/2021 00:00:00,P05-2022
,LEE VALLEY WHITE WATER CENTRE,PREMISES RELATED EXPENDITURE,GENERAL WASTE,2211,P112021-SERVICE-Refuse Collections April 21 to March 22,16/8/2021 00:00:00,251299,1058.03,BY0049,BYWATERS (LEYTON) LTD,26/7/2021 00:00:00,29/8/2021 00:00:00,P05-2022
P&V,MYDDELTON HOUSE,PREMISES RELATED EXPENDITURE,RECYCLING,2214,P113574-SERVICE-Recycling,16/8/2021 00:00:00,251365,109.92,CA0341,F & R CAWLEY LTD,26/7/2021 00:00:00,29/8/2021 00:00:00,P05-2022
P&V,MYDDELTON HOUSE,PREMISES RELATED EXPENDITURE,BUILDING SERVICE AGREEMENTS,2220,P112762-SERVICE-Sanitary Services,08/09/2021 00:00,250858,22.52,PE0015,PHS GROUP PLC,26/7/2021 00:00:00,29/8/2021 00:00:00,P05-2022
P&V,MYDDELTON HOUSE,PREMISES RELATED EXPENDITURE,BUILDING SERVICE AGREEMENTS,2220,P112762-SERVICE-Sanitary Services,08/09/2021 00:00,250859,163.73,PE0015,PHS GROUP PLC,26/7/2021 00:00:00,29/8/2021 00:00:00,P05-2022
P&V,MYDDELTON HOUSE,PREMISES RELATED EXPENDITURE,BUILDING SERVICE AGREEMENTS,2220,P113649-SERVICE-Lightning Protection Test Abercrombie House,26/8/2021 00:00:00,251925,445,BA0062,BACON LIGHTNING PROTECTION & MAINTENANCE LTD,26/7/2021 00:00:00,29/8/2021 00:00:00,P05-2022
P&V,MYDDELTON HOUSE,PREMISES RELATED EXPENDITURE,BUILDING SERVICE AGREEMENTS,2220,P112762-SERVICE-Sanitary Services,29/8/2021 00:00:00,251962,53.44,PE0015,PHS GROUP PLC,26/7/2021 00:00:00,29/8/2021 00:00:00,P05-2022
P&V,MYDDELTON HOUSE,PREMISES RELATED EXPENDITURE,BUILDING SERVICE AGREEMENTS,2220,P112762-SERVICE-Sanitary Services,29/8/2021 00:00:00,252191,165.32,PE0015,PHS GROUP PLC,26/7/2021 00:00:00,29/8/2021 00:00:00,P05-2022
,LEE VALLEY WATERWORKS CENTRE,PREMISES RELATED EXPENDITURE,BUILDING SERVICE AGREEMENTS,2220,P113647-SERVICE-Fire Alarm Service WaterWorks Centre,24/8/2021 00:00:00,251769,207.3,CO0199,ENGIE FM LIMITED,26/7/2021 00:00:00,29/8/2021 00:00:00,P05-2022
,LEE VALLEY WATERWORKS CENTRE,PREMISES RELATED EXPENDITURE,BUILDING SERVICE AGREEMENTS,2220,P113659-SERVICE-Monthly MPG Checks WaterWorks,24/8/2021 00:00:00,251795,951.38,CO0199,ENGIE FM LIMITED,26/7/2021 00:00:00,29/8/2021 00:00:00,P05-2022
,LEE VALLEY WATERWORKS CENTRE,PREMISES RELATED EXPENDITURE,BUILDING SERVICE AGREEMENTS,2220,P113662-SERVICE-Monthly MPG Checks WaterWorks,25/8/2021 00:00:00,251796,290.25,CO0199,ENGIE FM LIMITED,26/7/2021 00:00:00,29/8/2021 00:00:00,P05-2022
,LEE VALLEY CAMPSITE,PREMISES RELATED EXPENDITURE,BUILDING SERVICE AGREEMENTS,2220,P113391-SERVICE-Block A,08/09/2021 00:00,251285,310,SO0400,SOUTHERN GREEN SERVICES LIMITED,26/7/2021 00:00:00,29/8/2021 00:00:00,P05-2022
,LEE VALLEY CAMPSITE,PREMISES RELATED EXPENDITURE,BUILDING SERVICE AGREEMENTS,2220,P113391-SERVICE-Block B,08/09/2021 00:00,251285,440,SO0400,SOUTHERN GREEN SERVICES LIMITED,26/7/2021 00:00:00,29/8/2021 00:00:00,P05-2022
,LEE VALLEY CAMPSITE,PREMISES RELATED EXPENDITURE,BUILDING SERVICE AGREEMENTS,2220,P113449-SERVICE-Urinals Block B,16/8/2021 00:00:00,251372,275,SO0400,SOUTHERN GREEN SERVICES LIMITED,26/7/2021 00:00:00,29/8/2021 00:00:00,P05-2022
P&V,NORTH AREA RANGERS,PREMISES RELATED EXPENDITURE,BUILDING SERVICE AGREEMENTS,2220,P111201-SERVICE-Sanitary Disposal - Old Mill & Meadows Toilet,08/04/2021 00:00,250720,17.58,PE0015,PHS GROUP PLC,26/7/2021 00:00:00,29/8/2021 00:00:00,P05-2022
P&V,NORTH AREA RANGERS,PREMISES RELATED EXPENDITURE,BUILDING SERVICE AGREEMENTS,2220,P111201-SERVICE-Sanitary Disposal - Old Mill & Meadows Toilet,29/8/2021 00:00:00,251961,17.58,PE0015,PHS GROUP PLC,26/7/2021 00:00:00,29/8/2021 00:00:00,P05-2022
P&V,GUNPOWDER PARK,PREMISES RELATED EXPENDITURE,BUILDING SERVICE AGREEMENTS,2220,P108593-SERVICE-Building Servcie Agreement - Gunpowder Park,08/04/2021 00:00,250727,139.16,CO0199,ENGIE FM LIMITED,26/7/2021 00:00:00,29/8/2021 00:00:00,P05-2022
P&V,GUNPOWDER PARK,PREMISES RELATED EXPENDITURE,BUILDING SERVICE AGREEMENTS,2220,P111199-SERVICE-Sanitary Disposal - Gunpowder Park Office Toi,08/04/2021 00:00,250857,2.7,PE0015,PHS GROUP PLC,26/7/2021 00:00:00,29/8/2021 00:00:00,P05-2022
P&V,GUNPOWDER PARK,PREMISES RELATED EXPENDITURE,BUILDING SERVICE AGREEMENTS,2220,P111200-SERVICE-Sanitary Disposal - Gunpowder Park - Public T,16/8/2021 00:00:00,251597,14.3,PE0015,PHS GROUP PLC,26/7/2021 00:00:00,29/8/2021 00:00:00,P05-2022
P&V,GUNPOWDER PARK,PREMISES RELATED EXPENDITURE,BUILDING SERVICE AGREEMENTS,2220,P108593-SERVICE-Building Servcie Agreement - Gunpowder Park,24/8/2021 00:00:00,251938,139.16,CO0199,ENGIE FM LIMITED,26/7/2021 00:00:00,29/8/2021 00:00:00,P05-2022
P&V,RIVER LEE COUNTRY PARK,PREMISES RELATED EXPENDITURE,BUILDING SERVICE AGREEMENTS,2220,P112774-SERVICE-Sanitary Disposal - Ranger Base Office Holyfi,08/09/2021 00:00,250860,5.72,PE0015,PHS GROUP PLC,26/7/2021 00:00:00,29/8/2021 00:00:00,P05-2022
P&V,RIVER LEE COUNTRY PARK,PREMISES RELATED EXPENDITURE,BUILDING SERVICE AGREEMENTS,2220,P111202-SERVICE-Sanitary Disposal - Fishers Green Toilets,16/8/2021 00:00:00,251598,11.59,PE0015,PHS GROUP PLC,26/7/2021 00:00:00,29/8/2021 00:00:00,P05-2022
,LEE VALLEY VELOPARK,PREMISES RELATED EXPENDITURE,BUILDING SERVICE AGREEMENTS,2220,P111429-SERVICE-BMS Contract VP,26/8/2021 00:00:00,250839,590,IN0197,INTEGRATED BUILDING MANAGEMENT SYSTEMS LTD,26/7/2021 00:00:00,29/8/2021 00:00:00,P05-2022
,LEE VALLEY VELOPARK,PREMISES RELATED EXPENDITURE,BUILDING SERVICE AGREEMENTS,2220,P111432-SERVICE-Lightning Protection System HTC,26/8/2021 00:00:00,251025,100,OM0097,OMEGA RED GROUP LTD,26/7/2021 00:00:00,29/8/2021 00:00:00,P05-2022
,LEE VALLEY VELOPARK,PREMISES RELATED EXPENDITURE,BUILDING SERVICE AGREEMENTS,2220,P110516-SERVICE-Service Contract Renewal 2021-2022,26/8/2021 00:00:00,251122,440,GO0211,GOODWATER LTD,26/7/2021 00:00:00,29/8/2021 00:00:00,P05-2022
,LEE VALLEY VELOPARK,PREMISES RELATED EXPENDITURE,BUILDING SERVICE AGREEMENTS,2220,P111432-SERVICE-Lightning Protection System HTC,29/8/2021 00:00:00,251429,100,OM0097,OMEGA RED GROUP LTD,26/7/2021 00:00:00,29/8/2021 00:00:00,P05-2022
,LEE VALLEY VELOPARK,PREMISES RELATED EXPENDITURE,BUILDING SERVICE AGREEMENTS,2220,P113101-SERVICE-Fixed Electrical Testing,29/8/2021 00:00:00,251888,5100,NA0192,NAVITAS ELECTRICAL LIMITED,26/7/2021 00:00:00,29/8/2021 00:00:00,P05-2022
,LV HOCKEY AND TENNIS CENTRE,PREMISES RELATED EXPENDITURE,BUILDING SERVICE AGREEMENTS,2220,P113205-SERVICE-maintenance for the fire alarm,08/03/2021 00:00,250806,997,CL0488,CLYMAC LIMITED,26/7/2021 00:00:00,29/8/2021 00:00:00,P05-2022
,LV HOCKEY AND TENNIS CENTRE,PREMISES RELATED EXPENDITURE,BUILDING SERVICE AGREEMENTS,2220,P113245-SERVICE-Irrigation control annual contract,08/03/2021 00:00,250815,2250,IR0149,IRRIGATION CONTROL LIMITED,26/7/2021 00:00:00,29/8/2021 00:00:00,P05-2022
,LV HOCKEY AND TENNIS CENTRE,PREMISES RELATED EXPENDITURE,BUILDING SERVICE AGREEMENTS,2220,P110517-SERVICE-Service Contract Renewal 2021-2022,26/8/2021 00:00:00,250838,360,GO0211,GOODWATER LTD,26/7/2021 00:00:00,29/8/2021 00:00:00,P05-2022
,LEE VALLEY RIDING CENTRE,PREMISES RELATED EXPENDITURE,BUILDING SERVICE AGREEMENTS,2220,P110519-SERVICE-Service Contract Renewal 2021-2022,29/8/2021 00:00:00,251798,420,GO0211,GOODWATER LTD,26/7/2021 00:00:00,29/8/2021 00:00:00,P05-2022
,LEE VALLEY ICE CENTRE,PREMISES RELATED EXPENDITURE,BUILDING SERVICE AGREEMENTS,2220,P113415-SERVICE-Initial termination,08/09/2021 00:00,247205,3507.37,IN0012,INITIAL WASHROOM HYGIENE,26/7/2021 00:00:00,29/8/2021 00:00:00,P05-2022
,LEE VALLEY ICE CENTRE,PREMISES RELATED EXPENDITURE,BUILDING SERVICE AGREEMENTS,2220,P113415-SERVICE-Initial termination,08/09/2021 00:00,251063,-2601.27,IN0012,INITIAL WASHROOM HYGIENE,26/7/2021 00:00:00,29/8/2021 00:00:00,P05-2022
,LEE VALLEY ICE CENTRE,PREMISES RELATED EXPENDITURE,BUILDING SERVICE AGREEMENTS,2220,P113415-SERVICE-Initial termination,08/09/2021 00:00,251064,789.16,IN0012,INITIAL WASHROOM HYGIENE,26/7/2021 00:00:00,29/8/2021 00:00:00,P05-2022
,LEE VALLEY WHITE WATER CENTRE,PREMISES RELATED EXPENDITURE,BUILDING SERVICE AGREEMENTS,2220,P111254-SERVICE-Hygiene Services April 2021 to 2022,08/03/2021 00:00,250861,168.6,PE0015,PHS GROUP PLC,26/7/2021 00:00:00,29/8/2021 00:00:00,P05-2022
,LEE VALLEY WHITE WATER CENTRE,PREMISES RELATED EXPENDITURE,BUILDING SERVICE AGREEMENTS,2220,P113629-SERVICE-Electrical Testing for June,24/8/2021 00:00:00,251830,1667.33,GI0137,R & P GIBBS LIMITED,26/7/2021 00:00:00,29/8/2021 00:00:00,P05-2022
,LEE VALLEY ICE CENTRE,PREMISES RELATED EXPENDITURE,ENGINEERING SERVICE AGREEMENTS,2221,P113704-SERVICE-Final Payment,25/8/2021 00:00:00,251075,250,CL0606,CLEAN SWEEP UK LTD,26/7/2021 00:00:00,29/8/2021 00:00:00,P05-2022
,LEE VALLEY ICE CENTRE,PREMISES RELATED EXPENDITURE,ENGINEERING SERVICE AGREEMENTS,2221,P113694-SERVICE-Repairs,25/8/2021 00:00:00,251359,88.81,CL0606,CLEAN SWEEP UK LTD,26/7/2021 00:00:00,29/8/2021 00:00:00,P05-2022
,LV LEISURE CENTRE CAMPSITE,PREMISES RELATED EXPENDITURE,ENGINEERING SERVICE AGREEMENTS,2221,P112945-SERVICE-RVTV Call out charge for Intruder alarm reset,29/8/2021 00:00:00,250549,95,RV0035,RVTV SECURITY GROUP LTD,26/7/2021 00:00:00,29/8/2021 00:00:00,P05-2022
CEO,RESIDENTIAL ACCOMMODATION,PREMISES RELATED EXPENDITURE,BUILDING REPAIRS & MAINTENANCE,2222,P112942-SERVICE-Electrical Safety Certificate - Railway Cotta,08/09/2021 00:00,249940,246,WA0315,PAUL WALLACE LETTINGS,26/7/2021 00:00:00,29/8/2021 00:00:00,P05-2022
CEO,RESIDENTIAL ACCOMMODATION,PREMISES RELATED EXPENDITURE,BUILDING REPAIRS & MAINTENANCE,2222,P113210-SERVICE-Connaught Close Quarterly Pest Control,08/09/2021 00:00,250073,70,VE0006,VERMINATE CITY & RURAL PEST CONTROL LTD,26/7/2021 00:00:00,29/8/2021 00:00:00,P05-2022
CEO,RESIDENTIAL ACCOMMODATION,PREMISES RELATED EXPENDITURE,BUILDING REPAIRS & MAINTENANCE,2222,"P113209-SERVICE-Bunglow, Riding Centre Pest Control",08/09/2021 00:00,250074,53.34,VE0006,VERMINATE CITY & RURAL PEST CONTROL LTD,26/7/2021 00:00:00,29/8/2021 00:00:00,P05-2022
CEO,RESIDENTIAL ACCOMMODATION,PREMISES RELATED EXPENDITURE,BUILDING REPAIRS & MAINTENANCE,2222,P113211-SERVICE-Repairs & Maintenance,08/09/2021 00:00,250299,55,WA0315,PAUL WALLACE LETTINGS,26/7/2021 00:00:00,29/8/2021 00:00:00,P05-2022
CEO,COMMERCIAL ACCOMMODATION,PREMISES RELATED EXPENDITURE,BUILDING REPAIRS & MAINTENANCE,2222,P111994-SERVICE-2 x Stop blocks concrete barriers,08/04/2021 00:00,250998,62,NA0171,NAIVETTE SERVICES LTD,26/7/2021 00:00:00,29/8/2021 00:00:00,P05-2022
,LEE VALLEY MARINA SPRINGFIELD,PREMISES RELATED EXPENDITURE,BUILDING REPAIRS & MAINTENANCE,2222,P113074-SERVICE-Fire extinguisher service,08/11/2021 00:00,251325,59.76,TJ0009,T.J.FIRE & SECURITY,26/7/2021 00:00:00,29/8/2021 00:00:00,P05-2022
,LEE VALLEY MARINA SPRINGFIELD,PREMISES RELATED EXPENDITURE,BUILDING REPAIRS & MAINTENANCE,2222,P113074-SERVICE-Fire extinguisher service,08/11/2021 00:00,251325,349.84,TJ0009,T.J.FIRE & SECURITY,26/7/2021 00:00:00,29/8/2021 00:00:00,P05-2022
,LEE VALLEY MARINA SPRINGFIELD,PREMISES RELATED EXPENDITURE,BUILDING REPAIRS & MAINTENANCE,2222,P111626-SERVICE-General Maintenance,16/8/2021 00:00:00,251391,76,DE0013,DENNIS SECURITY CENTRE,26/7/2021 00:00:00,29/8/2021 00:00:00,P05-2022
,LEE VALLEY MARINA SPRINGFIELD,PREMISES RELATED EXPENDITURE,BUILDING REPAIRS & MAINTENANCE,2222,P113557-SERVICE-To strip out cameras gates etc at ice centre,29/8/2021 00:00:00,251793,400,DE0013,DENNIS SECURITY CENTRE,26/7/2021 00:00:00,29/8/2021 00:00:00,P05-2022
,LEE VALLEY WATERWORKS CENTRE,PREMISES RELATED EXPENDITURE,BUILDING REPAIRS & MAINTENANCE,2222,P113625-SERVICE-Eelctrical Testing at Water Works,24/8/2021 00:00:00,251373,300,BR0018,BRADSHAW ELECTRICAL LIMITED,26/7/2021 00:00:00,29/8/2021 00:00:00,P05-2022
P&V,LEE VALLEY FARM HOLYFIELDHALL,PREMISES RELATED EXPENDITURE,BUILDING REPAIRS & MAINTENANCE,2222,P113289-SERVICE-Annual Maintenance Renewal,29/7/2021 00:00:00,250484,465,PS0429,PSL AUTOMATION,26/7/2021 00:00:00,29/8/2021 00:00:00,P05-2022
P&V,LEE VALLEY FARM HOLYFIELDHALL,PREMISES RELATED EXPENDITURE,BUILDING REPAIRS & MAINTENANCE,2222,P111466-SERVICE-Building Repairs,29/8/2021 00:00:00,251996,87.19,JE0011,SAINT-GOBAIN BUILDING DISTRIBUTION,26/7/2021 00:00:00,29/8/2021 00:00:00,P05-2022
,LEE VALLEY CAMPSITE,PREMISES RELATED EXPENDITURE,BUILDING REPAIRS & MAINTENANCE,2222,P112772-SERVICE-Fire Alarm Boxes,08/02/2021 00:00,250997,105,AC0012,SCUTUM SOUTH EAST LTD (frmly Active Security),26/7/2021 00:00:00,29/8/2021 00:00:00,P05-2022
P&V,MYDDELTON HOUSE GARDENS,PREMISES RELATED EXPENDITURE,BUILDING REPAIRS & MAINTENANCE,2222,P113261-SERVICE-Stable Block Electrical works July 2021,29/8/2021 00:00:00,252010,475,BR0018,BRADSHAW ELECTRICAL LIMITED,26/7/2021 00:00:00,29/8/2021 00:00:00,P05-2022
P&V,ABBEY GARDENS,PREMISES RELATED EXPENDITURE,BUILDING REPAIRS & MAINTENANCE,2222,P113552-SERVICE-Gate Repairs Boat Centre Car Park,24/8/2021 00:00:00,251884,154,LW0268,LWC ENGINEERING LIMITED,26/7/2021 00:00:00,29/8/2021 00:00:00,P05-2022
P&V,RIVER LEE COUNTRY PARK,PREMISES RELATED EXPENDITURE,BUILDING REPAIRS & MAINTENANCE,2222,P111890-SERVICE-Water Leak at Showground,08/03/2021 00:00,250330,480,KE0023,KENDALL & SONS LIMITED,26/7/2021 00:00:00,29/8/2021 00:00:00,P05-2022
P&V,RIVER LEE COUNTRY PARK,PREMISES RELATED EXPENDITURE,BUILDING REPAIRS & MAINTENANCE,2222,P113688-SERVICE-Repair Pump at Fishers Green Toilets,25/8/2021 00:00:00,251419,460,CO0550,CONVERT WATER LTD,26/7/2021 00:00:00,29/8/2021 00:00:00,P05-2022
P&V,RIVER LEE COUNTRY PARK,PREMISES RELATED EXPENDITURE,BUILDING REPAIRS & MAINTENANCE,2222,P113628-SERVICE-Unblock Fishers Green Toilets - Ladies W.C.,29/8/2021 00:00:00,251979,98,KE0023,KENDALL & SONS LIMITED,26/7/2021 00:00:00,29/8/2021 00:00:00,P05-2022
P&V,RIVER LEE COUNTRY PARK,PREMISES RELATED EXPENDITURE,BUILDING REPAIRS & MAINTENANCE,2222,P113683-SERVICE-Leak in Toilets at Ranger's Office,29/8/2021 00:00:00,252021,121,KE0023,KENDALL & SONS LIMITED,26/7/2021 00:00:00,29/8/2021 00:00:00,P05-2022
,LEE VALLEY VELOPARK,PREMISES RELATED EXPENDITURE,BUILDING REPAIRS & MAINTENANCE,2222,P112918-SERVICE-Graffiti Removal,08/02/2021 00:00,250718,338,GR0287,GRAFFITI BUSTERS LTD,26/7/2021 00:00:00,29/8/2021 00:00:00,P05-2022
,LEE VALLEY VELOPARK,PREMISES RELATED EXPENDITURE,BUILDING REPAIRS & MAINTENANCE,2222,P113316-SERVICE-Replacement door operator control box,29/8/2021 00:00:00,251892,1361.76,GU0210,GUIDELINE LIFT SERVICES LTD,26/7/2021 00:00:00,29/8/2021 00:00:00,P05-2022
,LV HOCKEY AND TENNIS CENTRE,PREMISES RELATED EXPENDITURE,BUILDING REPAIRS & MAINTENANCE,2222,P112189-SERVICE-Replacement motor impeller housing,08/02/2021 00:00,250577,1276.25,GI0137,R & P GIBBS LIMITED,26/7/2021 00:00:00,29/8/2021 00:00:00,P05-2022
,LV HOCKEY AND TENNIS CENTRE,PREMISES RELATED EXPENDITURE,BUILDING REPAIRS & MAINTENANCE,2222,P113475-SERVICE-PITCH 2 SPRINKLER FAULT EXAM AND REPAIR,29/8/2021 00:00:00,251418,560,IR0149,IRRIGATION CONTROL LIMITED,26/7/2021 00:00:00,29/8/2021 00:00:00,P05-2022
,LV HOCKEY AND TENNIS CENTRE,PREMISES RELATED EXPENDITURE,BUILDING REPAIRS & MAINTENANCE,2222,P113778-SERVICE-work and checks on intruder alarm,29/8/2021 00:00:00,251653,296,AD0015,ADT FIRE & SECURITY PLC,26/7/2021 00:00:00,29/8/2021 00:00:00,P05-2022
,LEE VALLEY RIDING CENTRE,PREMISES RELATED EXPENDITURE,BUILDING REPAIRS & MAINTENANCE,2222,P112358-SERVICE-soap and sanitary dispensers and bins,08/03/2021 00:00,250862,91.17,PE0015,PHS GROUP PLC,26/7/2021 00:00:00,29/8/2021 00:00:00,P05-2022
,LEE VALLEY RIDING CENTRE,PREMISES RELATED EXPENDITURE,BUILDING REPAIRS & MAINTENANCE,2222,P113190-SERVICE-call out for electric fencing back field,08/03/2021 00:00,251030,150,NA0192,NAVITAS ELECTRICAL LIMITED,26/7/2021 00:00:00,29/8/2021 00:00:00,P05-2022
,LV LEISURE CENTRE CAMPSITE,PREMISES RELATED EXPENDITURE,BUILDING REPAIRS & MAINTENANCE,2222,P113342-SERVICE-Plant Room,08/09/2021 00:00,251109,260,SO0400,SOUTHERN GREEN SERVICES LIMITED,26/7/2021 00:00:00,29/8/2021 00:00:00,P05-2022
,LV LEISURE CENTRE CAMPSITE,PREMISES RELATED EXPENDITURE,BUILDING REPAIRS & MAINTENANCE,2222,P112732-SERVICE-Kitchen tap supplied and replaced,08/09/2021 00:00,251110,135,SO0400,SOUTHERN GREEN SERVICES LIMITED,26/7/2021 00:00:00,29/8/2021 00:00:00,P05-2022
,LEE VALLEY WHITE WATER CENTRE,PREMISES RELATED EXPENDITURE,BUILDING REPAIRS & MAINTENANCE,2222,P112868-SERVICE-Shower valve replacement,08/03/2021 00:00,250578,1402.39,GI0137,R & P GIBBS LIMITED,26/7/2021 00:00:00,29/8/2021 00:00:00,P05-2022
,LEE VALLEY WHITE WATER CENTRE,PREMISES RELATED EXPENDITURE,BUILDING REPAIRS & MAINTENANCE,2222,P112967-SERVICE-Crane,08/03/2021 00:00,250739,950,QU0004,QUINTO CRANE & PLANT LIMITED,26/7/2021 00:00:00,29/8/2021 00:00:00,P05-2022
,LEE VALLEY WHITE WATER CENTRE,PREMISES RELATED EXPENDITURE,BUILDING REPAIRS & MAINTENANCE,2222,P112898-SERVICE-Call Out for pumps,08/03/2021 00:00,250745,1107,CL0039,XYLEM WATER SOLUTIONS UK  LIMITED,26/7/2021 00:00:00,29/8/2021 00:00:00,P05-2022
,LEE VALLEY WHITE WATER CENTRE,PREMISES RELATED EXPENDITURE,BUILDING REPAIRS & MAINTENANCE,2222,P112920-SERVICE-Quarterly Maintenance on Daikin VRV AC units,16/8/2021 00:00:00,251304,1322.5,GI0137,R & P GIBBS LIMITED,26/7/2021 00:00:00,29/8/2021 00:00:00,P05-2022
,LEE VALLEY WHITE WATER CENTRE,PREMISES RELATED EXPENDITURE,BUILDING REPAIRS & MAINTENANCE,2222,P112760-SERVICE-Call out,16/8/2021 00:00:00,251307,110,YO0024,YY SECURITY INSTALLATION,26/7/2021 00:00:00,29/8/2021 00:00:00,P05-2022
,LEE VALLEY WHITE WATER CENTRE,PREMISES RELATED EXPENDITURE,BUILDING REPAIRS & MAINTENANCE,2222,P112760-SERVICE-1 x new handle,16/8/2021 00:00:00,251307,27.11,YO0024,YY SECURITY INSTALLATION,26/7/2021 00:00:00,29/8/2021 00:00:00,P05-2022
,LEE VALLEY WHITE WATER CENTRE,PREMISES RELATED EXPENDITURE,BUILDING REPAIRS & MAINTENANCE,2222,P112760-SERVICE-Labour,16/8/2021 00:00:00,251307,165,YO0024,YY SECURITY INSTALLATION,26/7/2021 00:00:00,29/8/2021 00:00:00,P05-2022
,LEE VALLEY WHITE WATER CENTRE,PREMISES RELATED EXPENDITURE,BUILDING REPAIRS & MAINTENANCE,2222,CAPSER,16/8/2021 00:00:00,251310,500,MO0041,CAPSER,26/7/2021 00:00:00,29/8/2021 00:00:00,P05-2022
,LEE VALLEY WHITE WATER CENTRE,PREMISES RELATED EXPENDITURE,BUILDING REPAIRS & MAINTENANCE,2222,P113129-SERVICE-Pump Movement,16/8/2021 00:00:00,251310,600,MO0041,CAPSER,26/7/2021 00:00:00,29/8/2021 00:00:00,P05-2022
,LEE VALLEY WHITE WATER CENTRE,PREMISES RELATED EXPENDITURE,BUILDING REPAIRS & MAINTENANCE,2222,CAPSER,16/8/2021 00:00:00,251310,-600,MO0041,CAPSER,26/7/2021 00:00:00,29/8/2021 00:00:00,P05-2022
,LEE VALLEY WHITE WATER CENTRE,PREMISES RELATED EXPENDITURE,BUILDING REPAIRS & MAINTENANCE,2222,CAPSER,16/8/2021 00:00:00,251310,100,MO0041,CAPSER,26/7/2021 00:00:00,29/8/2021 00:00:00,P05-2022
,LEE VALLEY WHITE WATER CENTRE,PREMISES RELATED EXPENDITURE,BUILDING REPAIRS & MAINTENANCE,2222,P113059-SERVICE-Crane for 22.07.21,16/8/2021 00:00:00,251402,633.33,QU0004,QUINTO CRANE & PLANT LIMITED,26/7/2021 00:00:00,29/8/2021 00:00:00,P05-2022
CEO,LVLC SERVICE CHARGE,PREMISES RELATED EXPENDITURE,BUILDING REPAIRS & MAINTENANCE,2222,P113206-SERVICE-Flytip Collection at Picketts Lock,08/09/2021 00:00,250773,116.04,GL0214,GLENDALE GROUNDS MANAGEMENT LIMITED,26/7/2021 00:00:00,29/8/2021 00:00:00,P05-2022
CEO,LVLC SERVICE CHARGE,PREMISES RELATED EXPENDITURE,BUILDING REPAIRS & MAINTENANCE,2222,P112704-SERVICE-Contract Sweep,18/8/2021 00:00:00,250982,150,SE0374,SELECT SWEEPER HIRE LTD,26/7/2021 00:00:00,29/8/2021 00:00:00,P05-2022
,LEE VALLEY ATHLETICS CENTRE,PREMISES RELATED EXPENDITURE,ENGINEERING SERVICES CONTRACT,2223,P111584-SERVICE-LVAC ANNUAL CONTRACT,08/03/2021 00:00,250845,1860,DA0075,D.A.T.A. CLEANING SERVICES,26/7/2021 00:00:00,29/8/2021 00:00:00,P05-2022
,LEE VALLEY ATHLETICS CENTRE,PREMISES RELATED EXPENDITURE,ENGINEERING SERVICES CONTRACT,2223,P111604-SERVICE-LVAC ANNUAL REFUSE COLLECTION 21/22,16/8/2021 00:00:00,251142,343.3,SI0659,SIMPLY WASTE SOLUTIONS,26/7/2021 00:00:00,29/8/2021 00:00:00,P05-2022
P&V,ABBEY GARDENS,SUPPLIES AND SERVICES,FENCES/GATES ETC.,2231,P113022-SERVICE-Bollard Removal at Cornmill Meadows,25/8/2021 00:00:00,250447,162.5,LW0268,LWC ENGINEERING LIMITED,26/7/2021 00:00:00,29/8/2021 00:00:00,P05-2022
P&V,GUNPOWDER PARK,SUPPLIES AND SERVICES,FENCES/GATES ETC.,2231,P113520-SERVICE-Height Barrier - Swan Pike & Pool,16/8/2021 00:00:00,251603,350,LW0268,LWC ENGINEERING LIMITED,26/7/2021 00:00:00,29/8/2021 00:00:00,P05-2022
P&V,GUNPOWDER PARK,SUPPLIES AND SERVICES,FENCES/GATES ETC.,2231,P113522-SERVICE-Height Barrier - Rammey Marsh,16/8/2021 00:00:00,251604,195,LW0268,LWC ENGINEERING LIMITED,26/7/2021 00:00:00,29/8/2021 00:00:00,P05-2022
P&V,RIVER LEE COUNTRY PARK,SUPPLIES AND SERVICES,FENCES/GATES ETC.,2231,P113314-SERVICE-Height Barrier at Cornmill Meadows,16/8/2021 00:00:00,251405,350,LW0268,LWC ENGINEERING LIMITED,26/7/2021 00:00:00,29/8/2021 00:00:00,P05-2022
P&V,RIVER LEE COUNTRY PARK,SUPPLIES AND SERVICES,FENCES/GATES ETC.,2231,P113313-SERVICE-Height Barrier at Pindar Car Park,16/8/2021 00:00:00,251405,180,LW0268,LWC ENGINEERING LIMITED,26/7/2021 00:00:00,29/8/2021 00:00:00,P05-2022
CEO,COMMERCIAL ACCOMMODATION,PREMISES RELATED EXPENDITURE,EAST HALE ALLOTMENTS,2261,P112083-SERVICE-Allotment Bins,18/8/2021 00:00:00,251160,86.12,CL0037,VEOLIA ES (UK) LTD,26/7/2021 00:00:00,29/8/2021 00:00:00,P05-2022
P&V,MYDDELTON HOUSE,PREMISES RELATED EXPENDITURE,ENERGY COSTS (ELECTRICITY),2332,KENT COUNTY COUNCIL (KCS),24/8/2021 00:00:00,251766,1097.68,KE0007,KENT COUNTY COUNCIL (KCS),26/7/2021 00:00:00,29/8/2021 00:00:00,P05-2022
CEO,COMMERCIAL ACCOMMODATION,PREMISES RELATED EXPENDITURE,ENERGY COSTS (ELECTRICITY),2332,E-ON,18/8/2021 00:00:00,250983,33.02,PO0025,E-ON,26/7/2021 00:00:00,29/8/2021 00:00:00,P05-2022
CEO,COMMERCIAL ACCOMMODATION,PREMISES RELATED EXPENDITURE,ENERGY COSTS (ELECTRICITY),2332,E-ON,18/8/2021 00:00:00,251167,15.12,PO0025,E-ON,26/7/2021 00:00:00,29/8/2021 00:00:00,P05-2022
CEO,COMMERCIAL ACCOMMODATION,PREMISES RELATED EXPENDITURE,ENERGY COSTS (ELECTRICITY),2332,E-ON NEXT ENERGY LTD,18/8/2021 00:00:00,251388,30.98,EO0398,E-ON NEXT ENERGY LTD,26/7/2021 00:00:00,29/8/2021 00:00:00,P05-2022
,LEE VALLEY MARINA SPRINGFIELD,PREMISES RELATED EXPENDITURE,ENERGY COSTS (ELECTRICITY),2332,KENT COUNTY COUNCIL (KCS),16/8/2021 00:00:00,251584,2036.96,KE0007,KENT COUNTY COUNCIL (KCS),26/7/2021 00:00:00,29/8/2021 00:00:00,P05-2022
,LEE VALLEY WATERWORKS CENTRE,PREMISES RELATED EXPENDITURE,ENERGY COSTS (ELECTRICITY),2332,NPOWER LIMITED,08/04/2021 00:00,250533,737.91,NP0123,NPOWER LIMITED,26/7/2021 00:00:00,29/8/2021 00:00:00,P05-2022
,LEE VALLEY WATERWORKS CENTRE,PREMISES RELATED EXPENDITURE,ENERGY COSTS (ELECTRICITY),2332,NPOWER LIMITED,18/8/2021 00:00:00,251658,714,NP0123,NPOWER LIMITED,26/7/2021 00:00:00,29/8/2021 00:00:00,P05-2022
,LEE VALLEY CAMPSITE,PREMISES RELATED EXPENDITURE,ENERGY COSTS (ELECTRICITY),2332,KENT COUNTY COUNCIL (KCS),08/02/2021 00:00,250850,1366.93,KE0007,KENT COUNTY COUNCIL (KCS),26/7/2021 00:00:00,29/8/2021 00:00:00,P05-2022
,LEE VALLEY CAMPSITE,PREMISES RELATED EXPENDITURE,ENERGY COSTS (ELECTRICITY),2332,KENT COUNTY COUNCIL (KCS),08/02/2021 00:00,250851,1540.74,KE0007,KENT COUNTY COUNCIL (KCS),26/7/2021 00:00:00,29/8/2021 00:00:00,P05-2022
,LEE VALLEY CAMPSITE,PREMISES RELATED EXPENDITURE,ENERGY COSTS (ELECTRICITY),2332,KENT COUNTY COUNCIL (KCS),16/8/2021 00:00:00,251582,1609.95,KE0007,KENT COUNTY COUNCIL (KCS),26/7/2021 00:00:00,29/8/2021 00:00:00,P05-2022
,LEE VALLEY CAMPSITE,PREMISES RELATED EXPENDITURE,ENERGY COSTS (ELECTRICITY),2332,KENT COUNTY COUNCIL (KCS),16/8/2021 00:00:00,251583,1318.63,KE0007,KENT COUNTY COUNCIL (KCS),26/7/2021 00:00:00,29/8/2021 00:00:00,P05-2022
,LEE VALLEY CAMPSITE,PREMISES RELATED EXPENDITURE,ENERGY COSTS (ELECTRICITY),2332,NPOWER LIMITED,24/8/2021 00:00:00,251900,1049.12,NP0123,NPOWER LIMITED,26/7/2021 00:00:00,29/8/2021 00:00:00,P05-2022
,LEE VALLEY CAMPSITE,PREMISES RELATED EXPENDITURE,ENERGY COSTS (ELECTRICITY),2332,NPOWER LIMITED,24/8/2021 00:00:00,251901,901.31,NP0123,NPOWER LIMITED,26/7/2021 00:00:00,29/8/2021 00:00:00,P05-2022
,LEE VALLEY CAMPSITE,PREMISES RELATED EXPENDITURE,ENERGY COSTS (ELECTRICITY),2332,KENT COUNTY COUNCIL (KCS),29/8/2021 00:00:00,252182,543.89,KE0007,KENT COUNTY COUNCIL (KCS),26/7/2021 00:00:00,29/8/2021 00:00:00,P05-2022
,LEE VALLEY CARAVAN PARK,PREMISES RELATED EXPENDITURE,ENERGY COSTS (ELECTRICITY),2332,KENT COUNTY COUNCIL (KCS),24/8/2021 00:00:00,251580,5839.13,KE0007,KENT COUNTY COUNCIL (KCS),26/7/2021 00:00:00,29/8/2021 00:00:00,P05-2022
P&V,EAST INDIA DOCK AND BOW CREEK,PREMISES RELATED EXPENDITURE,ENERGY COSTS (ELECTRICITY),2332,KENT COUNTY COUNCIL (KCS),16/8/2021 00:00:00,251386,-130.59,KE0007,KENT COUNTY COUNCIL (KCS),26/7/2021 00:00:00,29/8/2021 00:00:00,P05-2022
P&V,EAST INDIA DOCK AND BOW CREEK,PREMISES RELATED EXPENDITURE,ENERGY COSTS (ELECTRICITY),2332,KENT COUNTY COUNCIL (KCS),16/8/2021 00:00:00,251387,114.25,KE0007,KENT COUNTY COUNCIL (KCS),26/7/2021 00:00:00,29/8/2021 00:00:00,P05-2022
P&V,EAST INDIA DOCK AND BOW CREEK,PREMISES RELATED EXPENDITURE,ENERGY COSTS (ELECTRICITY),2332,KENT COUNTY COUNCIL (KCS),24/8/2021 00:00:00,251768,105.18,KE0007,KENT COUNTY COUNCIL (KCS),26/7/2021 00:00:00,29/8/2021 00:00:00,P05-2022
P&V,RYE HOUSE GATEHOUSE,PREMISES RELATED EXPENDITURE,ENERGY COSTS (ELECTRICITY),2332,KENT COUNTY COUNCIL (KCS),16/8/2021 00:00:00,251384,-100.69,KE0007,KENT COUNTY COUNCIL (KCS),26/7/2021 00:00:00,29/8/2021 00:00:00,P05-2022
P&V,RYE HOUSE GATEHOUSE,PREMISES RELATED EXPENDITURE,ENERGY COSTS (ELECTRICITY),2332,KENT COUNTY COUNCIL (KCS),16/8/2021 00:00:00,251385,87.93,KE0007,KENT COUNTY COUNCIL (KCS),26/7/2021 00:00:00,29/8/2021 00:00:00,P05-2022
P&V,NORTH AREA RANGERS,PREMISES RELATED EXPENDITURE,ENERGY COSTS (ELECTRICITY),2332,KENT COUNTY COUNCIL (KCS),16/8/2021 00:00:00,251592,-137.2,KE0007,KENT COUNTY COUNCIL (KCS),26/7/2021 00:00:00,29/8/2021 00:00:00,P05-2022
P&V,NORTH AREA RANGERS,PREMISES RELATED EXPENDITURE,ENERGY COSTS (ELECTRICITY),2332,KENT COUNTY COUNCIL (KCS),16/8/2021 00:00:00,251593,121.59,KE0007,KENT COUNTY COUNCIL (KCS),26/7/2021 00:00:00,29/8/2021 00:00:00,P05-2022
P&V,NORTH AREA RANGERS,PREMISES RELATED EXPENDITURE,ENERGY COSTS (ELECTRICITY),2332,KENT COUNTY COUNCIL (KCS),16/8/2021 00:00:00,251594,-150.28,KE0007,KENT COUNTY COUNCIL (KCS),26/7/2021 00:00:00,29/8/2021 00:00:00,P05-2022
P&V,NORTH AREA RANGERS,PREMISES RELATED EXPENDITURE,ENERGY COSTS (ELECTRICITY),2332,KENT COUNTY COUNCIL (KCS),16/8/2021 00:00:00,251595,107.12,KE0007,KENT COUNTY COUNCIL (KCS),26/7/2021 00:00:00,29/8/2021 00:00:00,P05-2022
P&V,SOUTH AREA RANGERS,PREMISES RELATED EXPENDITURE,ENERGY COSTS (ELECTRICITY),2332,KENT COUNTY COUNCIL (KCS),29/8/2021 00:00:00,252180,-300.42,KE0007,KENT COUNTY COUNCIL (KCS),26/7/2021 00:00:00,29/8/2021 00:00:00,P05-2022
P&V,SOUTH AREA RANGERS,PREMISES RELATED EXPENDITURE,ENERGY COSTS (ELECTRICITY),2332,KENT COUNTY COUNCIL (KCS),29/8/2021 00:00:00,252181,211.28,KE0007,KENT COUNTY COUNCIL (KCS),26/7/2021 00:00:00,29/8/2021 00:00:00,P05-2022
P&V,ABBEY GARDENS,PREMISES RELATED EXPENDITURE,ENERGY COSTS (ELECTRICITY),2332,KENT COUNTY COUNCIL (KCS),24/8/2021 00:00:00,251921,800.02,KE0007,KENT COUNTY COUNCIL (KCS),26/7/2021 00:00:00,29/8/2021 00:00:00,P05-2022
P&V,ABBEY GARDENS,PREMISES RELATED EXPENDITURE,ENERGY COSTS (ELECTRICITY),2332,KENT COUNTY COUNCIL (KCS),24/8/2021 00:00:00,251922,-914.78,KE0007,KENT COUNTY COUNCIL (KCS),26/7/2021 00:00:00,29/8/2021 00:00:00,P05-2022
P&V,ABBEY GARDENS,PREMISES RELATED EXPENDITURE,ENERGY COSTS (ELECTRICITY),2332,KENT COUNTY COUNCIL (KCS),24/8/2021 00:00:00,251923,-947.07,KE0007,KENT COUNTY COUNCIL (KCS),26/7/2021 00:00:00,29/8/2021 00:00:00,P05-2022
P&V,ABBEY GARDENS,PREMISES RELATED EXPENDITURE,ENERGY COSTS (ELECTRICITY),2332,KENT COUNTY COUNCIL (KCS),24/8/2021 00:00:00,251924,669.37,KE0007,KENT COUNTY COUNCIL (KCS),26/7/2021 00:00:00,29/8/2021 00:00:00,P05-2022
P&V,GUNPOWDER PARK,PREMISES RELATED EXPENDITURE,ENERGY COSTS (ELECTRICITY),2332,KENT COUNTY COUNCIL (KCS),17/8/2021 00:00:00,251624,319.78,KE0007,KENT COUNTY COUNCIL (KCS),26/7/2021 00:00:00,29/8/2021 00:00:00,P05-2022
P&V,CAR PARK INCOME,PREMISES RELATED EXPENDITURE,ENERGY COSTS (ELECTRICITY),2332,NPOWER LIMITED,08/03/2021 00:00,250531,55.58,NP0123,NPOWER LIMITED,26/7/2021 00:00:00,29/8/2021 00:00:00,P05-2022
P&V,CAR PARK INCOME,PREMISES RELATED EXPENDITURE,ENERGY COSTS (ELECTRICITY),2332,NPOWER LIMITED,08/03/2021 00:00,250532,55.58,NP0123,NPOWER LIMITED,26/7/2021 00:00:00,29/8/2021 00:00:00,P05-2022
,LEE VALLEY VELOPARK,PREMISES RELATED EXPENDITURE,ENERGY COSTS (ELECTRICITY),2332,KENT COUNTY COUNCIL (KCS),29/8/2021 00:00:00,251581,72.37,KE0007,KENT COUNTY COUNCIL (KCS),26/7/2021 00:00:00,29/8/2021 00:00:00,P05-2022
,LEE VALLEY VELOPARK,PREMISES RELATED EXPENDITURE,ENERGY COSTS (ELECTRICITY),2332,KENT COUNTY COUNCIL (KCS),29/8/2021 00:00:00,251623,42.04,KE0007,KENT COUNTY COUNCIL (KCS),26/7/2021 00:00:00,29/8/2021 00:00:00,P05-2022
,LEE VALLEY VELOPARK,PREMISES RELATED EXPENDITURE,ENERGY COSTS (ELECTRICITY),2332,NPOWER LIMITED,29/8/2021 00:00:00,251663,13908.77,NP0123,NPOWER LIMITED,26/7/2021 00:00:00,29/8/2021 00:00:00,P05-2022
,LEE VALLEY VELOPARK,PREMISES RELATED EXPENDITURE,ENERGY COSTS (ELECTRICITY),2332,KENT COUNTY COUNCIL (KCS),29/8/2021 00:00:00,251823,200.53,KE0007,KENT COUNTY COUNCIL (KCS),26/7/2021 00:00:00,29/8/2021 00:00:00,P05-2022
,LEE VALLEY VELOPARK,PREMISES RELATED EXPENDITURE,ENERGY COSTS (ELECTRICITY),2332,KENT COUNTY COUNCIL (KCS),29/8/2021 00:00:00,251824,194.95,KE0007,KENT COUNTY COUNCIL (KCS),26/7/2021 00:00:00,29/8/2021 00:00:00,P05-2022
,LEE VALLEY VELOPARK,PREMISES RELATED EXPENDITURE,ENERGY COSTS (ELECTRICITY),2332,KENT COUNTY COUNCIL (KCS),29/8/2021 00:00:00,251825,1202.46,KE0007,KENT COUNTY COUNCIL (KCS),26/7/2021 00:00:00,29/8/2021 00:00:00,P05-2022
,LEE VALLEY VELOPARK,PREMISES RELATED EXPENDITURE,ENERGY COSTS (ELECTRICITY),2332,KENT COUNTY COUNCIL (KCS),29/8/2021 00:00:00,251914,912.98,KE0007,KENT COUNTY COUNCIL (KCS),26/7/2021 00:00:00,29/8/2021 00:00:00,P05-2022
,LEE VALLEY VELOPARK,PREMISES RELATED EXPENDITURE,ENERGY COSTS (ELECTRICITY),2332,KENT COUNTY COUNCIL (KCS),29/8/2021 00:00:00,251915,45.53,KE0007,KENT COUNTY COUNCIL (KCS),26/7/2021 00:00:00,29/8/2021 00:00:00,P05-2022
,LEE VALLEY VELOPARK,PREMISES RELATED EXPENDITURE,ENERGY COSTS (ELECTRICITY),2332,KENT COUNTY COUNCIL (KCS),29/8/2021 00:00:00,251916,47.65,KE0007,KENT COUNTY COUNCIL (KCS),26/7/2021 00:00:00,29/8/2021 00:00:00,P05-2022
,LEE VALLEY VELOPARK,PREMISES RELATED EXPENDITURE,ENERGY COSTS (ELECTRICITY),2332,KENT COUNTY COUNCIL (KCS),29/8/2021 00:00:00,251917,45.64,KE0007,KENT COUNTY COUNCIL (KCS),26/7/2021 00:00:00,29/8/2021 00:00:00,P05-2022
,LEE VALLEY VELOPARK,PREMISES RELATED EXPENDITURE,ENERGY COSTS (ELECTRICITY),2332,KENT COUNTY COUNCIL (KCS),29/8/2021 00:00:00,251918,46.91,KE0007,KENT COUNTY COUNCIL (KCS),26/7/2021 00:00:00,29/8/2021 00:00:00,P05-2022
,LEE VALLEY VELOPARK,PREMISES RELATED EXPENDITURE,ENERGY COSTS (ELECTRICITY),2332,KENT COUNTY COUNCIL (KCS),29/8/2021 00:00:00,251919,41.8,KE0007,KENT COUNTY COUNCIL (KCS),26/7/2021 00:00:00,29/8/2021 00:00:00,P05-2022
,LEE VALLEY VELOPARK,PREMISES RELATED EXPENDITURE,ENERGY COSTS (ELECTRICITY),2332,KENT COUNTY COUNCIL (KCS),29/8/2021 00:00:00,251920,45.87,KE0007,KENT COUNTY COUNCIL (KCS),26/7/2021 00:00:00,29/8/2021 00:00:00,P05-2022
,LV HOCKEY AND TENNIS CENTRE,PREMISES RELATED EXPENDITURE,ENERGY COSTS (ELECTRICITY),2332,P113417-SERVICE-1 Year Service Plus Contract to Cover 4 Units,25/8/2021 00:00:00,250254,1547,BP0447,BPC ENERGY LIMITED,26/7/2021 00:00:00,29/8/2021 00:00:00,P05-2022
,LV HOCKEY AND TENNIS CENTRE,PREMISES RELATED EXPENDITURE,ENERGY COSTS (ELECTRICITY),2332,NPOWER LIMITED,29/8/2021 00:00:00,251662,7899.12,NP0123,NPOWER LIMITED,26/7/2021 00:00:00,29/8/2021 00:00:00,P05-2022
,LEE VALLEY RIDING CENTRE,PREMISES RELATED EXPENDITURE,ENERGY COSTS (ELECTRICITY),2332,EDF ENERGY 1 LIMITED,26/8/2021 00:00:00,251998,50.96,ED0077,EDF ENERGY 1 LIMITED,26/7/2021 00:00:00,29/8/2021 00:00:00,P05-2022
,LEE VALLEY ICE CENTRE,PREMISES RELATED EXPENDITURE,ENERGY COSTS (ELECTRICITY),2332,NPOWER LIMITED,25/8/2021 00:00:00,251661,10382.26,NP0123,NPOWER LIMITED,26/7/2021 00:00:00,29/8/2021 00:00:00,P05-2022
P&V,FORMER LV LIDO SITE,PREMISES RELATED EXPENDITURE,ENERGY COSTS (ELECTRICITY),2332,KENT COUNTY COUNCIL (KCS),24/8/2021 00:00:00,251767,34.94,KE0007,KENT COUNTY COUNCIL (KCS),26/7/2021 00:00:00,29/8/2021 00:00:00,P05-2022
,LV LEISURE CENTRE CAMPSITE,PREMISES RELATED EXPENDITURE,ENERGY COSTS (ELECTRICITY),2332,NPOWER LIMITED,18/8/2021 00:00:00,251660,3991.84,NP0123,NPOWER LIMITED,26/7/2021 00:00:00,29/8/2021 00:00:00,P05-2022
,LV LEISURE CENTRE GOLF COURSE,PREMISES RELATED EXPENDITURE,ENERGY COSTS (ELECTRICITY),2332,P113296-SERVICE-bradshaw,08/02/2021 00:00,250756,1705,BR0018,BRADSHAW ELECTRICAL LIMITED,26/7/2021 00:00:00,29/8/2021 00:00:00,P05-2022
,LEE VALLEY WHITE WATER CENTRE,PREMISES RELATED EXPENDITURE,ENERGY COSTS (ELECTRICITY),2332,BRITISH GAS BUSINESS,18/8/2021 00:00:00,251095,125.32,BR0030,BRITISH GAS BUSINESS,26/7/2021 00:00:00,29/8/2021 00:00:00,P05-2022
,LEE VALLEY WHITE WATER CENTRE,PREMISES RELATED EXPENDITURE,ENERGY COSTS (ELECTRICITY),2332,NPOWER LIMITED,18/8/2021 00:00:00,251654,14605.41,NP0123,NPOWER LIMITED,26/7/2021 00:00:00,29/8/2021 00:00:00,P05-2022
,LEE VALLEY WHITE WATER CENTRE,PREMISES RELATED EXPENDITURE,ENERGY COSTS (ELECTRICITY),2332,NPOWER LIMITED,18/8/2021 00:00:00,251655,17083.66,NP0123,NPOWER LIMITED,26/7/2021 00:00:00,29/8/2021 00:00:00,P05-2022
,LEE VALLEY WHITE WATER CENTRE,PREMISES RELATED EXPENDITURE,ENERGY COSTS (ELECTRICITY),2332,NPOWER LIMITED,18/8/2021 00:00:00,251656,16432.07,NP0123,NPOWER LIMITED,26/7/2021 00:00:00,29/8/2021 00:00:00,P05-2022
,LEE VALLEY WHITE WATER CENTRE,PREMISES RELATED EXPENDITURE,ENERGY COSTS (ELECTRICITY),2332,NPOWER LIMITED,18/8/2021 00:00:00,251657,12062.52,NP0123,NPOWER LIMITED,26/7/2021 00:00:00,29/8/2021 00:00:00,P05-2022
,LEE VALLEY WHITE WATER CENTRE,PREMISES RELATED EXPENDITURE,ENERGY COSTS (ELECTRICITY),2332,NPOWER LIMITED,18/8/2021 00:00:00,251659,151.61,NP0123,NPOWER LIMITED,26/7/2021 00:00:00,29/8/2021 00:00:00,P05-2022
,LEE VALLEY WHITE WATER CENTRE,PREMISES RELATED EXPENDITURE,ENERGY COSTS (ELECTRICITY),2332,NPOWER LIMITED,18/8/2021 00:00:00,251664,347.65,NP0123,NPOWER LIMITED,26/7/2021 00:00:00,29/8/2021 00:00:00,P05-2022
,LEE VALLEY MARINA SPRINGFIELD,PREMISES RELATED EXPENDITURE,ENERGY COSTS (GAS),2333,KENT COUNTY COUNCIL (KCS),16/8/2021 00:00:00,251435,-559.16,KE0007,KENT COUNTY COUNCIL (KCS),26/7/2021 00:00:00,29/8/2021 00:00:00,P05-2022
,LEE VALLEY MARINA SPRINGFIELD,PREMISES RELATED EXPENDITURE,ENERGY COSTS (GAS),2333,KENT COUNTY COUNCIL (KCS),16/8/2021 00:00:00,251436,-100.17,KE0007,KENT COUNTY COUNCIL (KCS),26/7/2021 00:00:00,29/8/2021 00:00:00,P05-2022
,LEE VALLEY MARINA STANSTEAD,PREMISES RELATED EXPENDITURE,ENERGY COSTS (GAS),2333,KENT COUNTY COUNCIL (KCS),24/8/2021 00:00:00,251439,-91.41,KE0007,KENT COUNTY COUNCIL (KCS),26/7/2021 00:00:00,29/8/2021 00:00:00,P05-2022
,LEE VALLEY MARINA STANSTEAD,PREMISES RELATED EXPENDITURE,ENERGY COSTS (GAS),2333,KENT COUNTY COUNCIL (KCS),24/8/2021 00:00:00,251440,-148.18,KE0007,KENT COUNTY COUNCIL (KCS),26/7/2021 00:00:00,29/8/2021 00:00:00,P05-2022
,LEE VALLEY MARINA STANSTEAD,PREMISES RELATED EXPENDITURE,ENERGY COSTS (GAS),2333,KENT COUNTY COUNCIL (KCS),24/8/2021 00:00:00,251441,-276.23,KE0007,KENT COUNTY COUNCIL (KCS),26/7/2021 00:00:00,29/8/2021 00:00:00,P05-2022
,LEE VALLEY MARINA STANSTEAD,PREMISES RELATED EXPENDITURE,ENERGY COSTS (GAS),2333,KENT COUNTY COUNCIL (KCS),24/8/2021 00:00:00,251442,-309.16,KE0007,KENT COUNTY COUNCIL (KCS),26/7/2021 00:00:00,29/8/2021 00:00:00,P05-2022
,LEE VALLEY MARINA STANSTEAD,PREMISES RELATED EXPENDITURE,ENERGY COSTS (GAS),2333,KENT COUNTY COUNCIL (KCS),24/8/2021 00:00:00,251443,-385.24,KE0007,KENT COUNTY COUNCIL (KCS),26/7/2021 00:00:00,29/8/2021 00:00:00,P05-2022
,LEE VALLEY MARINA STANSTEAD,PREMISES RELATED EXPENDITURE,ENERGY COSTS (GAS),2333,KENT COUNTY COUNCIL (KCS),24/8/2021 00:00:00,251444,-504.77,KE0007,KENT COUNTY COUNCIL (KCS),26/7/2021 00:00:00,29/8/2021 00:00:00,P05-2022
,LEE VALLEY MARINA STANSTEAD,PREMISES RELATED EXPENDITURE,ENERGY COSTS (GAS),2333,KENT COUNTY COUNCIL (KCS),24/8/2021 00:00:00,251445,-346.31,KE0007,KENT COUNTY COUNCIL (KCS),26/7/2021 00:00:00,29/8/2021 00:00:00,P05-2022
,LEE VALLEY MARINA STANSTEAD,PREMISES RELATED EXPENDITURE,ENERGY COSTS (GAS),2333,KENT COUNTY COUNCIL (KCS),24/8/2021 00:00:00,251446,-73.8,KE0007,KENT COUNTY COUNCIL (KCS),26/7/2021 00:00:00,29/8/2021 00:00:00,P05-2022
,LEE VALLEY WATERWORKS CENTRE,PREMISES RELATED EXPENDITURE,ENERGY COSTS (GAS),2333,KENT COUNTY COUNCIL (KCS),08/04/2021 00:00,250289,213.39,KE0007,KENT COUNTY COUNCIL (KCS),26/7/2021 00:00:00,29/8/2021 00:00:00,P05-2022
,LEE VALLEY CARAVAN PARK,PREMISES RELATED EXPENDITURE,ENERGY COSTS (GAS),2333,P113757-SERVICE-filling gas tanks,26/8/2021 00:00:00,251936,3993.48,AV0327,AVANTI GAS LIMITED,26/7/2021 00:00:00,29/8/2021 00:00:00,P05-2022
P&V,GUNPOWDER PARK,PREMISES RELATED EXPENDITURE,ENERGY COSTS (GAS),2333,KENT COUNTY COUNCIL (KCS),29/8/2021 00:00:00,251943,-68.52,KE0007,KENT COUNTY COUNCIL (KCS),26/7/2021 00:00:00,29/8/2021 00:00:00,P05-2022
P&V,GUNPOWDER PARK,PREMISES RELATED EXPENDITURE,ENERGY COSTS (GAS),2333,KENT COUNTY COUNCIL (KCS),29/8/2021 00:00:00,251944,49.33,KE0007,KENT COUNTY COUNCIL (KCS),26/7/2021 00:00:00,29/8/2021 00:00:00,P05-2022
P&V,GUNPOWDER PARK,PREMISES RELATED EXPENDITURE,ENERGY COSTS (GAS),2333,KENT COUNTY COUNCIL (KCS),29/8/2021 00:00:00,251945,-62.89,KE0007,KENT COUNTY COUNCIL (KCS),26/7/2021 00:00:00,29/8/2021 00:00:00,P05-2022
P&V,GUNPOWDER PARK,PREMISES RELATED EXPENDITURE,ENERGY COSTS (GAS),2333,KENT COUNTY COUNCIL (KCS),29/8/2021 00:00:00,251946,51.02,KE0007,KENT COUNTY COUNCIL (KCS),26/7/2021 00:00:00,29/8/2021 00:00:00,P05-2022
P&V,GUNPOWDER PARK,PREMISES RELATED EXPENDITURE,ENERGY COSTS (GAS),2333,KENT COUNTY COUNCIL (KCS),29/8/2021 00:00:00,251947,49.52,KE0007,KENT COUNTY COUNCIL (KCS),26/7/2021 00:00:00,29/8/2021 00:00:00,P05-2022
P&V,GUNPOWDER PARK,PREMISES RELATED EXPENDITURE,ENERGY COSTS (GAS),2333,KENT COUNTY COUNCIL (KCS),29/8/2021 00:00:00,251948,51.43,KE0007,KENT COUNTY COUNCIL (KCS),26/7/2021 00:00:00,29/8/2021 00:00:00,P05-2022
,LEE VALLEY RIDING CENTRE,PREMISES RELATED EXPENDITURE,ENERGY COSTS (GAS),2333,BRITISH GAS BUSINESS,08/03/2021 00:00,250981,70.23,BR0029,BRITISH GAS BUSINESS,26/7/2021 00:00:00,29/8/2021 00:00:00,P05-2022
,LEE VALLEY RIDING CENTRE,PREMISES RELATED EXPENDITURE,ENERGY COSTS (GAS),2333,BRITISH GAS BUSINESS,29/8/2021 00:00:00,252152,68.8,BR0029,BRITISH GAS BUSINESS,26/7/2021 00:00:00,29/8/2021 00:00:00,P05-2022
,LV LEISURE CENTRE CAMPSITE,PREMISES RELATED EXPENDITURE,ENERGY COSTS (GAS),2333,KENT COUNTY COUNCIL (KCS),18/8/2021 00:00:00,251437,-639.79,KE0007,KENT COUNTY COUNCIL (KCS),26/7/2021 00:00:00,29/8/2021 00:00:00,P05-2022
,LV LEISURE CENTRE CAMPSITE,PREMISES RELATED EXPENDITURE,ENERGY COSTS (GAS),2333,KENT COUNTY COUNCIL (KCS),18/8/2021 00:00:00,251438,-1054.24,KE0007,KENT COUNTY COUNCIL (KCS),26/7/2021 00:00:00,29/8/2021 00:00:00,P05-2022
,LEE VALLEY WHITE WATER CENTRE,PREMISES RELATED EXPENDITURE,ENERGY COSTS (GAS),2333,BRITISH GAS BUSINESS,18/8/2021 00:00:00,251095,28.25,BR0030,BRITISH GAS BUSINESS,26/7/2021 00:00:00,29/8/2021 00:00:00,P05-2022
,LEE VALLEY MARINA STANSTEAD,PREMISES RELATED EXPENDITURE,RENT (EXTERNAL),2442,CANAL & RIVER TRUST,24/8/2021 00:00:00,251878,11875,BR0036,CANAL & RIVER TRUST,26/7/2021 00:00:00,29/8/2021 00:00:00,P05-2022
,LEE VALLEY CAMPSITE,PREMISES RELATED EXPENDITURE,BUSINESS RATES,2444,EPPING FOREST DISTRICT COUNCIL,08/03/2021 00:00,249391,5100.82,EP0025,EPPING FOREST DISTRICT COUNCIL,26/7/2021 00:00:00,29/8/2021 00:00:00,P05-2022
,LEE VALLEY CARAVAN PARK,PREMISES RELATED EXPENDITURE,BUSINESS RATES,2444,BOROUGH OF BROXBOURNE,08/09/2021 00:00,250610,8984.2,BR0016,BOROUGH OF BROXBOURNE,26/7/2021 00:00:00,29/8/2021 00:00:00,P05-2022
,LEE VALLEY ATHLETICS CENTRE,PREMISES RELATED EXPENDITURE,BUSINESS RATES,2444,LONDON BOROUGH OF ENFIELD,08/03/2021 00:00,250524,100480.08,EN0035,LONDON BOROUGH OF ENFIELD,26/7/2021 00:00:00,29/8/2021 00:00:00,P05-2022
,LEE VALLEY WHITE WATER CENTRE,PREMISES RELATED EXPENDITURE,BUSINESS RATES,2444,BOROUGH OF BROXBOURNE,08/09/2021 00:00,250609,101929.8,BR0016,BOROUGH OF BROXBOURNE,26/7/2021 00:00:00,29/8/2021 00:00:00,P05-2022
,LEE VALLEY FARM HAYES HILL,PREMISES RELATED EXPENDITURE,COUNCIL TAX,2445,EPPING FOREST DISTRICT COUNCIL,08/09/2021 00:00,251414,-57.01,EP0025,EPPING FOREST DISTRICT COUNCIL,26/7/2021 00:00:00,29/8/2021 00:00:00,P05-2022
,LEE VALLEY FARM HAYES HILL,PREMISES RELATED EXPENDITURE,COUNCIL TAX,2445,EPPING FOREST DISTRICT COUNCIL,08/11/2021 00:00,251415,-1701,EP0025,EPPING FOREST DISTRICT COUNCIL,26/7/2021 00:00:00,29/8/2021 00:00:00,P05-2022
CEO,RESIDENTIAL ACCOMMODATION,PREMISES RELATED EXPENDITURE,PROPERTY MANAGEMT/LETTING FEES,2447,P112940-SERVICE-Warrangy Fee - 1 Connaught Close,24/8/2021 00:00:00,249845,336.6,CA0165,CASTLES,26/7/2021 00:00:00,29/8/2021 00:00:00,P05-2022
CEO,RESIDENTIAL ACCOMMODATION,PREMISES RELATED EXPENDITURE,PROPERTY MANAGEMT/LETTING FEES,2447,P112941-SERVICE-Letting Fee - 1 Connaught Close,08/09/2021 00:00,249846,1980,CA0165,CASTLES,26/7/2021 00:00:00,29/8/2021 00:00:00,P05-2022
CEO,RESIDENTIAL ACCOMMODATION,PREMISES RELATED EXPENDITURE,PROPERTY MANAGEMT/LETTING FEES,2447,P113611-SERVICE-Landlord Fees - 9 Picketts Lock Lane,24/8/2021 00:00:00,251013,1560,CA0165,CASTLES,26/7/2021 00:00:00,29/8/2021 00:00:00,P05-2022
CEO,RESIDENTIAL ACCOMMODATION,PREMISES RELATED EXPENDITURE,PROPERTY MANAGEMT/LETTING FEES,2447,P113610-SERVICE-Landlord Warranty 9 Picketts Lock Lane,24/8/2021 00:00:00,251014,265.2,CA0165,CASTLES,26/7/2021 00:00:00,29/8/2021 00:00:00,P05-2022
CEO,RESIDENTIAL ACCOMMODATION,PREMISES RELATED EXPENDITURE,WATER,2555,AVANTI CREDIT LTD,08/04/2021 00:00,251100,28,AV0477,ADVANTIS CREDIT LTD,26/7/2021 00:00:00,29/8/2021 00:00:00,P05-2022
CEO,RESIDENTIAL ACCOMMODATION,PREMISES RELATED EXPENDITURE,WATER,2555,AVANTI CREDIT LTD,08/04/2021 00:00,251100,1076.69,AV0477,ADVANTIS CREDIT LTD,26/7/2021 00:00:00,29/8/2021 00:00:00,P05-2022
,LEE VALLEY MARINA STANSTEAD,PREMISES RELATED EXPENDITURE,WATER,2555,CASTLE WATER LIMITED,08/09/2021 00:00,251263,131.16,CA0625,CASTLE WATER LIMITED,26/7/2021 00:00:00,29/8/2021 00:00:00,P05-2022
,LEE VALLEY MARINA STANSTEAD,PREMISES RELATED EXPENDITURE,WATER,2555,CASTLE WATER LIMITED,08/09/2021 00:00,251263,125.37,CA0625,CASTLE WATER LIMITED,26/7/2021 00:00:00,29/8/2021 00:00:00,P05-2022
,LEE VALLEY CAMPSITE,PREMISES RELATED EXPENDITURE,WATER,2555,CASTLE WATER LIMITED,08/09/2021 00:00,251264,1383.1,CA0625,CASTLE WATER LIMITED,26/7/2021 00:00:00,29/8/2021 00:00:00,P05-2022
P&V,EAST INDIA DOCK AND BOW CREEK,PREMISES RELATED EXPENDITURE,WATER,2555,ENVIRONMENT AGENCY,29/8/2021 00:00:00,250749,415.2,EN0024,ENVIRONMENT AGENCY,26/7/2021 00:00:00,29/8/2021 00:00:00,P05-2022
P&V,RIVER LEE COUNTRY PARK,PREMISES RELATED EXPENDITURE,WATER,2555,ENVIRONMENT AGENCY,29/8/2021 00:00:00,250749,76.12,EN0024,ENVIRONMENT AGENCY,26/7/2021 00:00:00,29/8/2021 00:00:00,P05-2022
,LV LEISURE CENTRE CAMPSITE,PREMISES RELATED EXPENDITURE,WATER,2555,CASTLE WATER LIMITED,18/8/2021 00:00:00,251630,532.31,CA0625,CASTLE WATER LIMITED,26/7/2021 00:00:00,29/8/2021 00:00:00,P05-2022
,LV LEISURE CENTRE CAMPSITE,PREMISES RELATED EXPENDITURE,WATER,2555,CASTLE WATER LIMITED,18/8/2021 00:00:00,251630,305.49,CA0625,CASTLE WATER LIMITED,26/7/2021 00:00:00,29/8/2021 00:00:00,P05-2022
,LEE VALLEY WHITE WATER CENTRE,PREMISES RELATED EXPENDITURE,WATER,2555,CASTLE WATER LIMITED,16/8/2021 00:00:00,251326,1.07,CA0625,CASTLE WATER LIMITED,26/7/2021 00:00:00,29/8/2021 00:00:00,P05-2022
,LEE VALLEY WHITE WATER CENTRE,PREMISES RELATED EXPENDITURE,WATER,2555,CASTLE WATER LIMITED,16/8/2021 00:00:00,251356,129.76,CA0625,CASTLE WATER LIMITED,26/7/2021 00:00:00,29/8/2021 00:00:00,P05-2022
,LEE VALLEY WHITE WATER CENTRE,PREMISES RELATED EXPENDITURE,WATER,2555,CASTLE WATER LIMITED,16/8/2021 00:00:00,251356,-3035.82,CA0625,CASTLE WATER LIMITED,26/7/2021 00:00:00,29/8/2021 00:00:00,P05-2022
,LEE VALLEY WHITE WATER CENTRE,PREMISES RELATED EXPENDITURE,WATER,2555,CASTLE WATER LIMITED,16/8/2021 00:00:00,251356,1125.46,CA0625,CASTLE WATER LIMITED,26/7/2021 00:00:00,29/8/2021 00:00:00,P05-2022
,LEE VALLEY MARINA SPRINGFIELD,PREMISES RELATED EXPENDITURE,CLEANING & DOMESTIC SUPPLIES,2666,P112289-SERVICE-Sanitary Disposal/Dust Mats/Eco Shield/Air F,08/04/2021 00:00,250722,179.8,PE0015,PHS GROUP PLC,26/7/2021 00:00:00,29/8/2021 00:00:00,P05-2022
,LEE VALLEY MARINA SPRINGFIELD,PREMISES RELATED EXPENDITURE,CLEANING & DOMESTIC SUPPLIES,2666,P113380-SERVICE-July 2021 site cleaning,08/04/2021 00:00,251026,912.33,MA0015,MAYFAIR CLEANING COMPANY LIMITED,26/7/2021 00:00:00,29/8/2021 00:00:00,P05-2022
,LEE VALLEY MARINA SPRINGFIELD,PREMISES RELATED EXPENDITURE,CLEANING & DOMESTIC SUPPLIES,2666,P112164-SERVICE-To supply items as requested,29/8/2021 00:00:00,251822,129.8,HY0043,HYGIENE SYSTEMS LTD,26/7/2021 00:00:00,29/8/2021 00:00:00,P05-2022
,LEE VALLEY MARINA SPRINGFIELD,PREMISES RELATED EXPENDITURE,CLEANING & DOMESTIC SUPPLIES,2666,P112289-SERVICE-Sanitary Disposal/Dust Mats/Eco Shield/Air F,29/8/2021 00:00:00,251959,179.8,PE0015,PHS GROUP PLC,26/7/2021 00:00:00,29/8/2021 00:00:00,P05-2022
,LEE VALLEY MARINA STANSTEAD,PREMISES RELATED EXPENDITURE,CLEANING & DOMESTIC SUPPLIES,2666,P113287-SERVICE-Cleaning and PPE MAterials,08/02/2021 00:00,251002,274.26,TH0008,JKL SOLUTIONS LTD,26/7/2021 00:00:00,29/8/2021 00:00:00,P05-2022
,LEE VALLEY MARINA STANSTEAD,PREMISES RELATED EXPENDITURE,CLEANING & DOMESTIC SUPPLIES,2666,P113794-SERVICE-cleaning,29/8/2021 00:00:00,252210,100,TR0632,TONYA RENNIE T/A TR SERVICES,26/7/2021 00:00:00,29/8/2021 00:00:00,P05-2022
,LEE VALLEY WATERWORKS CENTRE,PREMISES RELATED EXPENDITURE,CLEANING & DOMESTIC SUPPLIES,2666,P113559-SERVICE-Cleaning WaterWorks Centre - Jul 2021,18/8/2021 00:00:00,251454,526.05,GL0214,GLENDALE GROUNDS MANAGEMENT LIMITED,26/7/2021 00:00:00,29/8/2021 00:00:00,P05-2022
,LEE VALLEY CAMPSITE,PREMISES RELATED EXPENDITURE,CLEANING & DOMESTIC SUPPLIES,2666,P113083-SERVICE-increase order to cover invoice,16/8/2021 00:00:00,250604,5,HY0043,HYGIENE SYSTEMS LTD,26/7/2021 00:00:00,29/8/2021 00:00:00,P05-2022
,LEE VALLEY CAMPSITE,PREMISES RELATED EXPENDITURE,CLEANING & DOMESTIC SUPPLIES,2666,P113083-SERVICE-INCREASE ORDER TO COVER INVOICE,08/09/2021 00:00,251273,75.12,HY0043,HYGIENE SYSTEMS LTD,26/7/2021 00:00:00,29/8/2021 00:00:00,P05-2022
,LEE VALLEY CAMPSITE,PREMISES RELATED EXPENDITURE,CLEANING & DOMESTIC SUPPLIES,2666,P113389-SERVICE-VARIOUS,16/8/2021 00:00:00,251400,206.81,HY0043,HYGIENE SYSTEMS LTD,26/7/2021 00:00:00,29/8/2021 00:00:00,P05-2022
,LEE VALLEY CAMPSITE,PREMISES RELATED EXPENDITURE,CLEANING & DOMESTIC SUPPLIES,2666,P113186-SERVICE-Cleaning Supplies,25/8/2021 00:00:00,251645,55.35,HY0043,HYGIENE SYSTEMS LTD,26/7/2021 00:00:00,29/8/2021 00:00:00,P05-2022
,LEE VALLEY CAMPSITE,PREMISES RELATED EXPENDITURE,CLEANING & DOMESTIC SUPPLIES,2666,P113186-SERVICE-Increase to cover invoice,25/8/2021 00:00:00,251645,0.77,HY0043,HYGIENE SYSTEMS LTD,26/7/2021 00:00:00,29/8/2021 00:00:00,P05-2022
,LEE VALLEY CAMPSITE,PREMISES RELATED EXPENDITURE,CLEANING & DOMESTIC SUPPLIES,2666,P113389-SERVICE-VARIOUS,24/8/2021 00:00:00,251651,-59.8,HY0043,HYGIENE SYSTEMS LTD,26/7/2021 00:00:00,29/8/2021 00:00:00,P05-2022
,LEE VALLEY CAMPSITE,PREMISES RELATED EXPENDITURE,CLEANING & DOMESTIC SUPPLIES,2666,P113186-SERVICE-Cleaning Supplies,24/8/2021 00:00:00,251837,42.39,HY0043,HYGIENE SYSTEMS LTD,26/7/2021 00:00:00,29/8/2021 00:00:00,P05-2022
,LEE VALLEY CAMPSITE,PREMISES RELATED EXPENDITURE,CLEANING & DOMESTIC SUPPLIES,2666,P113389-SERVICE-VARIOUS,29/8/2021 00:00:00,252016,13,HY0043,HYGIENE SYSTEMS LTD,26/7/2021 00:00:00,29/8/2021 00:00:00,P05-2022
,LEE VALLEY CARAVAN PARK,PREMISES RELATED EXPENDITURE,CLEANING & DOMESTIC SUPPLIES,2666,P113273-SERVICE-Cleaning supplies,08/09/2021 00:00,251007,330.07,HY0043,HYGIENE SYSTEMS LTD,26/7/2021 00:00:00,29/8/2021 00:00:00,P05-2022
P&V,ALMOST WILD CAMPSITE,PREMISES RELATED EXPENDITURE,CLEANING & DOMESTIC SUPPLIES,2666,P112488-SERVICE-Cleaning materials,16/8/2021 00:00:00,251472,15.09,HY0043,HYGIENE SYSTEMS LTD,26/7/2021 00:00:00,29/8/2021 00:00:00,P05-2022
,LEE VALLEY VELOPARK,PREMISES RELATED EXPENDITURE,CLEANING & DOMESTIC SUPPLIES,2666,"P112971-SERVICE-Cleaning Products, Toilet Paper Vinyl Golves",08/09/2021 00:00,251066,639.98,BR0025,BREEZE SOUTHERN LTD,26/7/2021 00:00:00,29/8/2021 00:00:00,P05-2022
,LV HOCKEY AND TENNIS CENTRE,PREMISES RELATED EXPENDITURE,CLEANING & DOMESTIC SUPPLIES,2666,P113780-SERVICE-baywest toilet tissue x 4,29/8/2021 00:00:00,250255,130.36,BR0025,BREEZE SOUTHERN LTD,26/7/2021 00:00:00,29/8/2021 00:00:00,P05-2022
,LV HOCKEY AND TENNIS CENTRE,PREMISES RELATED EXPENDITURE,CLEANING & DOMESTIC SUPPLIES,2666,P113780-SERVICE-x 3 spray and wipe sanitizer,29/8/2021 00:00:00,250255,28.65,BR0025,BREEZE SOUTHERN LTD,26/7/2021 00:00:00,29/8/2021 00:00:00,P05-2022
,LV HOCKEY AND TENNIS CENTRE,PREMISES RELATED EXPENDITURE,CLEANING & DOMESTIC SUPPLIES,2666,P113780-SERVICE-x10 vileda ultraspeed mop,29/8/2021 00:00:00,250255,60,BR0025,BREEZE SOUTHERN LTD,26/7/2021 00:00:00,29/8/2021 00:00:00,P05-2022
,LV HOCKEY AND TENNIS CENTRE,PREMISES RELATED EXPENDITURE,CLEANING & DOMESTIC SUPPLIES,2666,P113780-SERVICE-x10 hygen microfibre wetmop,29/8/2021 00:00:00,250255,66.1,BR0025,BREEZE SOUTHERN LTD,26/7/2021 00:00:00,29/8/2021 00:00:00,P05-2022
,LV HOCKEY AND TENNIS CENTRE,PREMISES RELATED EXPENDITURE,CLEANING & DOMESTIC SUPPLIES,2666,P113780-SERVICE-x3 2 ply wipe centre feed,29/8/2021 00:00:00,250255,22.5,BR0025,BREEZE SOUTHERN LTD,26/7/2021 00:00:00,29/8/2021 00:00:00,P05-2022
,LV HOCKEY AND TENNIS CENTRE,PREMISES RELATED EXPENDITURE,CLEANING & DOMESTIC SUPPLIES,2666,P113153-SERVICE-Cleaning & Domestic Supplies,08/02/2021 00:00,250256,449.71,BR0025,BREEZE SOUTHERN LTD,26/7/2021 00:00:00,29/8/2021 00:00:00,P05-2022
,LV HOCKEY AND TENNIS CENTRE,PREMISES RELATED EXPENDITURE,CLEANING & DOMESTIC SUPPLIES,2666,P113781-SERVICE-Hygiene prducts August - Dec 2021,29/8/2021 00:00:00,251054,364.82,PE0015,PHS GROUP PLC,26/7/2021 00:00:00,29/8/2021 00:00:00,P05-2022
,LV LEISURE CENTRE CAMPSITE,PREMISES RELATED EXPENDITURE,CLEANING & DOMESTIC SUPPLIES,2666,P113336-SERVICE-Cleaning supplies,08/09/2021 00:00,251281,207.15,HY0043,HYGIENE SYSTEMS LTD,26/7/2021 00:00:00,29/8/2021 00:00:00,P05-2022
,LV LEISURE CENTRE CAMPSITE,PREMISES RELATED EXPENDITURE,CLEANING & DOMESTIC SUPPLIES,2666,P113543-SERVICE-Cleaning supplies,24/8/2021 00:00:00,251816,13.63,HY0043,HYGIENE SYSTEMS LTD,26/7/2021 00:00:00,29/8/2021 00:00:00,P05-2022
,LEE VALLEY ATHLETICS CENTRE,PREMISES RELATED EXPENDITURE,CLEANING & DOMESTIC SUPPLIES,2666,P112950-SERVICE-LVAC ORDER EMAIL AB 8.7.21,08/03/2021 00:00,250811,134.1,HY0043,HYGIENE SYSTEMS LTD,26/7/2021 00:00:00,29/8/2021 00:00:00,P05-2022
,LEE VALLEY ATHLETICS CENTRE,PREMISES RELATED EXPENDITURE,CLEANING & DOMESTIC SUPPLIES,2666,P113264-SERVICE-LVAC CLEANING MATERIALS EMAIL 27.7.21 ABeacon,08/03/2021 00:00,251006,160.22,HY0043,HYGIENE SYSTEMS LTD,26/7/2021 00:00:00,29/8/2021 00:00:00,P05-2022
,LEE VALLEY ATHLETICS CENTRE,PREMISES RELATED EXPENDITURE,CLEANING & DOMESTIC SUPPLIES,2666,P113264-SERVICE-LVAC CLEANING MATERIALS EMAIL 27.7.21 ABeacon,17/8/2021 00:00:00,251165,28.72,HY0043,HYGIENE SYSTEMS LTD,26/7/2021 00:00:00,29/8/2021 00:00:00,P05-2022
,LEE VALLEY WHITE WATER CENTRE,PREMISES RELATED EXPENDITURE,CLEANING & DOMESTIC SUPPLIES,2666,P113134-SERVICE-Cleaning supplies,08/03/2021 00:00,250724,432.8,SU0595,SUMMIT HYGIENE LTD,26/7/2021 00:00:00,29/8/2021 00:00:00,P05-2022
,LEE VALLEY WHITE WATER CENTRE,PREMISES RELATED EXPENDITURE,CLEANING & DOMESTIC SUPPLIES,2666,P113421-SERVICE-Cleaning supplies,24/8/2021 00:00:00,251790,240.33,SU0595,SUMMIT HYGIENE LTD,26/7/2021 00:00:00,29/8/2021 00:00:00,P05-2022
,LEE VALLEY WHITE WATER CENTRE,PREMISES RELATED EXPENDITURE,CLEANING & DOMESTIC SUPPLIES,2666,P113554-SERVICE-fresh wild lemon,24/8/2021 00:00:00,251791,36.41,SU0595,SUMMIT HYGIENE LTD,26/7/2021 00:00:00,29/8/2021 00:00:00,P05-2022
,LEE VALLEY WHITE WATER CENTRE,PREMISES RELATED EXPENDITURE,CLEANING & DOMESTIC SUPPLIES,2666,P113616-SERVICE-Hand gel,24/8/2021 00:00:00,251859,51.64,AM0406,AMAZON PAYMENTS UK LIMITED,26/7/2021 00:00:00,29/8/2021 00:00:00,P05-2022
,LEE VALLEY WHITE WATER CENTRE,PREMISES RELATED EXPENDITURE,CLEANING & DOMESTIC SUPPLIES,2666,P113428-SERVICE-Dustpan and brush,24/8/2021 00:00:00,251863,10.81,AM0406,AMAZON PAYMENTS UK LIMITED,26/7/2021 00:00:00,29/8/2021 00:00:00,P05-2022
,LEE VALLEY WHITE WATER CENTRE,PREMISES RELATED EXPENDITURE,CLEANING & DOMESTIC SUPPLIES,2666,P113428-SERVICE-Dustpan and brush,24/8/2021 00:00:00,251864,10.29,AM0406,AMAZON PAYMENTS UK LIMITED,26/7/2021 00:00:00,29/8/2021 00:00:00,P05-2022
,LV WHITE WATER CATERING,PREMISES RELATED EXPENDITURE,CLEANING & DOMESTIC SUPPLIES,2666,P113652-SERVICE-cleaning materials,29/8/2021 00:00:00,252166,102.61,HY0043,HYGIENE SYSTEMS LTD,26/7/2021 00:00:00,29/8/2021 00:00:00,P05-2022
P&V,LEE VALLEY FARM HOLYFIELDHALL,TRANSPORT RELATED EXPENDITURE,TRANSPORT RUNNING EXPENSES,3333,P113124-SERVICE-Tyres,29/7/2021 00:00:00,250569,301,BW0539,BWT (BROCKS WHEEL & TYRE),26/7/2021 00:00:00,29/8/2021 00:00:00,P05-2022
P&V,LEE VALLEY FARM HOLYFIELDHALL,TRANSPORT RELATED EXPENDITURE,TRANSPORT RUNNING EXPENSES,3333,P111474-SERVICE-Tractor Spares,29/7/2021 00:00:00,250571,40.1,OL0059,OLIVER LANDPOWER LIMITED,26/7/2021 00:00:00,29/8/2021 00:00:00,P05-2022
P&V,LEE VALLEY FARM HOLYFIELDHALL,TRANSPORT RELATED EXPENDITURE,TRANSPORT RUNNING EXPENSES,3333,P111469-SERVICE-Tractor Spares,08/10/2021 00:00,250799,280,RW0257,R. W. CRAWFORD AGRICULTURAL MACHINERY LTD,26/7/2021 00:00:00,29/8/2021 00:00:00,P05-2022
P&V,LEE VALLEY FARM HOLYFIELDHALL,TRANSPORT RELATED EXPENDITURE,TRANSPORT RUNNING EXPENSES,3333,P113482-SERVICE-Parts,08/10/2021 00:00,250802,60.07,OL0059,OLIVER LANDPOWER LIMITED,26/7/2021 00:00:00,29/8/2021 00:00:00,P05-2022
P&V,LEE VALLEY FARM HOLYFIELDHALL,TRANSPORT RELATED EXPENDITURE,TRANSPORT RUNNING EXPENSES,3333,P111465-SERVICE-Workshop Sundries,08/10/2021 00:00,251012,126.07,GR0022,GROUP COMPONENTS LIMITED,26/7/2021 00:00:00,29/8/2021 00:00:00,P05-2022
P&V,LEE VALLEY FARM HOLYFIELDHALL,TRANSPORT RELATED EXPENDITURE,TRANSPORT RUNNING EXPENSES,3333,P113490-SERVICE-Altarobert,08/10/2021 00:00,251348,350,AL0118,ALTA LTD,26/7/2021 00:00:00,29/8/2021 00:00:00,P05-2022
P&V,LEE VALLEY FARM HOLYFIELDHALL,TRANSPORT RELATED EXPENDITURE,TRANSPORT RUNNING EXPENSES,3333,P113588-SERVICE-Safety Check/Oxygen/Fuel Flashback/Cutting No,17/8/2021 00:00:00,251366,472.47,BO0015,BOC LTD,26/7/2021 00:00:00,29/8/2021 00:00:00,P05-2022
P&V,LEE VALLEY FARM HOLYFIELDHALL,TRANSPORT RELATED EXPENDITURE,TRANSPORT RUNNING EXPENSES,3333,P111469-SERVICE-Tractor Spares,17/8/2021 00:00:00,251377,84.4,RW0257,R. W. CRAWFORD AGRICULTURAL MACHINERY LTD,26/7/2021 00:00:00,29/8/2021 00:00:00,P05-2022
P&V,LEE VALLEY FARM HOLYFIELDHALL,TRANSPORT RELATED EXPENDITURE,TRANSPORT RUNNING EXPENSES,3333,P107087-SERVICE-Hose repairs/sundries,18/8/2021 00:00:00,251421,-96.46,HU0003,ALLIANCE AUTOMOTIVE UK CV LIMITED T/A,26/7/2021 00:00:00,29/8/2021 00:00:00,P05-2022
P&V,LEE VALLEY FARM HOLYFIELDHALL,TRANSPORT RELATED EXPENDITURE,TRANSPORT RUNNING EXPENSES,3333,P111468-SERVICE-Hose Repair/Sundries,17/8/2021 00:00:00,251422,111.34,HU0003,ALLIANCE AUTOMOTIVE UK CV LIMITED T/A,26/7/2021 00:00:00,29/8/2021 00:00:00,P05-2022
P&V,LEE VALLEY FARM HOLYFIELDHALL,TRANSPORT RELATED EXPENDITURE,TRANSPORT RUNNING EXPENSES,3333,P113482-SERVICE-Parts,29/8/2021 00:00:00,251817,133.79,OL0059,OLIVER LANDPOWER LIMITED,26/7/2021 00:00:00,29/8/2021 00:00:00,P05-2022
P&V,LEE VALLEY FARM HOLYFIELDHALL,TRANSPORT RELATED EXPENDITURE,TRANSPORT RUNNING EXPENSES,3333,P111469-SERVICE-Tractor Spares,29/8/2021 00:00:00,251971,141.76,RW0257,R. W. CRAWFORD AGRICULTURAL MACHINERY LTD,26/7/2021 00:00:00,29/8/2021 00:00:00,P05-2022
P&V,LEE VALLEY FARM HOLYFIELDHALL,TRANSPORT RELATED EXPENDITURE,TRANSPORT RUNNING EXPENSES,3333,P111473-SERVICE-Tractor Spares,29/8/2021 00:00:00,251983,12.4,OL0001,OLIVER AGRICULTURE LTD,26/7/2021 00:00:00,29/8/2021 00:00:00,P05-2022
P&V,FISHERIES MANAGEMENT,TRANSPORT RELATED EXPENDITURE,VEHICLE FUEL,3335,ALLSTAR BUSINESS SOLUTIONS LTD,08/10/2021 00:00,251056,69.23,AR0035,ALLSTAR BUSINESS SOLUTIONS LTD,26/7/2021 00:00:00,29/8/2021 00:00:00,P05-2022
,LEE VALLEY MARINA STANSTEAD,TRANSPORT RELATED EXPENDITURE,VEHICLE FUEL,3335,ALLSTAR BUSINESS SOLUTIONS LTD,08/10/2021 00:00,251056,209.61,AR0035,ALLSTAR BUSINESS SOLUTIONS LTD,26/7/2021 00:00:00,29/8/2021 00:00:00,P05-2022
P&V,LEE VALLEY FARM HOLYFIELDHALL,TRANSPORT RELATED EXPENDITURE,VEHICLE FUEL,3335,ALLSTAR BUSINESS SOLUTIONS LTD,08/10/2021 00:00,251056,337.55,AR0035,ALLSTAR BUSINESS SOLUTIONS LTD,26/7/2021 00:00:00,29/8/2021 00:00:00,P05-2022
,LEE VALLEY CAMPSITE,TRANSPORT RELATED EXPENDITURE,VEHICLE FUEL,3335,ALLSTAR BUSINESS SOLUTIONS LTD,08/10/2021 00:00,251056,76.83,AR0035,ALLSTAR BUSINESS SOLUTIONS LTD,26/7/2021 00:00:00,29/8/2021 00:00:00,P05-2022
,LEE VALLEY CARAVAN PARK,TRANSPORT RELATED EXPENDITURE,VEHICLE FUEL,3335,ALLSTAR BUSINESS SOLUTIONS LTD,08/10/2021 00:00,251056,277.35,AR0035,ALLSTAR BUSINESS SOLUTIONS LTD,26/7/2021 00:00:00,29/8/2021 00:00:00,P05-2022
P&V,NORTH AREA RANGERS,TRANSPORT RELATED EXPENDITURE,VEHICLE FUEL,3335,ALLSTAR BUSINESS SOLUTIONS LTD,08/10/2021 00:00,251056,83.52,AR0035,ALLSTAR BUSINESS SOLUTIONS LTD,26/7/2021 00:00:00,29/8/2021 00:00:00,P05-2022
P&V,SOUTH AREA RANGERS,TRANSPORT RELATED EXPENDITURE,VEHICLE FUEL,3335,ALLSTAR BUSINESS SOLUTIONS LTD,08/10/2021 00:00,251056,82.92,AR0035,ALLSTAR BUSINESS SOLUTIONS LTD,26/7/2021 00:00:00,29/8/2021 00:00:00,P05-2022
P&V,GUNPOWDER PARK,TRANSPORT RELATED EXPENDITURE,VEHICLE FUEL,3335,ALLSTAR BUSINESS SOLUTIONS LTD,08/10/2021 00:00,251056,96.16,AR0035,ALLSTAR BUSINESS SOLUTIONS LTD,26/7/2021 00:00:00,29/8/2021 00:00:00,P05-2022
P&V,RIVER LEE COUNTRY PARK,TRANSPORT RELATED EXPENDITURE,VEHICLE FUEL,3335,ALLSTAR BUSINESS SOLUTIONS LTD,08/10/2021 00:00,251055,10.45,AR0035,ALLSTAR BUSINESS SOLUTIONS LTD,26/7/2021 00:00:00,29/8/2021 00:00:00,P05-2022
P&V,RIVER LEE COUNTRY PARK,TRANSPORT RELATED EXPENDITURE,VEHICLE FUEL,3335,ALLSTAR BUSINESS SOLUTIONS LTD,08/10/2021 00:00,251056,81.51,AR0035,ALLSTAR BUSINESS SOLUTIONS LTD,26/7/2021 00:00:00,29/8/2021 00:00:00,P05-2022
P&V,RIVER LEE COUNTRY PARK,TRANSPORT RELATED EXPENDITURE,VEHICLE FUEL,3335,ALLSTAR BUSINESS SOLUTIONS LTD,08/10/2021 00:00,251056,538.49,AR0035,ALLSTAR BUSINESS SOLUTIONS LTD,26/7/2021 00:00:00,29/8/2021 00:00:00,P05-2022
,LV LEISURE CENTRE GOLF COURSE,TRANSPORT RELATED EXPENDITURE,VEHICLE FUEL,3335,P113521-SERVICE-fuel for edmonton,29/8/2021 00:00:00,251807,858,HA0400,WATSON FUELS,26/7/2021 00:00:00,29/8/2021 00:00:00,P05-2022
P&V,RIVER LEE COUNTRY PARK,TRANSPORT RELATED EXPENDITURE,VEHICLE REPAIRS & MAINTENANCE,3338,P113409-SERVICE-Mower Tyre Repair,08/09/2021 00:00,250728,10,AD0016,ADVANCE TYRE SERVICE,26/7/2021 00:00:00,29/8/2021 00:00:00,P05-2022
,LV HOCKEY AND TENNIS CENTRE,TRANSPORT RELATED EXPENDITURE,VEHICLE REPAIRS & MAINTENANCE,3338,P113783-SERVICE-labour,29/8/2021 00:00:00,251029,156,AP0245,APS LIMITED,26/7/2021 00:00:00,29/8/2021 00:00:00,P05-2022
,LV HOCKEY AND TENNIS CENTRE,TRANSPORT RELATED EXPENDITURE,VEHICLE REPAIRS & MAINTENANCE,3338,P113783-SERVICE-tyre for buggy,29/8/2021 00:00:00,251029,29.45,AP0245,APS LIMITED,26/7/2021 00:00:00,29/8/2021 00:00:00,P05-2022
P&V,FISHERIES MANAGEMENT,SUPPLIES AND SERVICES,EQUIPMENT & MATERIALS,4111,P113512-SERVICE-Screws,16/8/2021 00:00:00,251327,19.5,JW0004,J & W FENCING LIMITED,26/7/2021 00:00:00,29/8/2021 00:00:00,P05-2022
,LEE VALLEY MARINA STANSTEAD,SUPPLIES AND SERVICES,EQUIPMENT & MATERIALS,4111,P112949-SERVICE-incorrect price given by T&J fire,08/02/2021 00:00,250855,32.4,TJ0009,T.J.FIRE & SECURITY,26/7/2021 00:00:00,29/8/2021 00:00:00,P05-2022
,STANSTEAD RECHARGEABLE WORKS,SUPPLIES AND SERVICES,EQUIPMENT & MATERIALS,4111,P113207-SERVICE-workshop PPE & Supplies,08/02/2021 00:00,250798,502.71,SC0057,SCREWFIX DIRECT LTD,26/7/2021 00:00:00,29/8/2021 00:00:00,P05-2022
,STANSTEAD RECHARGEABLE WORKS,SUPPLIES AND SERVICES,EQUIPMENT & MATERIALS,4111,P112949-SERVICE-2x 2kg co2,08/02/2021 00:00,250855,46.88,TJ0009,T.J.FIRE & SECURITY,26/7/2021 00:00:00,29/8/2021 00:00:00,P05-2022
,STANSTEAD RECHARGEABLE WORKS,SUPPLIES AND SERVICES,EQUIPMENT & MATERIALS,4111,P112988-SERVICE-anodes #727737,08/09/2021 00:00,251098,863,MI0200,MIDLAND CHANDLERS LIMITED,26/7/2021 00:00:00,29/8/2021 00:00:00,P05-2022
,STANSTEAD RECHARGEABLE WORKS,SUPPLIES AND SERVICES,EQUIPMENT & MATERIALS,4111,P113381-SERVICE-Pressure Washer Repair,08/04/2021 00:00,251099,597.73,CL0273,CLEANWELL HIGH PRESSURE WASHER LTD,26/7/2021 00:00:00,29/8/2021 00:00:00,P05-2022
,STANSTEAD RECHARGEABLE WORKS,SUPPLIES AND SERVICES,EQUIPMENT & MATERIALS,4111,P113079-SERVICE-blacking,08/09/2021 00:00,251132,949.92,SM0658,SML PAINTS AND COATINGS,26/7/2021 00:00:00,29/8/2021 00:00:00,P05-2022
,STANSTEAD RECHARGEABLE WORKS,SUPPLIES AND SERVICES,EQUIPMENT & MATERIALS,4111,P113444-SERVICE-propellor,08/09/2021 00:00,251355,331,NO0021,T NORRIS LTD,26/7/2021 00:00:00,29/8/2021 00:00:00,P05-2022
,STANSTEAD RECHARGEABLE WORKS,SUPPLIES AND SERVICES,EQUIPMENT & MATERIALS,4111,P112879-SERVICE-Repair to Tractor tyre and call out,24/8/2021 00:00:00,251469,60,KB0006,KB TYRES LTD,26/7/2021 00:00:00,29/8/2021 00:00:00,P05-2022
,LEE VALLEY CAMPSITE,SUPPLIES AND SERVICES,EQUIPMENT & MATERIALS,4111,P113339-SERVICE-new blades for Kubota,08/03/2021 00:00,250747,493,GE0440,GTEC'S,26/7/2021 00:00:00,29/8/2021 00:00:00,P05-2022
,LEE VALLEY CAMPSITE,SUPPLIES AND SERVICES,EQUIPMENT & MATERIALS,4111,P113450-SERVICE-Jigsaw,08/09/2021 00:00,251051,90.77,SC0057,SCREWFIX DIRECT LTD,26/7/2021 00:00:00,29/8/2021 00:00:00,P05-2022
,LEE VALLEY CAMPSITE,SUPPLIES AND SERVICES,EQUIPMENT & MATERIALS,4111,P112410-SERVICE-Repairs to Play Area,24/8/2021 00:00:00,251635,495,PL0100,PLAYDALE PLAYGROUND LTD,26/7/2021 00:00:00,29/8/2021 00:00:00,P05-2022
,LEE VALLEY CAMPSITE,SUPPLIES AND SERVICES,EQUIPMENT & MATERIALS,4111,P112410-SERVICE-increase order to cover invoice,24/8/2021 00:00:00,251635,92.99,PL0100,PLAYDALE PLAYGROUND LTD,26/7/2021 00:00:00,29/8/2021 00:00:00,P05-2022
,LEE VALLEY CARAVAN PARK,SUPPLIES AND SERVICES,EQUIPMENT & MATERIALS,4111,P113234-SERVICE-Fire extinguisher inspection,29/7/2021 00:00:00,250738,1165.5,TJ0009,T.J.FIRE & SECURITY,26/7/2021 00:00:00,29/8/2021 00:00:00,P05-2022
,LEE VALLEY CARAVAN PARK,SUPPLIES AND SERVICES,EQUIPMENT & MATERIALS,4111,P113405-SERVICE-2 stroke oil,08/09/2021 00:00,250836,8.32,BQ0164,TRADE UK ACCOUNT,26/7/2021 00:00:00,29/8/2021 00:00:00,P05-2022
,LEE VALLEY CARAVAN PARK,SUPPLIES AND SERVICES,EQUIPMENT & MATERIALS,4111,P113237-SERVICE-Cleaning materials,08/09/2021 00:00,250989,452.66,HY0043,HYGIENE SYSTEMS LTD,26/7/2021 00:00:00,29/8/2021 00:00:00,P05-2022
,LEE VALLEY CARAVAN PARK,SUPPLIES AND SERVICES,EQUIPMENT & MATERIALS,4111,P113311-SERVICE-MDF and top soil,24/8/2021 00:00:00,251138,349.3,LE0012,LEASIDE TIMBER & BUILDERS MERCHANTS LTD,26/7/2021 00:00:00,29/8/2021 00:00:00,P05-2022
P&V,MYDDELTON HOUSE GARDENS,SUPPLIES AND SERVICES,EQUIPMENT & MATERIALS,4111,P113506-SERVICE-Pots for Rock Pond,18/8/2021 00:00:00,251615,143.3,CL0093,CLOCKHOUSE NURSERY,26/7/2021 00:00:00,29/8/2021 00:00:00,P05-2022
P&V,NORTH AREA RANGERS,SUPPLIES AND SERVICES,EQUIPMENT & MATERIALS,4111,P111485-SERVICE-Equipment & Materials as and when required,16/8/2021 00:00:00,250782,10.66,JE0011,SAINT-GOBAIN BUILDING DISTRIBUTION,26/7/2021 00:00:00,29/8/2021 00:00:00,P05-2022
P&V,NORTH AREA RANGERS,SUPPLIES AND SERVICES,EQUIPMENT & MATERIALS,4111,P113224-SERVICE-Supply Barley Straw,18/8/2021 00:00:00,250794,315,MA0002,GTM RURAL  ENTERPRISES LIMITED,26/7/2021 00:00:00,29/8/2021 00:00:00,P05-2022
P&V,NORTH AREA RANGERS,SUPPLIES AND SERVICES,EQUIPMENT & MATERIALS,4111,P111484-SERVICE-Equipment & Materials as and when required,16/8/2021 00:00:00,251328,9.95,JW0004,J & W FENCING LIMITED,26/7/2021 00:00:00,29/8/2021 00:00:00,P05-2022
P&V,SOUTH AREA RANGERS,SUPPLIES AND SERVICES,EQUIPMENT & MATERIALS,4111,P111577-SERVICE-10x Disposable Chemical Coveralls - 307JAA110,08/03/2021 00:00,250305,0.08,SE0018,BRADY CORPORATION LIMITED/SETON,26/7/2021 00:00:00,29/8/2021 00:00:00,P05-2022
P&V,SOUTH AREA RANGERS,SUPPLIES AND SERVICES,EQUIPMENT & MATERIALS,4111,P111577-SERVICE-1x Saline Eye Wash  500ml - FAD2166,08/03/2021 00:00,250305,1.99,SE0018,BRADY CORPORATION LIMITED/SETON,26/7/2021 00:00:00,29/8/2021 00:00:00,P05-2022
P&V,SOUTH AREA RANGERS,SUPPLIES AND SERVICES,EQUIPMENT & MATERIALS,4111,P111577-SERVICE-2x Standard Face Shields - 86151041000,08/03/2021 00:00,250305,0.92,SE0018,BRADY CORPORATION LIMITED/SETON,26/7/2021 00:00:00,29/8/2021 00:00:00,P05-2022
P&V,SOUTH AREA RANGERS,SUPPLIES AND SERVICES,EQUIPMENT & MATERIALS,4111,P113533-SERVICE-2x Topper Mower Belts Replacements,24/8/2021 00:00:00,251794,49.9,QU0014,QUAD-X,26/7/2021 00:00:00,29/8/2021 00:00:00,P05-2022
P&V,SOUTH AREA RANGERS,SUPPLIES AND SERVICES,EQUIPMENT & MATERIALS,4111,P113533-SERVICE-DELIVERY,24/8/2021 00:00:00,251794,19.95,QU0014,QUAD-X,26/7/2021 00:00:00,29/8/2021 00:00:00,P05-2022
P&V,RIVER LEE COUNTRY PARK,SUPPLIES AND SERVICES,EQUIPMENT & MATERIALS,4111,P112563-SERVICE-2x Heavy Duty Staple Gun - SB50078,08/05/2021 00:00,250009,57.36,TH0008,JKL SOLUTIONS LTD,26/7/2021 00:00:00,29/8/2021 00:00:00,P05-2022
P&V,RIVER LEE COUNTRY PARK,SUPPLIES AND SERVICES,EQUIPMENT & MATERIALS,4111,P112563-SERVICE-5x Heavy Duty Staples - SB54274,08/05/2021 00:00,250009,16.25,TH0008,JKL SOLUTIONS LTD,26/7/2021 00:00:00,29/8/2021 00:00:00,P05-2022
P&V,RIVER LEE COUNTRY PARK,SUPPLIES AND SERVICES,EQUIPMENT & MATERIALS,4111,P113524-SERVICE-2x Dunlop Acifort Ribbed Full Safety Chest Wa,24/8/2021 00:00:00,251821,199.2,GR0020,GREENHAM TRADING LIMITED,26/7/2021 00:00:00,29/8/2021 00:00:00,P05-2022
,LEE VALLEY VELOPARK,SUPPLIES AND SERVICES,EQUIPMENT & MATERIALS,4111,P113413-SERVICE-Wristband Redelivery Fee,25/8/2021 00:00:00,245938,11,JC0052,JC LEISURE CONNEXIONS LTD,26/7/2021 00:00:00,29/8/2021 00:00:00,P05-2022
,LEE VALLEY VELOPARK,SUPPLIES AND SERVICES,EQUIPMENT & MATERIALS,4111,P113117-SERVICE-CCTV Rental 1 Jul - 30 Sep,24/8/2021 00:00:00,249961,10914.78,ST0642,STANLEY SECURITY SOLUTIONS LTD,26/7/2021 00:00:00,29/8/2021 00:00:00,P05-2022
,LEE VALLEY VELOPARK,SUPPLIES AND SERVICES,EQUIPMENT & MATERIALS,4111,P113118-SERVICE-Supply & Installation of CCTV,08/02/2021 00:00,249962,1956.6,ST0642,STANLEY SECURITY SOLUTIONS LTD,26/7/2021 00:00:00,29/8/2021 00:00:00,P05-2022
,LV HOCKEY AND TENNIS CENTRE,SUPPLIES AND SERVICES,EQUIPMENT & MATERIALS,4111,P113779-SERVICE-suremix cylinders x 3,29/8/2021 00:00:00,251046,16.8,BO0015,BOC LTD,26/7/2021 00:00:00,29/8/2021 00:00:00,P05-2022
,LEE VALLEY RIDING CENTRE,SUPPLIES AND SERVICES,EQUIPMENT & MATERIALS,4111,P113192-SERVICE-fly rug,17/8/2021 00:00:00,250812,35.9,JE0001,B JENKINSON & SONS LTD,26/7/2021 00:00:00,29/8/2021 00:00:00,P05-2022
,LEE VALLEY RIDING CENTRE,SUPPLIES AND SERVICES,EQUIPMENT & MATERIALS,4111,P113192-SERVICE-one bit,17/8/2021 00:00:00,250812,16.15,JE0001,B JENKINSON & SONS LTD,26/7/2021 00:00:00,29/8/2021 00:00:00,P05-2022
,LEE VALLEY RIDING CENTRE,SUPPLIES AND SERVICES,EQUIPMENT & MATERIALS,4111,P113390-SERVICE-customer hats,24/8/2021 00:00:00,251256,398,SN0030,SNOWHILL LIMITED,26/7/2021 00:00:00,29/8/2021 00:00:00,P05-2022
,LEE VALLEY RIDING CENTRE,SUPPLIES AND SERVICES,EQUIPMENT & MATERIALS,4111,P113498-SERVICE-25 litre reproof,17/8/2021 00:00:00,251464,254.66,JL0014,JLA LIMITED,26/7/2021 00:00:00,29/8/2021 00:00:00,P05-2022
,LEE VALLEY RIDING CENTRE,SUPPLIES AND SERVICES,EQUIPMENT & MATERIALS,4111,P113498-SERVICE-x3 detergent x2 reproof,17/8/2021 00:00:00,251464,180,JL0014,JLA LIMITED,26/7/2021 00:00:00,29/8/2021 00:00:00,P05-2022
,LEE VALLEY RIDING CENTRE,SUPPLIES AND SERVICES,EQUIPMENT & MATERIALS,4111,P113505-SERVICE-pig oil and sulphur x 2,17/8/2021 00:00:00,251586,28,JE0001,B JENKINSON & SONS LTD,26/7/2021 00:00:00,29/8/2021 00:00:00,P05-2022
,LEE VALLEY RIDING CENTRE,SUPPLIES AND SERVICES,EQUIPMENT & MATERIALS,4111,P113505-SERVICE-adult leathers x 3,17/8/2021 00:00:00,251586,64.5,JE0001,B JENKINSON & SONS LTD,26/7/2021 00:00:00,29/8/2021 00:00:00,P05-2022
,LEE VALLEY RIDING CENTRE,SUPPLIES AND SERVICES,EQUIPMENT & MATERIALS,4111,P113505-SERVICE-stirrup leathers x 3,17/8/2021 00:00:00,251586,46.05,JE0001,B JENKINSON & SONS LTD,26/7/2021 00:00:00,29/8/2021 00:00:00,P05-2022
,LEE VALLEY RIDING CENTRE,SUPPLIES AND SERVICES,EQUIPMENT & MATERIALS,4111,P113505-SERVICE-triscrub 5 litres,17/8/2021 00:00:00,251586,15,JE0001,B JENKINSON & SONS LTD,26/7/2021 00:00:00,29/8/2021 00:00:00,P05-2022
,LEE VALLEY RIDING CENTRE,SUPPLIES AND SERVICES,EQUIPMENT & MATERIALS,4111,P113505-SERVICE-cob snaffle bridle,17/8/2021 00:00:00,251586,32.5,JE0001,B JENKINSON & SONS LTD,26/7/2021 00:00:00,29/8/2021 00:00:00,P05-2022
,LEE VALLEY RIDING CENTRE,SUPPLIES AND SERVICES,EQUIPMENT & MATERIALS,4111,P113505-SERVICE-full size stirrup leathers x 4,17/8/2021 00:00:00,251586,90.6,JE0001,B JENKINSON & SONS LTD,26/7/2021 00:00:00,29/8/2021 00:00:00,P05-2022
,LEE VALLEY RIDING CENTRE,SUPPLIES AND SERVICES,EQUIPMENT & MATERIALS,4111,P113505-SERVICE-assorted size girths,17/8/2021 00:00:00,251586,79.2,JE0001,B JENKINSON & SONS LTD,26/7/2021 00:00:00,29/8/2021 00:00:00,P05-2022
,LEE VALLEY RIDING CENTRE,SUPPLIES AND SERVICES,EQUIPMENT & MATERIALS,4111,P113580-SERVICE-saddle dor riding school,24/8/2021 00:00:00,251764,450,WA0274,NICOLA WARD,26/7/2021 00:00:00,29/8/2021 00:00:00,P05-2022
,LEE VALLEY VELOPARK CATERING,SUPPLIES AND SERVICES,EQUIPMENT & MATERIALS,4111,P113412-SERVICE-Osborne Bottle Bar Fridge,25/8/2021 00:00:00,251420,1060,PO0412,PROTOCOOL LIMITED,26/7/2021 00:00:00,29/8/2021 00:00:00,P05-2022
,LV LEISURE CENTRE CAMPSITE,SUPPLIES AND SERVICES,EQUIPMENT & MATERIALS,4111,P112060-SERVICE-Firewood & charcoal,08/02/2021 00:00,251009,99,HA0371,HARTS OF OAK,26/7/2021 00:00:00,29/8/2021 00:00:00,P05-2022
,LV LEISURE CENTRE CAMPSITE,SUPPLIES AND SERVICES,EQUIPMENT & MATERIALS,4111,P113439-SERVICE-Materials,08/09/2021 00:00,251048,36.82,BQ0164,TRADE UK ACCOUNT,26/7/2021 00:00:00,29/8/2021 00:00:00,P05-2022
,LV LEISURE CENTRE CAMPSITE,SUPPLIES AND SERVICES,EQUIPMENT & MATERIALS,4111,P113437-SERVICE-Maintenance supplies,08/09/2021 00:00,251114,96.89,BQ0164,TRADE UK ACCOUNT,26/7/2021 00:00:00,29/8/2021 00:00:00,P05-2022
,LV LEISURE CENTRE CAMPSITE,SUPPLIES AND SERVICES,EQUIPMENT & MATERIALS,4111,P113671-SERVICE-Equipment and materials,29/8/2021 00:00:00,251771,49.57,BQ0164,TRADE UK ACCOUNT,26/7/2021 00:00:00,29/8/2021 00:00:00,P05-2022
,LV LEISURE CENTRE CAMPSITE,SUPPLIES AND SERVICES,EQUIPMENT & MATERIALS,4111,P113672-SERVICE-Equipment and materials,29/8/2021 00:00:00,251935,60.9,BQ0164,TRADE UK ACCOUNT,26/7/2021 00:00:00,29/8/2021 00:00:00,P05-2022
,LV LEISURE CENTRE GOLF COURSE,SUPPLIES AND SERVICES,EQUIPMENT & MATERIALS,4111,P113295-SERVICE-Equipment for campsites,08/02/2021 00:00,249675,16.67,AM0406,AMAZON PAYMENTS UK LIMITED,26/7/2021 00:00:00,29/8/2021 00:00:00,P05-2022
,LV LEISURE CENTRE GOLF COURSE,SUPPLIES AND SERVICES,EQUIPMENT & MATERIALS,4111,P113252-SERVICE-Equipment for campsites,29/7/2021 00:00:00,249676,95.82,AM0406,AMAZON PAYMENTS UK LIMITED,26/7/2021 00:00:00,29/8/2021 00:00:00,P05-2022
,LV LEISURE CENTRE GOLF COURSE,SUPPLIES AND SERVICES,EQUIPMENT & MATERIALS,4111,P113295-SERVICE-Equipment for campsites,08/02/2021 00:00,249677,14.07,AM0406,AMAZON PAYMENTS UK LIMITED,26/7/2021 00:00:00,29/8/2021 00:00:00,P05-2022
,LV LEISURE CENTRE GOLF COURSE,SUPPLIES AND SERVICES,EQUIPMENT & MATERIALS,4111,P113295-SERVICE-Equipment for campsites,08/02/2021 00:00,249678,24.99,AM0406,AMAZON PAYMENTS UK LIMITED,26/7/2021 00:00:00,29/8/2021 00:00:00,P05-2022
,LV LEISURE CENTRE GOLF COURSE,SUPPLIES AND SERVICES,EQUIPMENT & MATERIALS,4111,P113295-SERVICE-Equipment for campsites,08/02/2021 00:00,249679,14.16,AM0406,AMAZON PAYMENTS UK LIMITED,26/7/2021 00:00:00,29/8/2021 00:00:00,P05-2022
,LV LEISURE CENTRE GOLF COURSE,SUPPLIES AND SERVICES,EQUIPMENT & MATERIALS,4111,P113295-SERVICE-Equipment for campsites,08/02/2021 00:00,250205,95.82,AM0406,AMAZON PAYMENTS UK LIMITED,26/7/2021 00:00:00,29/8/2021 00:00:00,P05-2022
,LV LEISURE CENTRE GOLF COURSE,SUPPLIES AND SERVICES,EQUIPMENT & MATERIALS,4111,P113297-SERVICE-bedding for dobbs,08/02/2021 00:00,250259,20.24,AM0406,AMAZON PAYMENTS UK LIMITED,26/7/2021 00:00:00,29/8/2021 00:00:00,P05-2022
,LV LEISURE CENTRE GOLF COURSE,SUPPLIES AND SERVICES,EQUIPMENT & MATERIALS,4111,P113299-SERVICE-phs services,08/02/2021 00:00,250312,142.29,PE0015,PHS GROUP PLC,26/7/2021 00:00:00,29/8/2021 00:00:00,P05-2022
,LV LEISURE CENTRE GOLF COURSE,SUPPLIES AND SERVICES,EQUIPMENT & MATERIALS,4111,P113286-SERVICE-furniture,08/02/2021 00:00,250764,30.5,MR0420,MR AMENITY LTD,26/7/2021 00:00:00,29/8/2021 00:00:00,P05-2022
,LV LEISURE CENTRE GOLF COURSE,SUPPLIES AND SERVICES,EQUIPMENT & MATERIALS,4111,P113255-SERVICE-Wheels for wheelbarrow,08/02/2021 00:00,250868,34.48,AM0406,AMAZON PAYMENTS UK LIMITED,26/7/2021 00:00:00,29/8/2021 00:00:00,P05-2022
,LV LEISURE CENTRE GOLF COURSE,SUPPLIES AND SERVICES,EQUIPMENT & MATERIALS,4111,P113253-SERVICE-office chair,08/02/2021 00:00,250869,74.98,AM0406,AMAZON PAYMENTS UK LIMITED,26/7/2021 00:00:00,29/8/2021 00:00:00,P05-2022
,LV LEISURE CENTRE GOLF COURSE,SUPPLIES AND SERVICES,EQUIPMENT & MATERIALS,4111,P113430-SERVICE-BED FOR SEWARDSTONE,16/8/2021 00:00:00,251380,41.67,AM0406,AMAZON PAYMENTS UK LIMITED,26/7/2021 00:00:00,29/8/2021 00:00:00,P05-2022
,LV LEISURE CENTRE GOLF COURSE,SUPPLIES AND SERVICES,EQUIPMENT & MATERIALS,4111,P113429-SERVICE-EDMONTON SUPPLIES,16/8/2021 00:00:00,251381,5.41,AM0406,AMAZON PAYMENTS UK LIMITED,26/7/2021 00:00:00,29/8/2021 00:00:00,P05-2022
,LV LEISURE CENTRE GOLF COURSE,SUPPLIES AND SERVICES,EQUIPMENT & MATERIALS,4111,P113429-SERVICE-EDMONTON SUPPLIES,16/8/2021 00:00:00,251382,41.67,AM0406,AMAZON PAYMENTS UK LIMITED,26/7/2021 00:00:00,29/8/2021 00:00:00,P05-2022
,LV LEISURE CENTRE GOLF COURSE,SUPPLIES AND SERVICES,EQUIPMENT & MATERIALS,4111,P113429-SERVICE-EDMONTON SUPPLIES,16/8/2021 00:00:00,251383,41.67,AM0406,AMAZON PAYMENTS UK LIMITED,26/7/2021 00:00:00,29/8/2021 00:00:00,P05-2022
,LV LEISURE CENTRE GOLF COURSE,SUPPLIES AND SERVICES,EQUIPMENT & MATERIALS,4111,P113394-SERVICE-Equipment for campsites,17/8/2021 00:00:00,251456,41.67,AM0406,AMAZON PAYMENTS UK LIMITED,26/7/2021 00:00:00,29/8/2021 00:00:00,P05-2022
,LV LEISURE CENTRE GOLF COURSE,SUPPLIES AND SERVICES,EQUIPMENT & MATERIALS,4111,P113394-SERVICE-Equipment for campsites,17/8/2021 00:00:00,251457,131.58,AM0406,AMAZON PAYMENTS UK LIMITED,26/7/2021 00:00:00,29/8/2021 00:00:00,P05-2022
,LV LEISURE CENTRE GOLF COURSE,SUPPLIES AND SERVICES,EQUIPMENT & MATERIALS,4111,P113515-SERVICE-mats for woodlands and cocoons,17/8/2021 00:00:00,251600,31.96,AM0406,AMAZON PAYMENTS UK LIMITED,26/7/2021 00:00:00,29/8/2021 00:00:00,P05-2022
,LV LEISURE CENTRE GOLF COURSE,SUPPLIES AND SERVICES,EQUIPMENT & MATERIALS,4111,P113545-SERVICE-signage,18/8/2021 00:00:00,251626,24.74,AM0406,AMAZON PAYMENTS UK LIMITED,26/7/2021 00:00:00,29/8/2021 00:00:00,P05-2022
,LV LEISURE CENTRE GOLF COURSE,SUPPLIES AND SERVICES,EQUIPMENT & MATERIALS,4111,P113570-SERVICE-hot plates for campsite,26/8/2021 00:00:00,251868,65.8,AM0406,AMAZON PAYMENTS UK LIMITED,26/7/2021 00:00:00,29/8/2021 00:00:00,P05-2022
,LV LEISURE CENTRE GOLF COURSE,SUPPLIES AND SERVICES,EQUIPMENT & MATERIALS,4111,P113545-SERVICE-signage,26/8/2021 00:00:00,251869,18.7,AM0406,AMAZON PAYMENTS UK LIMITED,26/7/2021 00:00:00,29/8/2021 00:00:00,P05-2022
,LV LEISURE CENTRE GOLF COURSE,SUPPLIES AND SERVICES,EQUIPMENT & MATERIALS,4111,P113544-SERVICE-beds,26/8/2021 00:00:00,251870,271.5,AM0406,AMAZON PAYMENTS UK LIMITED,26/7/2021 00:00:00,29/8/2021 00:00:00,P05-2022
,LV LEISURE CENTRE GOLF COURSE,SUPPLIES AND SERVICES,EQUIPMENT & MATERIALS,4111,P113547-SERVICE-signs,26/8/2021 00:00:00,251871,20.28,AM0406,AMAZON PAYMENTS UK LIMITED,26/7/2021 00:00:00,29/8/2021 00:00:00,P05-2022
,LV LEISURE CENTRE GOLF COURSE,SUPPLIES AND SERVICES,EQUIPMENT & MATERIALS,4111,P113599-SERVICE-inner tube for campsite,26/8/2021 00:00:00,251873,27.98,AM0406,AMAZON PAYMENTS UK LIMITED,26/7/2021 00:00:00,29/8/2021 00:00:00,P05-2022
,LV LEISURE CENTRE GOLF COURSE,SUPPLIES AND SERVICES,EQUIPMENT & MATERIALS,4111,P113598-SERVICE-campsite materials,26/8/2021 00:00:00,251874,4.9,AM0406,AMAZON PAYMENTS UK LIMITED,26/7/2021 00:00:00,29/8/2021 00:00:00,P05-2022
,LV LEISURE CENTRE GOLF COURSE,SUPPLIES AND SERVICES,EQUIPMENT & MATERIALS,4111,P113598-SERVICE-campsite materials,26/8/2021 00:00:00,251875,33.24,AM0406,AMAZON PAYMENTS UK LIMITED,26/7/2021 00:00:00,29/8/2021 00:00:00,P05-2022
,LV LEISURE CENTRE GOLF COURSE,SUPPLIES AND SERVICES,EQUIPMENT & MATERIALS,4111,P113598-SERVICE-campsite materials,26/8/2021 00:00:00,251876,5.04,AM0406,AMAZON PAYMENTS UK LIMITED,26/7/2021 00:00:00,29/8/2021 00:00:00,P05-2022
,LEE VALLEY ATHLETICS CENTRE,SUPPLIES AND SERVICES,EQUIPMENT & MATERIALS,4111,P112492-SERVICE-LVAC 100 X 6MM NEEDLE SPIKES,28/7/2021 00:00:00,250828,108.3,NE0084,NEUFF ATHLETIC EQUIPMENT LTD,26/7/2021 00:00:00,29/8/2021 00:00:00,P05-2022
,LEE VALLEY ATHLETICS CENTRE,SUPPLIES AND SERVICES,EQUIPMENT & MATERIALS,4111,P113361-SERVICE-LVAC OLYMPIC POLE UPRIGHT TAPE INV 475,08/04/2021 00:00,251016,100,AR0476,ARH SPORTS EQUIPMETN LIMITED,26/7/2021 00:00:00,29/8/2021 00:00:00,P05-2022
,LEE VALLEY ATHLETICS CENTRE,SUPPLIES AND SERVICES,EQUIPMENT & MATERIALS,4111,P108237-SERVICE-12 Litres of Disinfectent Fogger,29/8/2021 00:00:00,251765,275,SH0649,SHIELD MEDICA LIMITED,26/7/2021 00:00:00,29/8/2021 00:00:00,P05-2022
,LEE VALLEY ATHLETICS CENTRE,SUPPLIES AND SERVICES,EQUIPMENT & MATERIALS,4111,P109485-SERVICE-Medicine Balls and Dumb bells,25/8/2021 00:00:00,251926,183.81,JO0158,JORDAN FITNESS LTD,26/7/2021 00:00:00,29/8/2021 00:00:00,P05-2022
,LEE VALLEY WHITE WATER CENTRE,SUPPLIES AND SERVICES,EQUIPMENT & MATERIALS,4111,P113213-SERVICE-Fins,08/02/2021 00:00,250795,515.7,AM0406,AMAZON PAYMENTS UK LIMITED,26/7/2021 00:00:00,29/8/2021 00:00:00,P05-2022
,LEE VALLEY WHITE WATER CENTRE,SUPPLIES AND SERVICES,EQUIPMENT & MATERIALS,4111,P113214-SERVICE-Hand Sanitiser machines,08/02/2021 00:00,250796,46.64,AM0406,AMAZON PAYMENTS UK LIMITED,26/7/2021 00:00:00,29/8/2021 00:00:00,P05-2022
,LEE VALLEY WHITE WATER CENTRE,SUPPLIES AND SERVICES,EQUIPMENT & MATERIALS,4111,P113427-SERVICE-Headphones,18/8/2021 00:00:00,251378,19.99,AM0406,AMAZON PAYMENTS UK LIMITED,26/7/2021 00:00:00,29/8/2021 00:00:00,P05-2022
,LEE VALLEY WHITE WATER CENTRE,SUPPLIES AND SERVICES,EQUIPMENT & MATERIALS,4111,P113445-SERVICE-Delivery,18/8/2021 00:00:00,251470,10,WA0300,WATER RESCUE SYSTEMS LTD,26/7/2021 00:00:00,29/8/2021 00:00:00,P05-2022
,LEE VALLEY WHITE WATER CENTRE,SUPPLIES AND SERVICES,EQUIPMENT & MATERIALS,4111,P113445-SERVICE-2 x WRS Barrel Pump,18/8/2021 00:00:00,251470,169.1,WA0300,WATER RESCUE SYSTEMS LTD,26/7/2021 00:00:00,29/8/2021 00:00:00,P05-2022
,LEE VALLEY WHITE WATER CENTRE,SUPPLIES AND SERVICES,EQUIPMENT & MATERIALS,4111,P111825-SERVICE-Mats and Equipment blanket order for MR and J,24/8/2021 00:00:00,251773,9.07,AM0406,AMAZON PAYMENTS UK LIMITED,26/7/2021 00:00:00,29/8/2021 00:00:00,P05-2022
,LEE VALLEY WHITE WATER CENTRE,SUPPLIES AND SERVICES,EQUIPMENT & MATERIALS,4111,P111825-SERVICE-Mats and Equipment blanket order for MR and J,24/8/2021 00:00:00,251857,26.46,AM0406,AMAZON PAYMENTS UK LIMITED,26/7/2021 00:00:00,29/8/2021 00:00:00,P05-2022
,LEE VALLEY WHITE WATER CENTRE,SUPPLIES AND SERVICES,EQUIPMENT & MATERIALS,4111,P113616-SERVICE-pallet wrap,24/8/2021 00:00:00,251858,13.24,AM0406,AMAZON PAYMENTS UK LIMITED,26/7/2021 00:00:00,29/8/2021 00:00:00,P05-2022
,LEE VALLEY WHITE WATER CENTRE,SUPPLIES AND SERVICES,EQUIPMENT & MATERIALS,4111,P113616-SERVICE-Ice scoop,24/8/2021 00:00:00,251860,9.96,AM0406,AMAZON PAYMENTS UK LIMITED,26/7/2021 00:00:00,29/8/2021 00:00:00,P05-2022
,LEE VALLEY WHITE WATER CENTRE,SUPPLIES AND SERVICES,EQUIPMENT & MATERIALS,4111,P113627-SERVICE-Headphones,24/8/2021 00:00:00,251861,21.66,AM0406,AMAZON PAYMENTS UK LIMITED,26/7/2021 00:00:00,29/8/2021 00:00:00,P05-2022
,LEE VALLEY WHITE WATER CENTRE,SUPPLIES AND SERVICES,EQUIPMENT & MATERIALS,4111,P111825-SERVICE-Mats and Equipment blanket order for MR and J,24/8/2021 00:00:00,251862,11.64,AM0406,AMAZON PAYMENTS UK LIMITED,26/7/2021 00:00:00,29/8/2021 00:00:00,P05-2022
,LEE VALLEY WHITE WATER CENTRE,SUPPLIES AND SERVICES,EQUIPMENT & MATERIALS,4111,P113428-SERVICE-Litter pickers,24/8/2021 00:00:00,251864,0.52,AM0406,AMAZON PAYMENTS UK LIMITED,26/7/2021 00:00:00,29/8/2021 00:00:00,P05-2022
,LEE VALLEY WHITE WATER CENTRE,SUPPLIES AND SERVICES,EQUIPMENT & MATERIALS,4111,P111825-SERVICE-Mats and Equipment blanket order for MR and J,24/8/2021 00:00:00,251865,61.74,AM0406,AMAZON PAYMENTS UK LIMITED,26/7/2021 00:00:00,29/8/2021 00:00:00,P05-2022
,LEE VALLEY WHITE WATER CENTRE,SUPPLIES AND SERVICES,EQUIPMENT & MATERIALS,4111,P113582-SERVICE-Duct tape and parcel tape,24/8/2021 00:00:00,251866,10.82,AM0406,AMAZON PAYMENTS UK LIMITED,26/7/2021 00:00:00,29/8/2021 00:00:00,P05-2022
,LEE VALLEY WHITE WATER CENTRE,SUPPLIES AND SERVICES,EQUIPMENT & MATERIALS,4111,P113582-SERVICE-Duct tape and parcel tape,24/8/2021 00:00:00,251867,8.32,AM0406,AMAZON PAYMENTS UK LIMITED,26/7/2021 00:00:00,29/8/2021 00:00:00,P05-2022
,LEE VALLEY WHITE WATER CENTRE,SUPPLIES AND SERVICES,EQUIPMENT & MATERIALS,4111,P111825-SERVICE-Mats and Equipment blanket order for MR and J,24/8/2021 00:00:00,251939,26.64,AM0406,AMAZON PAYMENTS UK LIMITED,26/7/2021 00:00:00,29/8/2021 00:00:00,P05-2022
,LEE VALLEY WHITE WATER CENTRE,SUPPLIES AND SERVICES,EQUIPMENT & MATERIALS,4111,P111825-SERVICE-Mats and Equipment blanket order for MR and J,24/8/2021 00:00:00,251940,79.96,AM0406,AMAZON PAYMENTS UK LIMITED,26/7/2021 00:00:00,29/8/2021 00:00:00,P05-2022
,LV WHITE WATER CATERING,SUPPLIES AND SERVICES,EQUIPMENT & MATERIALS,4111,P113620-SERVICE-Hire of BBQ on 28.08.21,25/8/2021 00:00:00,251840,364.68,AL0478,ALLENS CATERING EQUIPMENT & FURNITURE HIRE,26/7/2021 00:00:00,29/8/2021 00:00:00,P05-2022
CEO,COMMERCIAL ACCOMMODATION,SUPPLIES AND SERVICES,EQUIPMENT MAINTENANCE,4112,CHAMBERLAIN OF LONDON,08/09/2021 00:00,250813,10,LO0128,CHAMBERLAIN OF LONDON,26/7/2021 00:00:00,29/8/2021 00:00:00,P05-2022
CEO,COMMERCIAL ACCOMMODATION,SUPPLIES AND SERVICES,EQUIPMENT MAINTENANCE,4112,CHAMBERLAIN OF LONDON,08/09/2021 00:00,250814,250,LO0128,CHAMBERLAIN OF LONDON,26/7/2021 00:00:00,29/8/2021 00:00:00,P05-2022
CEO,COMMERCIAL ACCOMMODATION,SUPPLIES AND SERVICES,EQUIPMENT MAINTENANCE,4112,CHAMBERLAIN OF LONDON,18/8/2021 00:00:00,251416,10,LO0128,CHAMBERLAIN OF LONDON,26/7/2021 00:00:00,29/8/2021 00:00:00,P05-2022
,LEE VALLEY CAMPSITE,SUPPLIES AND SERVICES,EQUIPMENT MAINTENANCE,4112,P113338-SERVICE-field distribution board tripping,08/03/2021 00:00,250765,80,BR0018,BRADSHAW ELECTRICAL LIMITED,26/7/2021 00:00:00,29/8/2021 00:00:00,P05-2022
,LEE VALLEY CAMPSITE,SUPPLIES AND SERVICES,EQUIPMENT MAINTENANCE,4112,P113338-SERVICE-plot 25 repace faulty meter,08/03/2021 00:00,250765,80,BR0018,BRADSHAW ELECTRICAL LIMITED,26/7/2021 00:00:00,29/8/2021 00:00:00,P05-2022
,LEE VALLEY CAMPSITE,SUPPLIES AND SERVICES,EQUIPMENT MAINTENANCE,4112,P113338-SERVICE-reset and test disabled toilet alarm,08/03/2021 00:00,250765,30,BR0018,BRADSHAW ELECTRICAL LIMITED,26/7/2021 00:00:00,29/8/2021 00:00:00,P05-2022
,LEE VALLEY CAMPSITE,SUPPLIES AND SERVICES,EQUIPMENT MAINTENANCE,4112,P113453-SERVICE-Meter install P10/32,08/09/2021 00:00,251312,200,BR0018,BRADSHAW ELECTRICAL LIMITED,26/7/2021 00:00:00,29/8/2021 00:00:00,P05-2022
,LEE VALLEY CAMPSITE,SUPPLIES AND SERVICES,EQUIPMENT MAINTENANCE,4112,P113469-SERVICE-Annual Maintenace checks 2021,16/8/2021 00:00:00,251628,916.65,TJ0009,T.J.FIRE & SECURITY,26/7/2021 00:00:00,29/8/2021 00:00:00,P05-2022
,LEE VALLEY CAMPSITE,SUPPLIES AND SERVICES,EQUIPMENT MAINTENANCE,4112,P113796-SERVICE-Reception Bollard light repair,29/8/2021 00:00:00,252008,90,BR0018,BRADSHAW ELECTRICAL LIMITED,26/7/2021 00:00:00,29/8/2021 00:00:00,P05-2022
,LEE VALLEY CARAVAN PARK,SUPPLIES AND SERVICES,EQUIPMENT MAINTENANCE,4112,P113307-SERVICE-blocked drain,29/7/2021 00:00:00,250726,340,CO0550,CONVERT WATER LTD,26/7/2021 00:00:00,29/8/2021 00:00:00,P05-2022
,LEE VALLEY CARAVAN PARK,SUPPLIES AND SERVICES,EQUIPMENT MAINTENANCE,4112,P113456-SERVICE-Attend lightening damage,08/09/2021 00:00,251311,190,BR0018,BRADSHAW ELECTRICAL LIMITED,26/7/2021 00:00:00,29/8/2021 00:00:00,P05-2022
,LEE VALLEY CARAVAN PARK,SUPPLIES AND SERVICES,EQUIPMENT MAINTENANCE,4112,P113668-SERVICE-Call out entrance barrier,24/8/2021 00:00:00,251459,325,AU0245,AUTO-MATE SYSTEMS LIMITED,26/7/2021 00:00:00,29/8/2021 00:00:00,P05-2022
,LEE VALLEY CARAVAN PARK,SUPPLIES AND SERVICES,EQUIPMENT MAINTENANCE,4112,P113691-SERVICE-Change coin mech on dryer,25/8/2021 00:00:00,251461,502.89,AL0434,ALLSOP & FRANCIS,26/7/2021 00:00:00,29/8/2021 00:00:00,P05-2022
,LEE VALLEY CARAVAN PARK,SUPPLIES AND SERVICES,EQUIPMENT MAINTENANCE,4112,P113420-SERVICE-Mower service and oil change,24/8/2021 00:00:00,251577,138,GE0440,GTEC'S,26/7/2021 00:00:00,29/8/2021 00:00:00,P05-2022
,LEE VALLEY CARAVAN PARK,SUPPLIES AND SERVICES,EQUIPMENT MAINTENANCE,4112,P113756-SERVICE-micro tanker to unblock foul line,26/8/2021 00:00:00,251912,220,CO0550,CONVERT WATER LTD,26/7/2021 00:00:00,29/8/2021 00:00:00,P05-2022
P&V,SOUTH AREA RANGERS,SUPPLIES AND SERVICES,EQUIPMENT MAINTENANCE,4112,P113535-SERVICE-BCS Mower Repairs - Replaced Partially Sheare,24/8/2021 00:00:00,251797,459.5,AP0245,APS LIMITED,26/7/2021 00:00:00,29/8/2021 00:00:00,P05-2022
P&V,RIVER LEE COUNTRY PARK,SUPPLIES AND SERVICES,EQUIPMENT MAINTENANCE,4112,"P113226-SERVICE-Repairs to Anode, Plug and Control Box as per",18/8/2021 00:00:00,250793,80,EL0156,ELECTRAFISH LIMITED,26/7/2021 00:00:00,29/8/2021 00:00:00,P05-2022
P&V,RIVER LEE COUNTRY PARK,SUPPLIES AND SERVICES,EQUIPMENT MAINTENANCE,4112,P113226-SERVICE-Testing Electrical Fishing Gear at Lee Valley,18/8/2021 00:00:00,250793,540,EL0156,ELECTRAFISH LIMITED,26/7/2021 00:00:00,29/8/2021 00:00:00,P05-2022
P&V,RIVER LEE COUNTRY PARK,SUPPLIES AND SERVICES,EQUIPMENT MAINTENANCE,4112,P113511-SERVICE-Annual Chipper Service,16/8/2021 00:00:00,251354,787.46,GR0146,GREEN PLANT UK LTD,26/7/2021 00:00:00,29/8/2021 00:00:00,P05-2022
,LEE VALLEY VELOPARK,SUPPLIES AND SERVICES,EQUIPMENT MAINTENANCE,4112,P112519-SERVICE-Castor Replacement,08/09/2021 00:00,251065,191.88,BR0025,BREEZE SOUTHERN LTD,26/7/2021 00:00:00,29/8/2021 00:00:00,P05-2022
,LEE VALLEY VELOPARK,SUPPLIES AND SERVICES,EQUIPMENT MAINTENANCE,4112,P113383-SERVICE-John Deere Service and Battery Replacement,25/8/2021 00:00:00,251301,636.3,AP0245,APS LIMITED,26/7/2021 00:00:00,29/8/2021 00:00:00,P05-2022
,LEE VALLEY VELOPARK CATERING,SUPPLIES AND SERVICES,EQUIPMENT MAINTENANCE,4112,P113288-SERVICE-Refrigeration Service,26/8/2021 00:00:00,251047,2723,PO0412,PROTOCOOL LIMITED,26/7/2021 00:00:00,29/8/2021 00:00:00,P05-2022
,LEE VALLEY VELOPARK CATERING,SUPPLIES AND SERVICES,EQUIPMENT MAINTENANCE,4112,P113414-SERVICE-Catering Equipment Maintenance,25/8/2021 00:00:00,251417,998.97,PO0412,PROTOCOOL LIMITED,26/7/2021 00:00:00,29/8/2021 00:00:00,P05-2022
,LV LEISURE CENTRE CAMPSITE,SUPPLIES AND SERVICES,EQUIPMENT MAINTENANCE,4112,P113433-SERVICE-Tumble dryer repair,08/09/2021 00:00,251314,210.85,AL0434,ALLSOP & FRANCIS,26/7/2021 00:00:00,29/8/2021 00:00:00,P05-2022
,LV LEISURE CENTRE GOLF COURSE,SUPPLIES AND SERVICES,EQUIPMENT MAINTENANCE,4112,P113318-SERVICE-parts for green machine,08/02/2021 00:00,251028,114.21,LE0279,REESINK TURFCARE UK LIMITED,26/7/2021 00:00:00,29/8/2021 00:00:00,P05-2022
R&B,INFORMATION TECHNOLOGY,SUPPLIES AND SERVICES,IT CORE SYSTEMS,4113,P111362-SERVICE-Hosted Payroll May 21- March 22,08/04/2021 00:00,250760,542.51,PA0453,PAYROLL BUSINESS SOLUTIONS LTD,26/7/2021 00:00:00,29/8/2021 00:00:00,P05-2022
R&B,INFORMATION TECHNOLOGY,SUPPLIES AND SERVICES,IT CORE SYSTEMS,4113,P113477-SERVICE-Managed Fee 14 Oct - 13 Nov 21,08/11/2021 00:00,251342,1246.24,CE0021,ADVANCED BUSINESS SOLUTIONS,26/7/2021 00:00:00,29/8/2021 00:00:00,P05-2022
R&B,INFORMATION TECHNOLOGY,SUPPLIES AND SERVICES,IT CORE SYSTEMS,4113,P113692-SERVICE-Monthly Service fee's 15 Aug - 14 Sept 21,25/8/2021 00:00:00,251819,351,CO0440,VERIFONE SERVICES UK & IRELAND LTD,26/7/2021 00:00:00,29/8/2021 00:00:00,P05-2022
,LSC INFORMATION TECHNOLOGY,SUPPLIES AND SERVICES,IT CORE SYSTEMS,4113,P113272-SERVICE-Loqate credit top Up - Postcode Search,08/09/2021 00:00,251148,1000,PO0312,GB GROUP PLC,26/7/2021 00:00:00,29/8/2021 00:00:00,P05-2022
,LSC INFORMATION TECHNOLOGY,SUPPLIES AND SERVICES,IT CORE SYSTEMS,4113,P110746-SERVICE-Clarity licenses and support,26/8/2021 00:00:00,251895,17138.57,CL0377,OMNICO GROUP UK LIMITED,26/7/2021 00:00:00,29/8/2021 00:00:00,P05-2022
R&B,INFORMATION TECHNOLOGY,SUPPLIES AND SERVICES,IT NETWORK & TELECOMS COSTS,4114,P111480-SERVICE-Monthly SIP Apr 21-Mar 22,16/8/2021 00:00:00,251057,355.73,FR0131,VOICEFLEX LTD,26/7/2021 00:00:00,29/8/2021 00:00:00,P05-2022
R&B,INFORMATION TECHNOLOGY,SUPPLIES AND SERVICES,IT NETWORK & TELECOMS COSTS,4114,P111480-SERVICE-Monthly SIP Apr 21-Mar 22,16/8/2021 00:00:00,251601,-355.73,FR0131,VOICEFLEX LTD,26/7/2021 00:00:00,29/8/2021 00:00:00,P05-2022
R&B,INFORMATION TECHNOLOGY,SUPPLIES AND SERVICES,IT NETWORK & TELECOMS COSTS,4114,P111480-SERVICE-Monthly SIP Apr 21-Mar 22,17/8/2021 00:00:00,251602,148.97,FR0131,VOICEFLEX LTD,26/7/2021 00:00:00,29/8/2021 00:00:00,P05-2022
,LEE VALLEY CARAVAN PARK,SUPPLIES AND SERVICES,IT NETWORK & TELECOMS COSTS,4114,MY O2,08/09/2021 00:00,251096,54,O20134,MY O2,26/7/2021 00:00:00,29/8/2021 00:00:00,P05-2022
P&V,FISHERIES MANAGEMENT,SUPPLIES AND SERVICES,EQUIPMENT HIRE,4115,"P111980-SERVICE-52 weeks hire at Stansted Innings, Marsh Lane",08/04/2021 00:00,250792,92,TO0092,TOILETS+ LTD,26/7/2021 00:00:00,29/8/2021 00:00:00,P05-2022
,LEE VALLEY ICE CENTRE,SUPPLIES AND SERVICES,EQUIPMENT HIRE,4115,P113479-SERVICE-Lost radio and July hire,16/8/2021 00:00:00,251143,431.13,LO0133,RADIOCOMS SYSTEMS LTD,26/7/2021 00:00:00,29/8/2021 00:00:00,P05-2022
,LV LEISURE CENTRE CAMPSITE,SUPPLIES AND SERVICES,EQUIPMENT HIRE,4115,P112944-SERVICE-Utility vehicle July Hire,29/8/2021 00:00:00,250743,450,CA0698,CAMBRIDGE GOLF COMPANY,26/7/2021 00:00:00,29/8/2021 00:00:00,P05-2022
,LV LEISURE CENTRE CAMPSITE,SUPPLIES AND SERVICES,EQUIPMENT HIRE,4115,P113312-SERVICE-August Utility Rental,29/8/2021 00:00:00,252215,450,CA0698,CAMBRIDGE GOLF COMPANY,26/7/2021 00:00:00,29/8/2021 00:00:00,P05-2022
R&B,HUMAN RESOURCES,SUPPLIES AND SERVICES,IT HARDWARE & SOFTWARE COSTS,4116,P113202-SERVICE-Acrobat Pro DC for teams Multiple,08/11/2021 00:00,251302,155.64,BY0531,BYTES SOFTWARE SERVICES LIMITED,26/7/2021 00:00:00,29/8/2021 00:00:00,P05-2022
P&V,MYDDELTON HOUSE,SUPPLIES AND SERVICES,IT HARDWARE & SOFTWARE COSTS,4116,ZEN INTERNET LTD,08/04/2021 00:00,250837,29.5,ZE0007,ZEN INTERNET LTD,26/7/2021 00:00:00,29/8/2021 00:00:00,P05-2022
P&V,MYDDELTON HOUSE,SUPPLIES AND SERVICES,IT HARDWARE & SOFTWARE COSTS,4116,ZEN INTERNET LTD,17/8/2021 00:00:00,251466,42,ZE0007,ZEN INTERNET LTD,26/7/2021 00:00:00,29/8/2021 00:00:00,P05-2022
CEO,PR/COMMUNICATIONS,SUPPLIES AND SERVICES,IT HARDWARE & SOFTWARE COSTS,4116,P113202-SERVICE-Creative Cloud for teams All Apps,08/11/2021 00:00,251302,679.36,BY0531,BYTES SOFTWARE SERVICES LIMITED,26/7/2021 00:00:00,29/8/2021 00:00:00,P05-2022
CEO,PR/COMMUNICATIONS,SUPPLIES AND SERVICES,IT HARDWARE & SOFTWARE COSTS,4116,P113202-SERVICE-Creative Cloud for teams All Apps,08/11/2021 00:00,251302,679.36,BY0531,BYTES SOFTWARE SERVICES LIMITED,26/7/2021 00:00:00,29/8/2021 00:00:00,P05-2022
CEO,REGENERATION & PLANNING,SUPPLIES AND SERVICES,IT HARDWARE & SOFTWARE COSTS,4116,P113202-SERVICE-Acrobat Pro DC for teams Multiple,08/11/2021 00:00,251302,155.64,BY0531,BYTES SOFTWARE SERVICES LIMITED,26/7/2021 00:00:00,29/8/2021 00:00:00,P05-2022
CEO,REGENERATION & PLANNING,SUPPLIES AND SERVICES,IT HARDWARE & SOFTWARE COSTS,4116,P113202-SERVICE-Acrobat Pro DC for teams Multiple,08/11/2021 00:00,251302,155.64,BY0531,BYTES SOFTWARE SERVICES LIMITED,26/7/2021 00:00:00,29/8/2021 00:00:00,P05-2022
R&B,INFORMATION TECHNOLOGY,SUPPLIES AND SERVICES,IT HARDWARE & SOFTWARE COSTS,4116,P113202-SERVICE-Acrobat Pro DC for teams Mutiple,08/11/2021 00:00,251302,155.64,BY0531,BYTES SOFTWARE SERVICES LIMITED,26/7/2021 00:00:00,29/8/2021 00:00:00,P05-2022
R&B,INFORMATION TECHNOLOGY,SUPPLIES AND SERVICES,IT HARDWARE & SOFTWARE COSTS,4116,P113202-SERVICE-Acrobat Pro DC for teams Multiple,08/11/2021 00:00,251302,155.64,BY0531,BYTES SOFTWARE SERVICES LIMITED,26/7/2021 00:00:00,29/8/2021 00:00:00,P05-2022
R&B,INFORMATION TECHNOLOGY,SUPPLIES AND SERVICES,IT HARDWARE & SOFTWARE COSTS,4116,P113202-SERVICE-Photoshop for teams Multiple,08/11/2021 00:00,251302,290.56,BY0531,BYTES SOFTWARE SERVICES LIMITED,26/7/2021 00:00:00,29/8/2021 00:00:00,P05-2022
R&B,INFORMATION TECHNOLOGY,SUPPLIES AND SERVICES,IT HARDWARE & SOFTWARE COSTS,4116,P113202-SERVICE-Acrobat Pro DC for teams Multiple Platforms E,08/11/2021 00:00,251302,155.64,BY0531,BYTES SOFTWARE SERVICES LIMITED,26/7/2021 00:00:00,29/8/2021 00:00:00,P05-2022
R&B,INFORMATION TECHNOLOGY,SUPPLIES AND SERVICES,IT HARDWARE & SOFTWARE COSTS,4116,P113202-SERVICE-Acrobat Pro DC for teams Mutiple,08/11/2021 00:00,251302,155.64,BY0531,BYTES SOFTWARE SERVICES LIMITED,26/7/2021 00:00:00,29/8/2021 00:00:00,P05-2022
R&B,INFORMATION TECHNOLOGY,SUPPLIES AND SERVICES,IT HARDWARE & SOFTWARE COSTS,4116,P113202-SERVICE-Photoshop for teams Multiple,08/11/2021 00:00,251302,290.56,BY0531,BYTES SOFTWARE SERVICES LIMITED,26/7/2021 00:00:00,29/8/2021 00:00:00,P05-2022
R&B,INFORMATION TECHNOLOGY,SUPPLIES AND SERVICES,IT HARDWARE & SOFTWARE COSTS,4116,P111692-SERVICE-Email filtering & large Files,08/11/2021 00:00,251315,738,IQ0022,IQUAL,26/7/2021 00:00:00,29/8/2021 00:00:00,P05-2022
,LEE VALLEY MARINA SPRINGFIELD,SUPPLIES AND SERVICES,IT HARDWARE & SOFTWARE COSTS,4116,ZEN INTERNET LTD,24/8/2021 00:00:00,251596,38,ZE0007,ZEN INTERNET LTD,26/7/2021 00:00:00,29/8/2021 00:00:00,P05-2022
,LEE VALLEY MARINA STANSTEAD,SUPPLIES AND SERVICES,IT HARDWARE & SOFTWARE COSTS,4116,ZEN INTERNET LTD,17/8/2021 00:00:00,251643,31.32,ZE0007,ZEN INTERNET LTD,26/7/2021 00:00:00,29/8/2021 00:00:00,P05-2022
,LEE VALLEY CARAVAN PARK,SUPPLIES AND SERVICES,IT HARDWARE & SOFTWARE COSTS,4116,P113373-SERVICE-Fibre Connection Aug 21,08/09/2021 00:00,251115,835,PP0200,PPSNET LIMITED,26/7/2021 00:00:00,29/8/2021 00:00:00,P05-2022
P&V,POLICY & PERFORMANCE (L&E),SUPPLIES AND SERVICES,IT HARDWARE & SOFTWARE COSTS,4116,P113202-SERVICE-Acrobat Pro DC for teams Mutiple,08/11/2021 00:00,251302,155.64,BY0531,BYTES SOFTWARE SERVICES LIMITED,26/7/2021 00:00:00,29/8/2021 00:00:00,P05-2022
P&V,EVENTS MANAGEMENT (PR),SUPPLIES AND SERVICES,IT HARDWARE & SOFTWARE COSTS,4116,P113125-SERVICE-Acrobat Pro DC for teams Multiple Platforms,16/8/2021 00:00:00,250701,25.94,BY0531,BYTES SOFTWARE SERVICES LIMITED,26/7/2021 00:00:00,29/8/2021 00:00:00,P05-2022
P&V,EVENTS MANAGEMENT (PR),SUPPLIES AND SERVICES,IT HARDWARE & SOFTWARE COSTS,4116,P113202-SERVICE-Acrobat Pro DC for teams Mutiple,08/11/2021 00:00,251302,155.64,BY0531,BYTES SOFTWARE SERVICES LIMITED,26/7/2021 00:00:00,29/8/2021 00:00:00,P05-2022
P&V,EVENTS MANAGEMENT (PR),SUPPLIES AND SERVICES,IT HARDWARE & SOFTWARE COSTS,4116,P113202-SERVICE-Acrobat Pro DC for teams Mutiple,08/11/2021 00:00,251302,155.64,BY0531,BYTES SOFTWARE SERVICES LIMITED,26/7/2021 00:00:00,29/8/2021 00:00:00,P05-2022
,LEE VALLEY VELOPARK,SUPPLIES AND SERVICES,IT HARDWARE & SOFTWARE COSTS,4116,"P113097-SERVICE-PSG90932-USB 3.0 to Gigabit Ethernet Adaptor,",16/8/2021 00:00:00,251425,92.82,CP0562,CPC LIMITED,26/7/2021 00:00:00,29/8/2021 00:00:00,P05-2022
,LEE VALLEY VELOPARK,SUPPLIES AND SERVICES,IT HARDWARE & SOFTWARE COSTS,4116,P113097-SERVICE-DP2DV12 - Display Port to DVI-I Video Adaptor,16/8/2021 00:00:00,251425,62.58,CP0562,CPC LIMITED,26/7/2021 00:00:00,29/8/2021 00:00:00,P05-2022
,LEE VALLEY RIDING CENTRE,SUPPLIES AND SERVICES,IT HARDWARE & SOFTWARE COSTS,4116,ZEN INTERNET LTD,08/11/2021 00:00,251343,31.32,ZE0007,ZEN INTERNET LTD,26/7/2021 00:00:00,29/8/2021 00:00:00,P05-2022
,LSC PR/COMMUNICATIONS,SUPPLIES AND SERVICES,IT HARDWARE & SOFTWARE COSTS,4116,P113202-SERVICE-Photoshop for teams Multiple,08/11/2021 00:00,251302,290.56,BY0531,BYTES SOFTWARE SERVICES LIMITED,26/7/2021 00:00:00,29/8/2021 00:00:00,P05-2022
,LEE VALLEY WHITE WATER CENTRE,SUPPLIES AND SERVICES,IT HARDWARE & SOFTWARE COSTS,4116,ZEN INTERNET LTD,08/02/2021 00:00,250591,13.49,ZE0007,ZEN INTERNET LTD,26/7/2021 00:00:00,29/8/2021 00:00:00,P05-2022
,LEE VALLEY WHITE WATER CENTRE,SUPPLIES AND SERVICES,IT HARDWARE & SOFTWARE COSTS,4116,ZEN INTERNET LTD,29/8/2021 00:00:00,251933,13.49,ZE0007,ZEN INTERNET LTD,26/7/2021 00:00:00,29/8/2021 00:00:00,P05-2022
,LEE VALLEY WHITE WATER CENTRE,SUPPLIES AND SERVICES,IT HARDWARE & SOFTWARE COSTS,4116,ZEN INTERNET LTD,29/8/2021 00:00:00,251934,17.83,ZE0007,ZEN INTERNET LTD,26/7/2021 00:00:00,29/8/2021 00:00:00,P05-2022
,LEE VALLEY ATHLETICS CENTRE,SUPPLIES AND SERVICES,VENDING AGREEMENTS,4117,P113519-SERVICE-LVAC INV 9296471911 VENDING,16/8/2021 00:00:00,251322,1593.58,BR0019,BRAKE BROTHERS LIMITED,26/7/2021 00:00:00,29/8/2021 00:00:00,P05-2022
,LEE VALLEY ATHLETICS CENTRE,SUPPLIES AND SERVICES,VENDING AGREEMENTS,4117,BRAKE BROTHERS LIMITED,16/8/2021 00:00:00,251322,32.28,BR0019,BRAKE BROTHERS LIMITED,26/7/2021 00:00:00,29/8/2021 00:00:00,P05-2022
,LEE VALLEY ATHLETICS CENTRE,SUPPLIES AND SERVICES,VENDING AGREEMENTS,4117,BRAKE BROTHERS LIMITED,16/8/2021 00:00:00,251322,1561.3,BR0019,BRAKE BROTHERS LIMITED,26/7/2021 00:00:00,29/8/2021 00:00:00,P05-2022
,LEE VALLEY ATHLETICS CENTRE,SUPPLIES AND SERVICES,VENDING AGREEMENTS,4117,BRAKE BROTHERS LIMITED,16/8/2021 00:00:00,251322,-1593.58,BR0019,BRAKE BROTHERS LIMITED,26/7/2021 00:00:00,29/8/2021 00:00:00,P05-2022
,LEE VALLEY ATHLETICS CENTRE,SUPPLIES AND SERVICES,VENDING AGREEMENTS,4117,P113519-SERVICE-LVAC INV 9296471911 VENDING,17/8/2021 00:00:00,251352,-33.98,BR0019,BRAKE BROTHERS LIMITED,26/7/2021 00:00:00,29/8/2021 00:00:00,P05-2022
R&B,INFORMATION TECHNOLOGY,SUPPLIES AND SERVICES,IT MAINTENANCE AGREEMENTS,4119,"P113474-SERVICE-Provision of Softaware, infrastructure, stora",08/11/2021 00:00,251316,4680,IQ0022,IQUAL,26/7/2021 00:00:00,29/8/2021 00:00:00,P05-2022
,LV LEISURE CENTRE GOLF COURSE,SUPPLIES AND SERVICES,IT MAINTENANCE AGREEMENTS,4119,P113467-SERVICE-Digitickets Services July 2021,18/8/2021 00:00:00,251074,671.14,DI0304,DIGITAL TICKETING SYSTEMS LTD (DIGITICKETS),26/7/2021 00:00:00,29/8/2021 00:00:00,P05-2022
P&V,SOUTH AREA RANGERS,SUPPLIES AND SERVICES,MATERIALS (LOCKS),4124,P113346-SERVICE-3x Squire Locks,08/09/2021 00:00,251052,47.48,SC0057,SCREWFIX DIRECT LTD,26/7/2021 00:00:00,29/8/2021 00:00:00,P05-2022
,LEE VALLEY CARAVAN PARK,SUPPLIES AND SERVICES,MATERIALS (GROUNDS MAINT),4125,P113424-SERVICE-refixing gas meter posts,24/8/2021 00:00:00,251370,900,SO0400,SOUTHERN GREEN SERVICES LIMITED,26/7/2021 00:00:00,29/8/2021 00:00:00,P05-2022
,LEE VALLEY CARAVAN PARK,SUPPLIES AND SERVICES,MATERIALS (GROUNDS MAINT),4125,P113425-SERVICE-refixing gas meter posts,24/8/2021 00:00:00,251371,900,SO0400,SOUTHERN GREEN SERVICES LIMITED,26/7/2021 00:00:00,29/8/2021 00:00:00,P05-2022
P&V,MYDDELTON HOUSE GARDENS,SUPPLIES AND SERVICES,MATERIALS (GROUNDS MAINT),4125,P113033-SERVICE-12 Yard mix skip split between Gardens and Ho,08/09/2021 00:00,251078,270,GB0239,GBN SERVICES LTD,26/7/2021 00:00:00,29/8/2021 00:00:00,P05-2022
P&V,NORTH AREA RANGERS,SUPPLIES AND SERVICES,MATERIALS (GROUNDS MAINT),4125,P112768-SERVICE-2x 5 litres Roundup Pro / Biactive,08/04/2021 00:00,250601,160,AP0245,APS LIMITED,26/7/2021 00:00:00,29/8/2021 00:00:00,P05-2022
,LV LEISURE CENTRE GOLF COURSE,SUPPLIES AND SERVICES,MATERIALS (GROUNDS MAINT),4125,P113203-SERVICE-Machinary items,29/7/2021 00:00:00,250300,15.41,LE0279,REESINK TURFCARE UK LIMITED,26/7/2021 00:00:00,29/8/2021 00:00:00,P05-2022
,LV LEISURE CENTRE GOLF COURSE,SUPPLIES AND SERVICES,MATERIALS (GROUNDS MAINT),4125,P112996-SERVICE-10 bags of mega pellets,29/7/2021 00:00:00,250744,800,CA0698,CAMBRIDGE GOLF COMPANY,26/7/2021 00:00:00,29/8/2021 00:00:00,P05-2022
,LV LEISURE CENTRE GOLF COURSE,SUPPLIES AND SERVICES,MATERIALS (GROUNDS MAINT),4125,P113553-SERVICE-fan belt,26/8/2021 00:00:00,251789,24.3,LE0279,REESINK TURFCARE UK LIMITED,26/7/2021 00:00:00,29/8/2021 00:00:00,P05-2022
P&V,MYDDELTON HOUSE GARDENS,SUPPLIES AND SERVICES,MATERIALS (PLANTS & SHRUBS),4126,P113050-SERVICE-Seed order July 2021,08/09/2021 00:00,251296,65,CH0298,CHILTERN SEEDS,26/7/2021 00:00:00,29/8/2021 00:00:00,P05-2022
P&V,MYDDELTON HOUSE GARDENS,SUPPLIES AND SERVICES,MATERIALS (PLANTS & SHRUBS),4126,P112994-SERVICE-Wallflwr Sunset yellow x 230,29/8/2021 00:00:00,251815,30.41,BA0627,BALL COLEGRAVE LTD,26/7/2021 00:00:00,29/8/2021 00:00:00,P05-2022
P&V,MYDDELTON HOUSE GARDENS,SUPPLIES AND SERVICES,MATERIALS (PLANTS & SHRUBS),4126,P112994-SERVICE-Wallflwr Sugar Rush x 230,29/8/2021 00:00:00,251815,30.41,BA0627,BALL COLEGRAVE LTD,26/7/2021 00:00:00,29/8/2021 00:00:00,P05-2022
,LEE VALLEY MARINA SPRINGFIELD,SUPPLIES AND SERVICES,MATERIALS (TOOLS & PLANT),4127,P113073-SERVICE-Service and Inspection,08/02/2021 00:00,250801,250,FA0269,FAST FUEL SERVICES,26/7/2021 00:00:00,29/8/2021 00:00:00,P05-2022
,LEE VALLEY MARINA SPRINGFIELD,SUPPLIES AND SERVICES,MATERIALS (TOOLS & PLANT),4127,P113184-SERVICE-Hypertherm powermax 30 Air 110/240v,08/09/2021 00:00,251039,1795,EL0281,ELTHAM WELDING SUPPLIES LIMITED,26/7/2021 00:00:00,29/8/2021 00:00:00,P05-2022
,LEE VALLEY MARINA STANSTEAD,SUPPLIES AND SERVICES,MATERIALS (TOOLS & PLANT),4127,P113161-SERVICE-tractor tire repairs,24/8/2021 00:00:00,251468,50,KB0006,KB TYRES LTD,26/7/2021 00:00:00,29/8/2021 00:00:00,P05-2022
,STANSTEAD RECHARGEABLE WORKS,SUPPLIES AND SERVICES,MATERIALS (TOOLS & PLANT),4127,P113436-SERVICE-marina services 26/7-30/7,08/09/2021 00:00,251329,630,WA0251,M J MARINE SERVICES,26/7/2021 00:00:00,29/8/2021 00:00:00,P05-2022
,STANSTEAD RECHARGEABLE WORKS,SUPPLIES AND SERVICES,MATERIALS (TOOLS & PLANT),4127,P113436-SERVICE-marina services,08/09/2021 00:00,251330,700.5,WA0251,M J MARINE SERVICES,26/7/2021 00:00:00,29/8/2021 00:00:00,P05-2022
,STANSTEAD RECHARGEABLE WORKS,SUPPLIES AND SERVICES,MATERIALS (TOOLS & PLANT),4127,P113546-SERVICE-marina services,17/8/2021 00:00:00,251599,750,WA0251,M J MARINE SERVICES,26/7/2021 00:00:00,29/8/2021 00:00:00,P05-2022
,STANSTEAD RECHARGEABLE WORKS,SUPPLIES AND SERVICES,MATERIALS (TOOLS & PLANT),4127,P113583-SERVICE-marina services,24/8/2021 00:00:00,251801,900,WA0251,M J MARINE SERVICES,26/7/2021 00:00:00,29/8/2021 00:00:00,P05-2022
,STANSTEAD RECHARGEABLE WORKS,SUPPLIES AND SERVICES,MATERIALS (TOOLS & PLANT),4127,P113518-SERVICE-trailer tires,29/8/2021 00:00:00,251963,234,KB0006,KB TYRES LTD,26/7/2021 00:00:00,29/8/2021 00:00:00,P05-2022
,LEE VALLEY WHITE WATER CENTRE,SUPPLIES AND SERVICES,MATERIALS (CHEMICALS),4131,P111382-SERVICE-SO for Acid and Hydro for 10 weeks,16/8/2021 00:00:00,251081,196.2,AL0074,BRENNTAG UK GROUP LIMITED,26/7/2021 00:00:00,29/8/2021 00:00:00,P05-2022
,LEE VALLEY WHITE WATER CENTRE,SUPPLIES AND SERVICES,MATERIALS (CHEMICALS),4131,P111382-SERVICE-SO for Acid and Hydro for 10 weeks,16/8/2021 00:00:00,251152,273.43,AL0074,BRENNTAG UK GROUP LIMITED,26/7/2021 00:00:00,29/8/2021 00:00:00,P05-2022
,LEE VALLEY WHITE WATER CENTRE,SUPPLIES AND SERVICES,MATERIALS (CHEMICALS),4131,P111382-SERVICE-SO for Acid and Hydro for 10 weeks,16/8/2021 00:00:00,251426,196.2,AL0074,BRENNTAG UK GROUP LIMITED,26/7/2021 00:00:00,29/8/2021 00:00:00,P05-2022
,LEE VALLEY WHITE WATER CENTRE,SUPPLIES AND SERVICES,MATERIALS (CHEMICALS),4131,P111382-SERVICE-SO for Acid and Hydro for 10 weeks,18/8/2021 00:00:00,251451,273.43,AL0074,BRENNTAG UK GROUP LIMITED,26/7/2021 00:00:00,29/8/2021 00:00:00,P05-2022
,LEE VALLEY WHITE WATER CENTRE,SUPPLIES AND SERVICES,MATERIALS (CHEMICALS),4131,P111382-SERVICE-SO for Acid and Hydro for 10 weeks,18/8/2021 00:00:00,251452,1096,AL0074,BRENNTAG UK GROUP LIMITED,26/7/2021 00:00:00,29/8/2021 00:00:00,P05-2022
,LEE VALLEY WHITE WATER CENTRE,SUPPLIES AND SERVICES,MATERIALS (CHEMICALS),4131,P113615-SERVICE-Chemicals,24/8/2021 00:00:00,251814,273.43,AL0074,BRENNTAG UK GROUP LIMITED,26/7/2021 00:00:00,29/8/2021 00:00:00,P05-2022
,LV LEISURE CENTRE GOLF COURSE,SUPPLIES AND SERVICES,MATERIALS (MEDICAL),4132,P113569-SERVICE-Medical AED Sign,26/8/2021 00:00:00,251872,14.47,AM0406,AMAZON PAYMENTS UK LIMITED,26/7/2021 00:00:00,29/8/2021 00:00:00,P05-2022
,LEE VALLEY WHITE WATER CENTRE,SUPPLIES AND SERVICES,MATERIALS (MEDICAL),4132,P113166-SERVICE-Duplicate of order as delivered to Myd Hse in,08/03/2021 00:00,250735,273.55,FI0215,VALUE  PRODUCTS LTD,26/7/2021 00:00:00,29/8/2021 00:00:00,P05-2022
P&V,LEE VALLEY FARM HOLYFIELDHALL,SUPPLIES AND SERVICES,FEED,4133,P113485-SERVICE-Optima/Beef Grower/Translac,08/10/2021 00:00,251116,8480.06,BO0246,FOR FARMERS UK LTD,26/7/2021 00:00:00,29/8/2021 00:00:00,P05-2022
P&V,LEE VALLEY FARM HOLYFIELDHALL,SUPPLIES AND SERVICES,FEED,4133,P113488-SERVICE-Urea,08/10/2021 00:00,251286,618,BO0246,FOR FARMERS UK LTD,26/7/2021 00:00:00,29/8/2021 00:00:00,P05-2022
P&V,LEE VALLEY FARM HOLYFIELDHALL,SUPPLIES AND SERVICES,FEED,4133,P113526-SERVICE-Rolled Barley,16/8/2021 00:00:00,251585,3279.6,PR0228,PROTEIN FEEDS LIMITED,26/7/2021 00:00:00,29/8/2021 00:00:00,P05-2022
,LEE VALLEY RIDING CENTRE,SUPPLIES AND SERVICES,FEED,4133,P113364-SERVICE-Feed,08/05/2021 00:00,251037,550.55,DO0029,M C DOWLING & SONS,26/7/2021 00:00:00,29/8/2021 00:00:00,P05-2022
,LEE VALLEY RIDING CENTRE,SUPPLIES AND SERVICES,FEED,4133,P113364-SERVICE-Feed,16/8/2021 00:00:00,251406,1280.2,DO0029,M C DOWLING & SONS,26/7/2021 00:00:00,29/8/2021 00:00:00,P05-2022
,LEE VALLEY RIDING CENTRE,SUPPLIES AND SERVICES,FEED,4133,P113364-SERVICE-Feed,17/8/2021 00:00:00,251638,3169.25,DO0029,M C DOWLING & SONS,26/7/2021 00:00:00,29/8/2021 00:00:00,P05-2022
,LEE VALLEY RIDING CENTRE,SUPPLIES AND SERVICES,BEDDING,4134,M C DOWLING & SONS,08/03/2021 00:00,250988,915.75,DO0029,M C DOWLING & SONS,26/7/2021 00:00:00,29/8/2021 00:00:00,P05-2022
,LEE VALLEY RIDING CENTRE,SUPPLIES AND SERVICES,BEDDING,4134,M C DOWLING & SONS,08/03/2021 00:00,250988,1260,DO0029,M C DOWLING & SONS,26/7/2021 00:00:00,29/8/2021 00:00:00,P05-2022
,LEE VALLEY RIDING CENTRE,SUPPLIES AND SERVICES,BEDDING,4134,P112862-SERVICE-bedding,08/03/2021 00:00,250988,2175.75,DO0029,M C DOWLING & SONS,26/7/2021 00:00:00,29/8/2021 00:00:00,P05-2022
,LEE VALLEY RIDING CENTRE,SUPPLIES AND SERVICES,BEDDING,4134,M C DOWLING & SONS,08/03/2021 00:00,250988,-2175.75,DO0029,M C DOWLING & SONS,26/7/2021 00:00:00,29/8/2021 00:00:00,P05-2022
,LEE VALLEY RIDING CENTRE,SUPPLIES AND SERVICES,BEDDING,4134,P113364-SERVICE-bedding,17/8/2021 00:00:00,251638,610.75,DO0029,M C DOWLING & SONS,26/7/2021 00:00:00,29/8/2021 00:00:00,P05-2022
,LEE VALLEY RIDING CENTRE,SUPPLIES AND SERVICES,BEDDING,4134,P113364-SERVICE-bedding,17/8/2021 00:00:00,251639,1274.65,DO0029,M C DOWLING & SONS,26/7/2021 00:00:00,29/8/2021 00:00:00,P05-2022
,LEE VALLEY RIDING CENTRE,SUPPLIES AND SERVICES,BEDDING,4134,M C DOWLING & SONS,29/8/2021 00:00:00,251931,630,DO0029,M C DOWLING & SONS,26/7/2021 00:00:00,29/8/2021 00:00:00,P05-2022
,LEE VALLEY RIDING CENTRE,SUPPLIES AND SERVICES,BEDDING,4134,P113364-SERVICE-bedding,29/8/2021 00:00:00,251931,1383.48,DO0029,M C DOWLING & SONS,26/7/2021 00:00:00,29/8/2021 00:00:00,P05-2022
,LEE VALLEY RIDING CENTRE,SUPPLIES AND SERVICES,BEDDING,4134,M C DOWLING & SONS,29/8/2021 00:00:00,251931,-1383.48,DO0029,M C DOWLING & SONS,26/7/2021 00:00:00,29/8/2021 00:00:00,P05-2022
,LEE VALLEY RIDING CENTRE,SUPPLIES AND SERVICES,BEDDING,4134,M C DOWLING & SONS,29/8/2021 00:00:00,251931,753.48,DO0029,M C DOWLING & SONS,26/7/2021 00:00:00,29/8/2021 00:00:00,P05-2022
P&V,LEE VALLEY FARM HOLYFIELDHALL,SUPPLIES AND SERVICES,SPRAYS,4136,P113483-SERVICE-Dow Thistlex,08/10/2021 00:00,250803,223.4,HA0013,HARLOW AGRICULTURAL MERCHANTS,26/7/2021 00:00:00,29/8/2021 00:00:00,P05-2022
P&V,LEE VALLEY FARM HOLYFIELDHALL,SUPPLIES AND SERVICES,SPRAYS,4136,P113484-SERVICE-Dow Leystar/Du Pont,08/10/2021 00:00,250804,635,HA0013,HARLOW AGRICULTURAL MERCHANTS,26/7/2021 00:00:00,29/8/2021 00:00:00,P05-2022
P&V,LEE VALLEY FARM HOLYFIELDHALL,SUPPLIES AND SERVICES,DAIRY SUNDRIES,4138,P113292-SERVICE-Milking Parlour Works,29/7/2021 00:00:00,250568,370,BR0018,BRADSHAW ELECTRICAL LIMITED,26/7/2021 00:00:00,29/8/2021 00:00:00,P05-2022
P&V,LEE VALLEY FARM HOLYFIELDHALL,SUPPLIES AND SERVICES,DAIRY SUNDRIES,4138,P111471-SERVICE-Plumbing Fittings,08/10/2021 00:00,250594,88.02,WO0076,E J WOOLLARD LTD,26/7/2021 00:00:00,29/8/2021 00:00:00,P05-2022
P&V,LEE VALLEY FARM HOLYFIELDHALL,SUPPLIES AND SERVICES,DAIRY SUNDRIES,4138,P112366-SERVICE-Liquid Nitrogen,29/7/2021 00:00:00,250778,54,GE0005,GENUS BREEDING LTD,26/7/2021 00:00:00,29/8/2021 00:00:00,P05-2022
P&V,LEE VALLEY FARM HOLYFIELDHALL,SUPPLIES AND SERVICES,DAIRY SUNDRIES,4138,P113279-SERVICE-Parlour Refurbishment,08/10/2021 00:00,250809,7421.6,MI0023,MILL DAIRY SERVICES,26/7/2021 00:00:00,29/8/2021 00:00:00,P05-2022
P&V,LEE VALLEY FARM HOLYFIELDHALL,SUPPLIES AND SERVICES,DAIRY SUNDRIES,4138,P111470-SERVICE-Slurry Machinery,08/10/2021 00:00,251034,404.72,ST0237,STORTH LTD,26/7/2021 00:00:00,29/8/2021 00:00:00,P05-2022
P&V,LEE VALLEY FARM HOLYFIELDHALL,SUPPLIES AND SERVICES,DAIRY SUNDRIES,4138,P111470-SERVICE-Slurry Machinery,08/10/2021 00:00,251035,20.24,ST0237,STORTH LTD,26/7/2021 00:00:00,29/8/2021 00:00:00,P05-2022
P&V,LEE VALLEY FARM HOLYFIELDHALL,SUPPLIES AND SERVICES,DAIRY SUNDRIES,4138,FARM & COUNTRY SUPPLIES LTD,08/10/2021 00:00,251123,54.17,FA0099,FARM & COUNTRY SUPPLIES LTD,26/7/2021 00:00:00,29/8/2021 00:00:00,P05-2022
P&V,LEE VALLEY FARM HOLYFIELDHALL,SUPPLIES AND SERVICES,DAIRY SUNDRIES,4138,FARM & COUNTRY SUPPLIES LTD,08/10/2021 00:00,251123,-108.93,FA0099,FARM & COUNTRY SUPPLIES LTD,26/7/2021 00:00:00,29/8/2021 00:00:00,P05-2022
P&V,LEE VALLEY FARM HOLYFIELDHALL,SUPPLIES AND SERVICES,DAIRY SUNDRIES,4138,P111472-SERVICE-Farm Sundries,08/10/2021 00:00,251123,108.93,FA0099,FARM & COUNTRY SUPPLIES LTD,26/7/2021 00:00:00,29/8/2021 00:00:00,P05-2022
P&V,LEE VALLEY FARM HOLYFIELDHALL,SUPPLIES AND SERVICES,DAIRY SUNDRIES,4138,FARM & COUNTRY SUPPLIES LTD,08/10/2021 00:00,251123,54.76,FA0099,FARM & COUNTRY SUPPLIES LTD,26/7/2021 00:00:00,29/8/2021 00:00:00,P05-2022
P&V,LEE VALLEY FARM HOLYFIELDHALL,SUPPLIES AND SERVICES,DAIRY SUNDRIES,4138,P111464-SERVICE-Dairy Sundries,08/10/2021 00:00,251128,19.7,MI0023,MILL DAIRY SERVICES,26/7/2021 00:00:00,29/8/2021 00:00:00,P05-2022
P&V,LEE VALLEY FARM HOLYFIELDHALL,SUPPLIES AND SERVICES,DAIRY SUNDRIES,4138,P113486-SERVICE-Dairy Sundries,08/10/2021 00:00,251129,284.5,MI0023,MILL DAIRY SERVICES,26/7/2021 00:00:00,29/8/2021 00:00:00,P05-2022
P&V,LEE VALLEY FARM HOLYFIELDHALL,SUPPLIES AND SERVICES,DAIRY SUNDRIES,4138,P113486-SERVICE-Dairy Sundries,08/10/2021 00:00,251130,160,MI0023,MILL DAIRY SERVICES,26/7/2021 00:00:00,29/8/2021 00:00:00,P05-2022
P&V,LEE VALLEY FARM HOLYFIELDHALL,SUPPLIES AND SERVICES,DAIRY SUNDRIES,4138,P113487-SERVICE-Beeline Labour/Materials,08/10/2021 00:00,251131,1100.75,MI0023,MILL DAIRY SERVICES,26/7/2021 00:00:00,29/8/2021 00:00:00,P05-2022
P&V,LEE VALLEY FARM HOLYFIELDHALL,SUPPLIES AND SERVICES,DAIRY SUNDRIES,4138,P111471-SERVICE-Plumbing Fittings,08/10/2021 00:00,251293,9.9,WO0076,E J WOOLLARD LTD,26/7/2021 00:00:00,29/8/2021 00:00:00,P05-2022
P&V,LEE VALLEY FARM HOLYFIELDHALL,SUPPLIES AND SERVICES,DAIRY SUNDRIES,4138,P111471-SERVICE-Plumbing Fittings,08/10/2021 00:00,251294,-85.5,WO0076,E J WOOLLARD LTD,26/7/2021 00:00:00,29/8/2021 00:00:00,P05-2022
P&V,LEE VALLEY FARM HOLYFIELDHALL,SUPPLIES AND SERVICES,DAIRY SUNDRIES,4138,P112946-SERVICE-Dead Animal Removal,08/10/2021 00:00,251345,280,MA0074,W MARTIN & SON LIMITED,26/7/2021 00:00:00,29/8/2021 00:00:00,P05-2022
P&V,LEE VALLEY FARM HOLYFIELDHALL,SUPPLIES AND SERVICES,DAIRY SUNDRIES,4138,P112946-SERVICE-Dead Animal Removal,08/10/2021 00:00,251346,201,MA0074,W MARTIN & SON LIMITED,26/7/2021 00:00:00,29/8/2021 00:00:00,P05-2022
P&V,LEE VALLEY FARM HOLYFIELDHALL,SUPPLIES AND SERVICES,DAIRY SUNDRIES,4138,P113144-SERVICE-70 Straws of Semen,17/8/2021 00:00:00,251375,900,MA0405,MASTERGEN LTD,26/7/2021 00:00:00,29/8/2021 00:00:00,P05-2022
P&V,LEE VALLEY FARM HOLYFIELDHALL,SUPPLIES AND SERVICES,DAIRY SUNDRIES,4138,P112946-SERVICE-Dead Animal Removal,29/8/2021 00:00:00,251652,125,MA0074,W MARTIN & SON LIMITED,26/7/2021 00:00:00,29/8/2021 00:00:00,P05-2022
P&V,LEE VALLEY FARM HOLYFIELDHALL,SUPPLIES AND SERVICES,DAIRY SUNDRIES,4138,P113486-SERVICE-Dairy Sundries,29/8/2021 00:00:00,251927,206.98,MI0023,MILL DAIRY SERVICES,26/7/2021 00:00:00,29/8/2021 00:00:00,P05-2022
,LV WHITE WATER CATERING,SUPPLIES AND SERVICES,FOOD AND DRINK PURCHASES,4140,P113172-SERVICE-front of house food,08/02/2021 00:00,250787,-71.37,360001,BIDFOOD,26/7/2021 00:00:00,29/8/2021 00:00:00,P05-2022
,LV WHITE WATER CATERING,SUPPLIES AND SERVICES,FOOD AND DRINK PURCHASES,4140,BIDFOOD,08/02/2021 00:00,250787,71.37,360001,BIDFOOD,26/7/2021 00:00:00,29/8/2021 00:00:00,P05-2022
,LV WHITE WATER CATERING,SUPPLIES AND SERVICES,FOOD AND DRINK PURCHASES,4140,BIDFOOD,08/02/2021 00:00,250787,-52.38,360001,BIDFOOD,26/7/2021 00:00:00,29/8/2021 00:00:00,P05-2022
,LV WHITE WATER CATERING,SUPPLIES AND SERVICES,FOOD AND DRINK PURCHASES,4140,BIDFOOD,08/02/2021 00:00,250787,-18.99,360001,BIDFOOD,26/7/2021 00:00:00,29/8/2021 00:00:00,P05-2022
,LV WHITE WATER CATERING,SUPPLIES AND SERVICES,FOOD AND DRINK PURCHASES,4140,P113216-SERVICE-coffee,08/02/2021 00:00,250847,549.99,RO0216,ROMBOUTS COFFEE GB LIMITED,26/7/2021 00:00:00,29/8/2021 00:00:00,P05-2022
,LV WHITE WATER CATERING,SUPPLIES AND SERVICES,FOOD AND DRINK PURCHASES,4140,P113268-SERVICE-coffee asutyrip,08/05/2021 00:00,250848,339.54,RO0216,ROMBOUTS COFFEE GB LIMITED,26/7/2021 00:00:00,29/8/2021 00:00:00,P05-2022
,LV WHITE WATER CATERING,SUPPLIES AND SERVICES,FOOD AND DRINK PURCHASES,4140,P113267-SERVICE-cups,08/02/2021 00:00,250854,418.07,CA0585,CAFE CONNECTIONS,26/7/2021 00:00:00,29/8/2021 00:00:00,P05-2022
,LV WHITE WATER CATERING,SUPPLIES AND SERVICES,FOOD AND DRINK PURCHASES,4140,BIDFOOD,08/03/2021 00:00,250863,43.95,360001,BIDFOOD,26/7/2021 00:00:00,29/8/2021 00:00:00,P05-2022
,LV WHITE WATER CATERING,SUPPLIES AND SERVICES,FOOD AND DRINK PURCHASES,4140,BIDFOOD,08/03/2021 00:00,250863,-108.43,360001,BIDFOOD,26/7/2021 00:00:00,29/8/2021 00:00:00,P05-2022
,LV WHITE WATER CATERING,SUPPLIES AND SERVICES,FOOD AND DRINK PURCHASES,4140,BIDFOOD,08/03/2021 00:00,250863,64.48,360001,BIDFOOD,26/7/2021 00:00:00,29/8/2021 00:00:00,P05-2022
,LV WHITE WATER CATERING,SUPPLIES AND SERVICES,FOOD AND DRINK PURCHASES,4140,P113254-SERVICE-function,08/03/2021 00:00,250863,108.43,360001,BIDFOOD,26/7/2021 00:00:00,29/8/2021 00:00:00,P05-2022
,LV WHITE WATER CATERING,SUPPLIES AND SERVICES,FOOD AND DRINK PURCHASES,4140,BIDFOOD,08/09/2021 00:00,250864,1506.73,360001,BIDFOOD,26/7/2021 00:00:00,29/8/2021 00:00:00,P05-2022
,LV WHITE WATER CATERING,SUPPLIES AND SERVICES,FOOD AND DRINK PURCHASES,4140,BIDFOOD,08/09/2021 00:00,250864,954.46,360001,BIDFOOD,26/7/2021 00:00:00,29/8/2021 00:00:00,P05-2022
,LV WHITE WATER CATERING,SUPPLIES AND SERVICES,FOOD AND DRINK PURCHASES,4140,BIDFOOD,08/09/2021 00:00,250864,-2461.19,360001,BIDFOOD,26/7/2021 00:00:00,29/8/2021 00:00:00,P05-2022
,LV WHITE WATER CATERING,SUPPLIES AND SERVICES,FOOD AND DRINK PURCHASES,4140,P113277-SERVICE-front of house food,08/09/2021 00:00,250864,2461.19,360001,BIDFOOD,26/7/2021 00:00:00,29/8/2021 00:00:00,P05-2022
,LV WHITE WATER CATERING,SUPPLIES AND SERVICES,FOOD AND DRINK PURCHASES,4140,P113322-SERVICE-front of house food,08/09/2021 00:00,251019,531.05,360001,BIDFOOD,26/7/2021 00:00:00,29/8/2021 00:00:00,P05-2022
,LV WHITE WATER CATERING,SUPPLIES AND SERVICES,FOOD AND DRINK PURCHASES,4140,BIDFOOD,08/03/2021 00:00,251022,81.75,360001,BIDFOOD,26/7/2021 00:00:00,29/8/2021 00:00:00,P05-2022
,LV WHITE WATER CATERING,SUPPLIES AND SERVICES,FOOD AND DRINK PURCHASES,4140,BIDFOOD,08/03/2021 00:00,251022,77.85,360001,BIDFOOD,26/7/2021 00:00:00,29/8/2021 00:00:00,P05-2022
,LV WHITE WATER CATERING,SUPPLIES AND SERVICES,FOOD AND DRINK PURCHASES,4140,BIDFOOD,08/03/2021 00:00,251022,-159.6,360001,BIDFOOD,26/7/2021 00:00:00,29/8/2021 00:00:00,P05-2022
,LV WHITE WATER CATERING,SUPPLIES AND SERVICES,FOOD AND DRINK PURCHASES,4140,P113324-SERVICE-front of hiuse food,08/03/2021 00:00,251022,159.6,360001,BIDFOOD,26/7/2021 00:00:00,29/8/2021 00:00:00,P05-2022
,LV WHITE WATER CATERING,SUPPLIES AND SERVICES,FOOD AND DRINK PURCHASES,4140,P113541-SERVICE-drinks,24/8/2021 00:00:00,251077,509.75,DA0268,DAYLA DRINKS,26/7/2021 00:00:00,29/8/2021 00:00:00,P05-2022
,LV WHITE WATER CATERING,SUPPLIES AND SERVICES,FOOD AND DRINK PURCHASES,4140,P113257-SERVICE-sandwiches,08/03/2021 00:00,251082,742.8,AN0324,ANCHOR CATERING,26/7/2021 00:00:00,29/8/2021 00:00:00,P05-2022
,LV WHITE WATER CATERING,SUPPLIES AND SERVICES,FOOD AND DRINK PURCHASES,4140,P113654-SERVICE-july stocktake,24/8/2021 00:00:00,251085,532,VE0038,VENNERS LTD,26/7/2021 00:00:00,29/8/2021 00:00:00,P05-2022
,LV WHITE WATER CATERING,SUPPLIES AND SERVICES,FOOD AND DRINK PURCHASES,4140,P113324-SERVICE-front of hiuse food,08/09/2021 00:00,251117,322.21,360001,BIDFOOD,26/7/2021 00:00:00,29/8/2021 00:00:00,P05-2022
,LV WHITE WATER CATERING,SUPPLIES AND SERVICES,FOOD AND DRINK PURCHASES,4140,BIDFOOD,08/09/2021 00:00,251119,-1332.89,360001,BIDFOOD,26/7/2021 00:00:00,29/8/2021 00:00:00,P05-2022
,LV WHITE WATER CATERING,SUPPLIES AND SERVICES,FOOD AND DRINK PURCHASES,4140,BIDFOOD,08/09/2021 00:00,251119,425.32,360001,BIDFOOD,26/7/2021 00:00:00,29/8/2021 00:00:00,P05-2022
,LV WHITE WATER CATERING,SUPPLIES AND SERVICES,FOOD AND DRINK PURCHASES,4140,P113377-SERVICE-front of house food,08/09/2021 00:00,251119,1332.89,360001,BIDFOOD,26/7/2021 00:00:00,29/8/2021 00:00:00,P05-2022
,LV WHITE WATER CATERING,SUPPLIES AND SERVICES,FOOD AND DRINK PURCHASES,4140,BIDFOOD,08/09/2021 00:00,251119,907.57,360001,BIDFOOD,26/7/2021 00:00:00,29/8/2021 00:00:00,P05-2022
,LV WHITE WATER CATERING,SUPPLIES AND SERVICES,FOOD AND DRINK PURCHASES,4140,P113369-SERVICE-cups,08/09/2021 00:00,251139,669.06,CA0585,CAFE CONNECTIONS,26/7/2021 00:00:00,29/8/2021 00:00:00,P05-2022
,LV WHITE WATER CATERING,SUPPLIES AND SERVICES,FOOD AND DRINK PURCHASES,4140,P113376-SERVICE-coffee,08/09/2021 00:00,251151,530.82,RO0216,ROMBOUTS COFFEE GB LIMITED,26/7/2021 00:00:00,29/8/2021 00:00:00,P05-2022
,LV WHITE WATER CATERING,SUPPLIES AND SERVICES,FOOD AND DRINK PURCHASES,4140,ROMBOUTS COFFEE GB LIMITED,08/09/2021 00:00,251151,-530.82,RO0216,ROMBOUTS COFFEE GB LIMITED,26/7/2021 00:00:00,29/8/2021 00:00:00,P05-2022
,LV WHITE WATER CATERING,SUPPLIES AND SERVICES,FOOD AND DRINK PURCHASES,4140,ROMBOUTS COFFEE GB LIMITED,08/09/2021 00:00,251151,478.44,RO0216,ROMBOUTS COFFEE GB LIMITED,26/7/2021 00:00:00,29/8/2021 00:00:00,P05-2022
,LV WHITE WATER CATERING,SUPPLIES AND SERVICES,FOOD AND DRINK PURCHASES,4140,ROMBOUTS COFFEE GB LIMITED,08/09/2021 00:00,251151,52.38,RO0216,ROMBOUTS COFFEE GB LIMITED,26/7/2021 00:00:00,29/8/2021 00:00:00,P05-2022
,LV WHITE WATER CATERING,SUPPLIES AND SERVICES,FOOD AND DRINK PURCHASES,4140,P113324-SERVICE-front of hiuse food,08/09/2021 00:00,251288,-15.1,360001,BIDFOOD,26/7/2021 00:00:00,29/8/2021 00:00:00,P05-2022
,LV WHITE WATER CATERING,SUPPLIES AND SERVICES,FOOD AND DRINK PURCHASES,4140,P113355-SERVICE-kitchen food,08/09/2021 00:00,251289,451.76,360001,BIDFOOD,26/7/2021 00:00:00,29/8/2021 00:00:00,P05-2022
,LV WHITE WATER CATERING,SUPPLIES AND SERVICES,FOOD AND DRINK PURCHASES,4140,P113269-SERVICE-till rolls,08/09/2021 00:00,251306,274.35,TH0008,JKL SOLUTIONS LTD,26/7/2021 00:00:00,29/8/2021 00:00:00,P05-2022
,LV WHITE WATER CATERING,SUPPLIES AND SERVICES,FOOD AND DRINK PURCHASES,4140,P113355-SERVICE-kitchen food,24/8/2021 00:00:00,251363,432.46,360001,BIDFOOD,26/7/2021 00:00:00,29/8/2021 00:00:00,P05-2022
,LV WHITE WATER CATERING,SUPPLIES AND SERVICES,FOOD AND DRINK PURCHASES,4140,BIDFOOD,24/8/2021 00:00:00,251363,425.87,360001,BIDFOOD,26/7/2021 00:00:00,29/8/2021 00:00:00,P05-2022
,LV WHITE WATER CATERING,SUPPLIES AND SERVICES,FOOD AND DRINK PURCHASES,4140,BIDFOOD,24/8/2021 00:00:00,251363,6.59,360001,BIDFOOD,26/7/2021 00:00:00,29/8/2021 00:00:00,P05-2022
,LV WHITE WATER CATERING,SUPPLIES AND SERVICES,FOOD AND DRINK PURCHASES,4140,BIDFOOD,24/8/2021 00:00:00,251363,-432.46,360001,BIDFOOD,26/7/2021 00:00:00,29/8/2021 00:00:00,P05-2022
,LV WHITE WATER CATERING,SUPPLIES AND SERVICES,FOOD AND DRINK PURCHASES,4140,P113411-SERVICE-drinks,29/8/2021 00:00:00,251403,294.77,DA0268,DAYLA DRINKS,26/7/2021 00:00:00,29/8/2021 00:00:00,P05-2022
,LV WHITE WATER CATERING,SUPPLIES AND SERVICES,FOOD AND DRINK PURCHASES,4140,P113354-SERVICE-sandwiches,24/8/2021 00:00:00,251424,702.93,AN0324,ANCHOR CATERING,26/7/2021 00:00:00,29/8/2021 00:00:00,P05-2022
,LV WHITE WATER CATERING,SUPPLIES AND SERVICES,FOOD AND DRINK PURCHASES,4140,BIDFOOD,24/8/2021 00:00:00,251606,735.49,360001,BIDFOOD,26/7/2021 00:00:00,29/8/2021 00:00:00,P05-2022
,LV WHITE WATER CATERING,SUPPLIES AND SERVICES,FOOD AND DRINK PURCHASES,4140,P113513-SERVICE-front of houde,24/8/2021 00:00:00,251606,1433.66,360001,BIDFOOD,26/7/2021 00:00:00,29/8/2021 00:00:00,P05-2022
,LV WHITE WATER CATERING,SUPPLIES AND SERVICES,FOOD AND DRINK PURCHASES,4140,BIDFOOD,24/8/2021 00:00:00,251606,-1433.66,360001,BIDFOOD,26/7/2021 00:00:00,29/8/2021 00:00:00,P05-2022
,LV WHITE WATER CATERING,SUPPLIES AND SERVICES,FOOD AND DRINK PURCHASES,4140,BIDFOOD,24/8/2021 00:00:00,251606,698.17,360001,BIDFOOD,26/7/2021 00:00:00,29/8/2021 00:00:00,P05-2022
,LV WHITE WATER CATERING,SUPPLIES AND SERVICES,FOOD AND DRINK PURCHASES,4140,P113502-SERVICE-kitchen food,24/8/2021 00:00:00,251607,282.4,360001,BIDFOOD,26/7/2021 00:00:00,29/8/2021 00:00:00,P05-2022
,LV WHITE WATER CATERING,SUPPLIES AND SERVICES,FOOD AND DRINK PURCHASES,4140,P113355-SERVICE-kitchen food,24/8/2021 00:00:00,251608,-15.1,360001,BIDFOOD,26/7/2021 00:00:00,29/8/2021 00:00:00,P05-2022
,LV WHITE WATER CATERING,SUPPLIES AND SERVICES,FOOD AND DRINK PURCHASES,4140,P112070-SERVICE-cups & lids,24/8/2021 00:00:00,251613,216.11,CA0585,CAFE CONNECTIONS,26/7/2021 00:00:00,29/8/2021 00:00:00,P05-2022
,LV WHITE WATER CATERING,SUPPLIES AND SERVICES,FOOD AND DRINK PURCHASES,4140,P113156-SERVICE-sandwiches wc 90821,24/8/2021 00:00:00,251665,710.29,AN0324,ANCHOR CATERING,26/7/2021 00:00:00,29/8/2021 00:00:00,P05-2022
,LV WHITE WATER CATERING,SUPPLIES AND SERVICES,FOOD AND DRINK PURCHASES,4140,ROMBOUTS COFFEE GB LIMITED,24/8/2021 00:00:00,251774,115.2,RO0216,ROMBOUTS COFFEE GB LIMITED,26/7/2021 00:00:00,29/8/2021 00:00:00,P05-2022
,LV WHITE WATER CATERING,SUPPLIES AND SERVICES,FOOD AND DRINK PURCHASES,4140,ROMBOUTS COFFEE GB LIMITED,24/8/2021 00:00:00,251774,158.36,RO0216,ROMBOUTS COFFEE GB LIMITED,26/7/2021 00:00:00,29/8/2021 00:00:00,P05-2022
,LV WHITE WATER CATERING,SUPPLIES AND SERVICES,FOOD AND DRINK PURCHASES,4140,ROMBOUTS COFFEE GB LIMITED,24/8/2021 00:00:00,251774,-273.56,RO0216,ROMBOUTS COFFEE GB LIMITED,26/7/2021 00:00:00,29/8/2021 00:00:00,P05-2022
,LV WHITE WATER CATERING,SUPPLIES AND SERVICES,FOOD AND DRINK PURCHASES,4140,P112604-SERVICE-cofffee,24/8/2021 00:00:00,251774,273.56,RO0216,ROMBOUTS COFFEE GB LIMITED,26/7/2021 00:00:00,29/8/2021 00:00:00,P05-2022
,LV WHITE WATER CATERING,SUPPLIES AND SERVICES,FOOD AND DRINK PURCHASES,4140,P113661-SERVICE-drinkls,25/8/2021 00:00:00,251792,282.56,DA0268,DAYLA DRINKS,26/7/2021 00:00:00,29/8/2021 00:00:00,P05-2022
,LV WHITE WATER CATERING,SUPPLIES AND SERVICES,FOOD AND DRINK PURCHASES,4140,P113656-SERVICE-cups,24/8/2021 00:00:00,251826,248.81,CA0585,CAFE CONNECTIONS,26/7/2021 00:00:00,29/8/2021 00:00:00,P05-2022
,LV WHITE WATER CATERING,SUPPLIES AND SERVICES,FOOD AND DRINK PURCHASES,4140,P113502-SERVICE-kitchen food,24/8/2021 00:00:00,251845,388.07,360001,BIDFOOD,26/7/2021 00:00:00,29/8/2021 00:00:00,P05-2022
,LV WHITE WATER CATERING,SUPPLIES AND SERVICES,FOOD AND DRINK PURCHASES,4140,P113502-SERVICE-kitchen food,24/8/2021 00:00:00,251847,-4.4,360001,BIDFOOD,26/7/2021 00:00:00,29/8/2021 00:00:00,P05-2022
,LV WHITE WATER CATERING,SUPPLIES AND SERVICES,FOOD AND DRINK PURCHASES,4140,P113568-SERVICE-kitchen food,24/8/2021 00:00:00,251852,655.96,360001,BIDFOOD,26/7/2021 00:00:00,29/8/2021 00:00:00,P05-2022
,LV WHITE WATER CATERING,SUPPLIES AND SERVICES,FOOD AND DRINK PURCHASES,4140,BIDFOOD,24/8/2021 00:00:00,251852,-655.96,360001,BIDFOOD,26/7/2021 00:00:00,29/8/2021 00:00:00,P05-2022
,LV WHITE WATER CATERING,SUPPLIES AND SERVICES,FOOD AND DRINK PURCHASES,4140,BIDFOOD,24/8/2021 00:00:00,251852,562.13,360001,BIDFOOD,26/7/2021 00:00:00,29/8/2021 00:00:00,P05-2022
,LV WHITE WATER CATERING,SUPPLIES AND SERVICES,FOOD AND DRINK PURCHASES,4140,BIDFOOD,24/8/2021 00:00:00,251852,93.83,360001,BIDFOOD,26/7/2021 00:00:00,29/8/2021 00:00:00,P05-2022
,LV WHITE WATER CATERING,SUPPLIES AND SERVICES,FOOD AND DRINK PURCHASES,4140,P113655-SERVICE-coffee,24/8/2021 00:00:00,251890,388.85,RO0216,ROMBOUTS COFFEE GB LIMITED,26/7/2021 00:00:00,29/8/2021 00:00:00,P05-2022
,LV WHITE WATER CATERING,SUPPLIES AND SERVICES,FOOD AND DRINK PURCHASES,4140,P113655-SERVICE-coffee,24/8/2021 00:00:00,251932,57.6,RO0216,ROMBOUTS COFFEE GB LIMITED,26/7/2021 00:00:00,29/8/2021 00:00:00,P05-2022
,LV WHITE WATER CATERING,SUPPLIES AND SERVICES,FOOD AND DRINK PURCHASES,4140,P113646-SERVICE-coffee beans,29/8/2021 00:00:00,251969,143.85,RO0216,ROMBOUTS COFFEE GB LIMITED,26/7/2021 00:00:00,29/8/2021 00:00:00,P05-2022
,LV WHITE WATER CATERING,SUPPLIES AND SERVICES,FOOD AND DRINK PURCHASES,4140,P113777-SERVICE-drinks,29/8/2021 00:00:00,251984,197.72,DA0268,DAYLA DRINKS,26/7/2021 00:00:00,29/8/2021 00:00:00,P05-2022
,LV WHITE WATER CATERING,SUPPLIES AND SERVICES,FOOD AND DRINK PURCHASES,4140,P113703-SERVICE-cups,29/8/2021 00:00:00,252020,757.45,CA0585,CAFE CONNECTIONS,26/7/2021 00:00:00,29/8/2021 00:00:00,P05-2022
,LV WHITE WATER CATERING,SUPPLIES AND SERVICES,FOOD AND DRINK PURCHASES,4140,ROMBOUTS COFFEE GB LIMITED,29/8/2021 00:00:00,252026,-318.27,RO0216,ROMBOUTS COFFEE GB LIMITED,26/7/2021 00:00:00,29/8/2021 00:00:00,P05-2022
,LV WHITE WATER CATERING,SUPPLIES AND SERVICES,FOOD AND DRINK PURCHASES,4140,ROMBOUTS COFFEE GB LIMITED,29/8/2021 00:00:00,252026,225.75,RO0216,ROMBOUTS COFFEE GB LIMITED,26/7/2021 00:00:00,29/8/2021 00:00:00,P05-2022
,LV WHITE WATER CATERING,SUPPLIES AND SERVICES,FOOD AND DRINK PURCHASES,4140,ROMBOUTS COFFEE GB LIMITED,29/8/2021 00:00:00,252026,92.52,RO0216,ROMBOUTS COFFEE GB LIMITED,26/7/2021 00:00:00,29/8/2021 00:00:00,P05-2022
,LV WHITE WATER CATERING,SUPPLIES AND SERVICES,FOOD AND DRINK PURCHASES,4140,P113702-SERVICE-coffee,29/8/2021 00:00:00,252026,318.27,RO0216,ROMBOUTS COFFEE GB LIMITED,26/7/2021 00:00:00,29/8/2021 00:00:00,P05-2022
,LV WHITE WATER CATERING,SUPPLIES AND SERVICES,FOOD AND DRINK PURCHASES,4140,BIDFOOD,29/8/2021 00:00:00,252148,-1682.17,360001,BIDFOOD,26/7/2021 00:00:00,29/8/2021 00:00:00,P05-2022
,LV WHITE WATER CATERING,SUPPLIES AND SERVICES,FOOD AND DRINK PURCHASES,4140,BIDFOOD,29/8/2021 00:00:00,252148,878.79,360001,BIDFOOD,26/7/2021 00:00:00,29/8/2021 00:00:00,P05-2022
,LV WHITE WATER CATERING,SUPPLIES AND SERVICES,FOOD AND DRINK PURCHASES,4140,BIDFOOD,29/8/2021 00:00:00,252148,803.38,360001,BIDFOOD,26/7/2021 00:00:00,29/8/2021 00:00:00,P05-2022
,LV WHITE WATER CATERING,SUPPLIES AND SERVICES,FOOD AND DRINK PURCHASES,4140,P113701-SERVICE-front of house food,29/8/2021 00:00:00,252148,1682.17,360001,BIDFOOD,26/7/2021 00:00:00,29/8/2021 00:00:00,P05-2022
,LV WHITE WATER CATERING,SUPPLIES AND SERVICES,FOOD AND DRINK PURCHASES,4140,P113696-SERVICE-kitchen food,29/8/2021 00:00:00,252151,1015.7,360001,BIDFOOD,26/7/2021 00:00:00,29/8/2021 00:00:00,P05-2022
,LV LEISURE CENTRE GOLF COURSE,SUPPLIES AND SERVICES,CARAVAN PURCHASES,4171,P113321-SERVICE-HOLIDAY HOME PURCHASE- SERIAL NO 80020796/12,08/05/2021 00:00,251266,40950,LO0459,LONDON LODGES UK,26/7/2021 00:00:00,29/8/2021 00:00:00,P05-2022
,LV LEISURE CENTRE GOLF COURSE,SUPPLIES AND SERVICES,DECKING PURCHASES,4173,P113319-SERVICE-decking induction,08/05/2021 00:00,251269,2500,LO0459,LONDON LODGES UK,26/7/2021 00:00:00,29/8/2021 00:00:00,P05-2022
,LV LEISURE CENTRE GOLF COURSE,SUPPLIES AND SERVICES,DECKING PURCHASES,4173,P113320-SERVICE-decking induction,08/05/2021 00:00,251270,2500,LO0459,LONDON LODGES UK,26/7/2021 00:00:00,29/8/2021 00:00:00,P05-2022
,LEE VALLEY CARAVAN PARK,SUPPLIES AND SERVICES,MISCELLANEOUS CARAVAN COSTS,4174,P112385-SERVICE-toughened sealed unit,08/09/2021 00:00,251080,147,DI0284,DIRECT WINDOWS & DOORS,26/7/2021 00:00:00,29/8/2021 00:00:00,P05-2022
,LEE VALLEY CARAVAN PARK,SUPPLIES AND SERVICES,MISCELLANEOUS CARAVAN COSTS,4174,P113418-SERVICE-Caravan removable & resite new,24/8/2021 00:00:00,251777,925,MO0041,CAPSER,26/7/2021 00:00:00,29/8/2021 00:00:00,P05-2022
,LEE VALLEY CARAVAN PARK,SUPPLIES AND SERVICES,MISCELLANEOUS CARAVAN COSTS,4174,P113419-SERVICE-Caravan removal & re site new,24/8/2021 00:00:00,251778,1075,MO0041,CAPSER,26/7/2021 00:00:00,29/8/2021 00:00:00,P05-2022
P&V,SOUTH AREA RANGERS,SUPPLIES AND SERVICES,CLOTHING & UNIFORMS,4225,P112593-SERVICE-2x Peru Trousers Black Short W30,08/04/2021 00:00,250332,42.5,IL0177,KEELA INTERNATION LTD,26/7/2021 00:00:00,29/8/2021 00:00:00,P05-2022
P&V,SOUTH AREA RANGERS,SUPPLIES AND SERVICES,CLOTHING & UNIFORMS,4225,P113442-SERVICE-1x Sthil Chainsaw Boots - Size 7.5 (41),08/09/2021 00:00,251265,120,AP0245,APS LIMITED,26/7/2021 00:00:00,29/8/2021 00:00:00,P05-2022
P&V,RIVER LEE COUNTRY PARK,SUPPLIES AND SERVICES,CLOTHING & UNIFORMS,4225,P113402-SERVICE-8x Peru Cargo Trouser - Reg W32 - Black,24/8/2021 00:00:00,251616,170,IL0177,KEELA INTERNATION LTD,26/7/2021 00:00:00,29/8/2021 00:00:00,P05-2022
P&V,RIVER LEE COUNTRY PARK,SUPPLIES AND SERVICES,CLOTHING & UNIFORMS,4225,P113402-SERVICE-Delivery,24/8/2021 00:00:00,251616,6.5,IL0177,KEELA INTERNATION LTD,26/7/2021 00:00:00,29/8/2021 00:00:00,P05-2022
P&V,RIVER LEE COUNTRY PARK,SUPPLIES AND SERVICES,CLOTHING & UNIFORMS,4225,P113525-SERVICE-6x Uniform Sweatshirts - UN014,24/8/2021 00:00:00,251779,107.34,DI0017,DIRECT BOOT & SHOE SUPPLIES,26/7/2021 00:00:00,29/8/2021 00:00:00,P05-2022
P&V,VOLUNTEERS (L&E),SUPPLIES AND SERVICES,CLOTHING & UNIFORMS,4225,P113212-SERVICE-3 x Eagle Premium Poloshirt (1150) with Sewn,24/8/2021 00:00:00,251780,39.72,DI0017,DIRECT BOOT & SHOE SUPPLIES,26/7/2021 00:00:00,29/8/2021 00:00:00,P05-2022
P&V,VOLUNTEERS (L&E),SUPPLIES AND SERVICES,CLOTHING & UNIFORMS,4225,P113212-SERVICE-3 x  Eagle Premium Poloshirt (1150) with Sewn,24/8/2021 00:00:00,251780,39.72,DI0017,DIRECT BOOT & SHOE SUPPLIES,26/7/2021 00:00:00,29/8/2021 00:00:00,P05-2022
P&V,VOLUNTEERS (L&E),SUPPLIES AND SERVICES,CLOTHING & UNIFORMS,4225,P113212-SERVICE-4 x  Eagle Premium Poloshirt (1150) with Sewn,24/8/2021 00:00:00,251780,52.96,DI0017,DIRECT BOOT & SHOE SUPPLIES,26/7/2021 00:00:00,29/8/2021 00:00:00,P05-2022
,LV LEISURE CENTRE GOLF COURSE,SUPPLIES AND SERVICES,CLOTHING & UNIFORMS,4225,P112391-SERVICE-Staff Uniform,29/7/2021 00:00:00,250294,826.75,DI0017,DIRECT BOOT & SHOE SUPPLIES,26/7/2021 00:00:00,29/8/2021 00:00:00,P05-2022
,LV LEISURE CENTRE GOLF COURSE,SUPPLIES AND SERVICES,CLOTHING & UNIFORMS,4225,P113644-SERVICE-Uniform for new starters,26/8/2021 00:00:00,251908,126.46,DI0017,DIRECT BOOT & SHOE SUPPLIES,26/7/2021 00:00:00,29/8/2021 00:00:00,P05-2022
CEO,CHIEF EXECUTIVE,SUPPLIES AND SERVICES,OFFICE EXPENSES,4311,P113597-SERVICE-4 x Black HPCH562EE Cartridges,24/8/2021 00:00:00,251828,86.96,TH0008,JKL SOLUTIONS LTD,26/7/2021 00:00:00,29/8/2021 00:00:00,P05-2022
R&B,DEMOCRATIC REPRESENTATION & MA,SUPPLIES AND SERVICES,OFFICE EXPENSES,4311,P113712-SERVICE-A4 Avery Labels (796188),29/8/2021 00:00:00,252185,32.49,TH0008,JKL SOLUTIONS LTD,26/7/2021 00:00:00,29/8/2021 00:00:00,P05-2022
,LEE VALLEY MARINA SPRINGFIELD,SUPPLIES AND SERVICES,OFFICE EXPENSES,4311,P113605-SERVICE-To supply items as requested,29/8/2021 00:00:00,251829,120.39,TH0008,JKL SOLUTIONS LTD,26/7/2021 00:00:00,29/8/2021 00:00:00,P05-2022
,LEE VALLEY CAMPSITE,SUPPLIES AND SERVICES,OFFICE EXPENSES,4311,P113734-SERVICE-Stationery,29/8/2021 00:00:00,252186,60.73,TH0008,JKL SOLUTIONS LTD,26/7/2021 00:00:00,29/8/2021 00:00:00,P05-2022
P&V,RIVER LEE COUNTRY PARK,SUPPLIES AND SERVICES,OFFICE EXPENSES,4311,P112563-SERVICE-2x A4 Dividers 12 Part - KF01515,08/05/2021 00:00,250009,1.44,TH0008,JKL SOLUTIONS LTD,26/7/2021 00:00:00,29/8/2021 00:00:00,P05-2022
P&V,RIVER LEE COUNTRY PARK,SUPPLIES AND SERVICES,OFFICE EXPENSES,4311,P112563-SERVICE-1x Wooden Stirrers 1000Pk - 51990CP,08/05/2021 00:00,250009,4.06,TH0008,JKL SOLUTIONS LTD,26/7/2021 00:00:00,29/8/2021 00:00:00,P05-2022
P&V,RIVER LEE COUNTRY PARK,SUPPLIES AND SERVICES,OFFICE EXPENSES,4311,P112563-SERVICE-2x Kraft Ripple Hot Cups 25Pk - 51913CP,08/05/2021 00:00,250009,8.6,TH0008,JKL SOLUTIONS LTD,26/7/2021 00:00:00,29/8/2021 00:00:00,P05-2022
P&V,RIVER LEE COUNTRY PARK,SUPPLIES AND SERVICES,OFFICE EXPENSES,4311,P112563-SERVICE-1x Nescafe One Cup Sachets 200Pk - NL72756,08/05/2021 00:00,250009,21.85,TH0008,JKL SOLUTIONS LTD,26/7/2021 00:00:00,29/8/2021 00:00:00,P05-2022
P&V,RIVER LEE COUNTRY PARK,SUPPLIES AND SERVICES,OFFICE EXPENSES,4311,P112563-SERVICE-1x Tetley Envelope Teabags 200Pk - TL11161,08/05/2021 00:00,250009,24.93,TH0008,JKL SOLUTIONS LTD,26/7/2021 00:00:00,29/8/2021 00:00:00,P05-2022
P&V,RIVER LEE COUNTRY PARK,SUPPLIES AND SERVICES,OFFICE EXPENSES,4311,P112563-SERVICE-2x Gel Mouse Mats Grey - KF02213,08/05/2021 00:00,250009,26.78,TH0008,JKL SOLUTIONS LTD,26/7/2021 00:00:00,29/8/2021 00:00:00,P05-2022
P&V,RIVER LEE COUNTRY PARK,SUPPLIES AND SERVICES,OFFICE EXPENSES,4311,P112563-SERVICE-3x Whiteboard Cleaner 250ml - KF04552,08/05/2021 00:00,250009,5.79,TH0008,JKL SOLUTIONS LTD,26/7/2021 00:00:00,29/8/2021 00:00:00,P05-2022
P&V,RIVER LEE COUNTRY PARK,SUPPLIES AND SERVICES,OFFICE EXPENSES,4311,P112563-SERVICE-2x OHP Pens Ass 4Pk - ST30454,08/05/2021 00:00,250009,10.62,TH0008,JKL SOLUTIONS LTD,26/7/2021 00:00:00,29/8/2021 00:00:00,P05-2022
P&V,RIVER LEE COUNTRY PARK,SUPPLIES AND SERVICES,OFFICE EXPENSES,4311,P112563-SERVICE-A4 Spiral Pad 80 Pages - KF01072,08/05/2021 00:00,250009,8.85,TH0008,JKL SOLUTIONS LTD,26/7/2021 00:00:00,29/8/2021 00:00:00,P05-2022
P&V,POLICY & PERFORMANCE (L&E),SUPPLIES AND SERVICES,OFFICE EXPENSES,4311,P113410-SERVICE-1 x 9004601 Rollerball pens Blue,29/8/2021 00:00:00,251353,13.2,TH0008,JKL SOLUTIONS LTD,26/7/2021 00:00:00,29/8/2021 00:00:00,P05-2022
P&V,POLICY & PERFORMANCE (L&E),SUPPLIES AND SERVICES,OFFICE EXPENSES,4311,P113410-SERVICE-1 x KF00678 Gel Pens Black,29/8/2021 00:00:00,251353,14.82,TH0008,JKL SOLUTIONS LTD,26/7/2021 00:00:00,29/8/2021 00:00:00,P05-2022
P&V,POLICY & PERFORMANCE (L&E),SUPPLIES AND SERVICES,OFFICE EXPENSES,4311,P113410-SERVICE-1 x KF01072 Notebooks PK 5,29/8/2021 00:00:00,251353,8.08,TH0008,JKL SOLUTIONS LTD,26/7/2021 00:00:00,29/8/2021 00:00:00,P05-2022
P&V,POLICY & PERFORMANCE (L&E),SUPPLIES AND SERVICES,OFFICE EXPENSES,4311,P113410-SERVICE-1 x KF00267 Ballpoint pens black,29/8/2021 00:00:00,251353,3.51,TH0008,JKL SOLUTIONS LTD,26/7/2021 00:00:00,29/8/2021 00:00:00,P05-2022
P&V,POLICY & PERFORMANCE (L&E),SUPPLIES AND SERVICES,OFFICE EXPENSES,4311,P113410-SERVICE-14 x DC80221 Antibacterial wipes,29/8/2021 00:00:00,251353,33.32,TH0008,JKL SOLUTIONS LTD,26/7/2021 00:00:00,29/8/2021 00:00:00,P05-2022
P&V,POLICY & PERFORMANCE (L&E),SUPPLIES AND SERVICES,OFFICE EXPENSES,4311,P113410-SERVICE-12 x WAC94506 and Sanitiser,29/8/2021 00:00:00,251353,27.6,TH0008,JKL SOLUTIONS LTD,26/7/2021 00:00:00,29/8/2021 00:00:00,P05-2022
,LEE VALLEY RIDING CENTRE,SUPPLIES AND SERVICES,OFFICE EXPENSES,4311,P113275-SERVICE-pack of 16 disenfectant wipes x 2,08/09/2021 00:00,251305,55.3,TH0008,JKL SOLUTIONS LTD,26/7/2021 00:00:00,29/8/2021 00:00:00,P05-2022
,LEE VALLEY RIDING CENTRE,SUPPLIES AND SERVICES,OFFICE EXPENSES,4311,P113275-SERVICE-paper towel dispenser,08/09/2021 00:00,251305,23.2,TH0008,JKL SOLUTIONS LTD,26/7/2021 00:00:00,29/8/2021 00:00:00,P05-2022
,LEE VALLEY RIDING CENTRE,SUPPLIES AND SERVICES,OFFICE EXPENSES,4311,P113500-SERVICE-divider x 5,24/8/2021 00:00:00,251787,3.2,TH0008,JKL SOLUTIONS LTD,26/7/2021 00:00:00,29/8/2021 00:00:00,P05-2022
,LEE VALLEY RIDING CENTRE,SUPPLIES AND SERVICES,OFFICE EXPENSES,4311,P113500-SERVICE-paper 2500 pack,24/8/2021 00:00:00,251787,16.88,TH0008,JKL SOLUTIONS LTD,26/7/2021 00:00:00,29/8/2021 00:00:00,P05-2022
,LEE VALLEY RIDING CENTRE,SUPPLIES AND SERVICES,OFFICE EXPENSES,4311,P113500-SERVICE-clipboard x 8,24/8/2021 00:00:00,251788,8.64,TH0008,JKL SOLUTIONS LTD,26/7/2021 00:00:00,29/8/2021 00:00:00,P05-2022
,LV LEISURE CENTRE CAMPSITE,SUPPLIES AND SERVICES,OFFICE EXPENSES,4311,P113308-SERVICE-Charcoal and firewood,08/03/2021 00:00,250732,150,HA0371,HARTS OF OAK,26/7/2021 00:00:00,29/8/2021 00:00:00,P05-2022
,LV LEISURE CENTRE CAMPSITE,SUPPLIES AND SERVICES,OFFICE EXPENSES,4311,P113440-SERVICE-Stocktaking,16/8/2021 00:00:00,251084,133,VE0038,VENNERS LTD,26/7/2021 00:00:00,29/8/2021 00:00:00,P05-2022
,LV LEISURE CENTRE CAMPSITE,SUPPLIES AND SERVICES,OFFICE EXPENSES,4311,P113426-SERVICE-Firewood,16/8/2021 00:00:00,251341,100,HA0371,HARTS OF OAK,26/7/2021 00:00:00,29/8/2021 00:00:00,P05-2022
,LV LEISURE CENTRE CAMPSITE,SUPPLIES AND SERVICES,OFFICE EXPENSES,4311,P113612-SERVICE-Carcoal and logs,24/8/2021 00:00:00,251838,200,HA0371,HARTS OF OAK,26/7/2021 00:00:00,29/8/2021 00:00:00,P05-2022
,LEE VALLEY ATHLETICS CENTRE,SUPPLIES AND SERVICES,OFFICE EXPENSES,4311,P113360-SERVICE-LVAC 100 X CARD NOS RECEIVED - INVOICE 59786,08/04/2021 00:00,251001,63.5,ST0184,STACY & SON,26/7/2021 00:00:00,29/8/2021 00:00:00,P05-2022
,LEE VALLEY WHITE WATER CENTRE,SUPPLIES AND SERVICES,OFFICE EXPENSES,4311,P113229-SERVICE-A4 paper,08/03/2021 00:00,250816,56.9,TH0008,JKL SOLUTIONS LTD,26/7/2021 00:00:00,29/8/2021 00:00:00,P05-2022
,LV WHITE WATER CATERING,SUPPLIES AND SERVICES,OFFICE EXPENSES,4311,P113651-SERVICE-till rolls,29/8/2021 00:00:00,251981,230.92,TH0008,JKL SOLUTIONS LTD,26/7/2021 00:00:00,29/8/2021 00:00:00,P05-2022
P&V,MYDDELTON HOUSE,SUPPLIES AND SERVICES,PHOTOCOPYING,4314,P113306-SERVICE-Navigator Universal A4 Paper 80gsm White (Pac,08/09/2021 00:00,251003,549.5,TH0008,JKL SOLUTIONS LTD,26/7/2021 00:00:00,29/8/2021 00:00:00,P05-2022
R&B,INFORMATION TECHNOLOGY,SUPPLIES AND SERVICES,PHOTOCOPYING,4314,KONICA MINOLTA BUSINESS SOLUTI,08/04/2021 00:00,250326,614.91,KO0071,KONICA MINOLTA BUSINESS SOLUTIONS ( UK) LTD,26/7/2021 00:00:00,29/8/2021 00:00:00,P05-2022
R&B,INFORMATION TECHNOLOGY,SUPPLIES AND SERVICES,PHOTOCOPYING,4314,KONICA MINOLTA BUSINESS SOLUTI,08/04/2021 00:00,250327,459.6,KO0071,KONICA MINOLTA BUSINESS SOLUTIONS ( UK) LTD,26/7/2021 00:00:00,29/8/2021 00:00:00,P05-2022
CEO,PR/COMMUNICATIONS,SUPPLIES AND SERVICES,PRINTING CORPORATE BROCHURES,4321,"P112859-SERVICE-75 x 20pp A4 business plan documents, stapled",26/8/2021 00:00:00,250200,137.58,SO0582,SOLOPRESS,26/7/2021 00:00:00,29/8/2021 00:00:00,P05-2022
CEO,PR/COMMUNICATIONS,SUPPLIES AND SERVICES,PRINTING CORPORATE BROCHURES,4321,"P113071-SERVICE-20,000 2pp A5 flyers printed on 130gsm stock",08/02/2021 00:00,250508,189.8,SO0582,SOLOPRESS,26/7/2021 00:00:00,29/8/2021 00:00:00,P05-2022
CEO,PR/COMMUNICATIONS,SUPPLIES AND SERVICES,PRINTING CORPORATE BROCHURES,4321,"P112859-SERVICE-75 x 20pp A4 business plan documents, stapled",26/8/2021 00:00:00,251956,-27.52,SO0582,SOLOPRESS,26/7/2021 00:00:00,29/8/2021 00:00:00,P05-2022
P&V,"ASSET PROTECTION, MAINT, DEVEL",SUPPLIES AND SERVICES,PUBLICATIONS,4333,P113798-SERVICE-Building Regs Docs,29/8/2021 00:00:00,250015,25,ST0053,THE STATIONERY OFFICE LTD,26/7/2021 00:00:00,29/8/2021 00:00:00,P05-2022
P&V,LEE VALLEY FARM HOLYFIELDHALL,SUPPLIES AND SERVICES,SUBSCRIPTIONS,4334,P113491-SERVICE-Subs,08/10/2021 00:00,251393,364.88,NA0005,NATIONAL MILK RECORDS PLC,26/7/2021 00:00:00,29/8/2021 00:00:00,P05-2022
P&V,LEE VALLEY FARM HOLYFIELDHALL,SUPPLIES AND SERVICES,SUBSCRIPTIONS,4334,P112561-SERVICE-Subs,08/10/2021 00:00,251395,110,NA0005,NATIONAL MILK RECORDS PLC,26/7/2021 00:00:00,29/8/2021 00:00:00,P05-2022
P&V,MYDDELTON HOUSE GARDENS,SUPPLIES AND SERVICES,SUBSCRIPTIONS,4334,"P113356-SERVICE-Visit England Assessment, Visitor Attraction",08/09/2021 00:00,250766,250.52,VI0109,VISIT ENGLAND ASSESSMENT SERVICES,26/7/2021 00:00:00,29/8/2021 00:00:00,P05-2022
R&B,REVENUE SUSPENSE (AUTHORITY),SUPPLIES AND SERVICES,TELEPHONES (MOBILE),4484,VODAFONE  LIMITED (CORPORATE),08/03/2021 00:00,250707,587.3,VO0010,VODAFONE  LIMITED (CORPORATE),26/7/2021 00:00:00,29/8/2021 00:00:00,P05-2022
R&B,REVENUE SUSPENSE (AUTHORITY),SUPPLIES AND SERVICES,TELEPHONES (MOBILE),4484,GAMMA TELECOM LTD,08/03/2021 00:00,250708,713.15,GA0432,GAMMA TELECOM LTD,26/7/2021 00:00:00,29/8/2021 00:00:00,P05-2022
R&B,REVENUE SUSPENSE (AUTHORITY),SUPPLIES AND SERVICES,TELEPHONES (MOBILE),4484,GAMMA TELECOM LTD,08/03/2021 00:00,250709,700.62,GA0432,GAMMA TELECOM LTD,26/7/2021 00:00:00,29/8/2021 00:00:00,P05-2022
R&B,REVENUE SUSPENSE (AUTHORITY),SUPPLIES AND SERVICES,TELEPHONES (MOBILE),4484,GAMMA TELECOM LTD,08/03/2021 00:00,250710,703.63,GA0432,GAMMA TELECOM LTD,26/7/2021 00:00:00,29/8/2021 00:00:00,P05-2022
R&B,REVENUE SUSPENSE (AUTHORITY),SUPPLIES AND SERVICES,TELEPHONES (MOBILE),4484,GAMMA TELECOM LTD,08/03/2021 00:00,250711,707.42,GA0432,GAMMA TELECOM LTD,26/7/2021 00:00:00,29/8/2021 00:00:00,P05-2022
R&B,REVENUE SUSPENSE (AUTHORITY),SUPPLIES AND SERVICES,TELEPHONES (MOBILE),4484,GAMMA TELECOM LTD,25/8/2021 00:00:00,251811,704.8,GA0432,GAMMA TELECOM LTD,26/7/2021 00:00:00,29/8/2021 00:00:00,P05-2022
R&B,REVENUE SUSPENSE (AUTHORITY),SUPPLIES AND SERVICES,TELEPHONES (MOBILE),4484,VODAFONE  LIMITED (CORPORATE),29/8/2021 00:00:00,251974,533.06,VO0010,VODAFONE  LIMITED (CORPORATE),26/7/2021 00:00:00,29/8/2021 00:00:00,P05-2022
R&B,DEMOCRATIC REPRESENTATION & MA,SUPPLIES AND SERVICES,MEMBERS EXPENSES,4502,P113726-SERVICE-Scanning,29/8/2021 00:00:00,252037,94.5,ME0034,MERLIN DOCUMENT MANAGEMENT SOLUTIONS,26/7/2021 00:00:00,29/8/2021 00:00:00,P05-2022
,LEE VALLEY CAMPSITE,SUPPLIES AND SERVICES,MARKETING,4603,P113340-SERVICE-2x 12ft x 3ft Banners,08/03/2021 00:00,250768,147.94,MA0167,MARTIN DANNELL & CO LTD,26/7/2021 00:00:00,29/8/2021 00:00:00,P05-2022
,LEE VALLEY CAMPSITE,SUPPLIES AND SERVICES,MARKETING,4603,P113263-SERVICE-SAFETY FLYERS,08/02/2021 00:00,250852,37.65,SO0582,SOLOPRESS,26/7/2021 00:00:00,29/8/2021 00:00:00,P05-2022
,LEE VALLEY CAMPSITE,SUPPLIES AND SERVICES,MARKETING,4603,P113263-SERVICE-BARRIER CARDS,08/02/2021 00:00,250853,27.8,SO0582,SOLOPRESS,26/7/2021 00:00:00,29/8/2021 00:00:00,P05-2022
,LEE VALLEY CAMPSITE,SUPPLIES AND SERVICES,MARKETING,4603,P112545-SERVICE-Barrier Artwork,08/09/2021 00:00,251107,28.5,BL0393,BLUE SEA DESIGN,26/7/2021 00:00:00,29/8/2021 00:00:00,P05-2022
,LEE VALLEY CARAVAN PARK,SUPPLIES AND SERVICES,MARKETING,4603,P113309-SERVICE-4 large banners,29/7/2021 00:00:00,250767,288.38,MA0167,MARTIN DANNELL & CO LTD,26/7/2021 00:00:00,29/8/2021 00:00:00,P05-2022
,LEE VALLEY CARAVAN PARK,SUPPLIES AND SERVICES,MARKETING,4603,P113507-SERVICE-5000 welcome envelopes,24/8/2021 00:00:00,251804,261.68,SO0582,SOLOPRESS,26/7/2021 00:00:00,29/8/2021 00:00:00,P05-2022
P&V,SOUTH AREA RANGERS,SUPPLIES AND SERVICES,MARKETING,4603,P112721-SERVICE-A5 Dog Walking Leaflet Design,08/09/2021 00:00,250552,190,BL0393,BLUE SEA DESIGN,26/7/2021 00:00:00,29/8/2021 00:00:00,P05-2022
,VENUES MANAGEMENT,SUPPLIES AND SERVICES,MARKETING,4603,P113148-SERVICE-3 sets of 10 x bollard covers (3 panels 390mm,26/8/2021 00:00:00,250597,155.8,SO0582,SOLOPRESS,26/7/2021 00:00:00,29/8/2021 00:00:00,P05-2022
,VENUES MANAGEMENT,SUPPLIES AND SERVICES,MARKETING,4603,P113148-SERVICE-3 sets of 10 x bollard covers (3 panels 390mm,26/8/2021 00:00:00,250598,155.8,SO0582,SOLOPRESS,26/7/2021 00:00:00,29/8/2021 00:00:00,P05-2022
,VENUES MANAGEMENT,SUPPLIES AND SERVICES,MARKETING,4603,P113148-SERVICE-3 sets of 10 x bollard covers (3 panels 390mm,26/8/2021 00:00:00,250599,155.8,SO0582,SOLOPRESS,26/7/2021 00:00:00,29/8/2021 00:00:00,P05-2022
,LEE VALLEY VELOPARK,SUPPLIES AND SERVICES,MARKETING,4603,"P113565-SERVICE-Cards, Vouchers & Forms",29/8/2021 00:00:00,251799,28.89,SO0582,SOLOPRESS,26/7/2021 00:00:00,29/8/2021 00:00:00,P05-2022
,LEE VALLEY VELOPARK,SUPPLIES AND SERVICES,MARKETING,4603,"P113565-SERVICE-Cards, Vouchers & Forms",29/8/2021 00:00:00,251800,28.89,SO0582,SOLOPRESS,26/7/2021 00:00:00,29/8/2021 00:00:00,P05-2022
,LEE VALLEY VELOPARK,SUPPLIES AND SERVICES,MARKETING,4603,"P113565-SERVICE-Cards, Vouchers & Forms",29/8/2021 00:00:00,251831,29.32,SO0582,SOLOPRESS,26/7/2021 00:00:00,29/8/2021 00:00:00,P05-2022
,LEE VALLEY VELOPARK,SUPPLIES AND SERVICES,MARKETING,4603,"P113565-SERVICE-Cards, Vouchers & Forms",29/8/2021 00:00:00,251832,29.32,SO0582,SOLOPRESS,26/7/2021 00:00:00,29/8/2021 00:00:00,P05-2022
,LEE VALLEY VELOPARK,SUPPLIES AND SERVICES,MARKETING,4603,P112595-SERVICE-Printing of Amended Leaflet,29/8/2021 00:00:00,251833,28.51,SO0582,SOLOPRESS,26/7/2021 00:00:00,29/8/2021 00:00:00,P05-2022
,LV LEISURE CENTRE CAMPSITE,SUPPLIES AND SERVICES,MARKETING,4603,P113357-SERVICE-Signs,08/09/2021 00:00,250769,288.38,MA0167,MARTIN DANNELL & CO LTD,26/7/2021 00:00:00,29/8/2021 00:00:00,P05-2022
,LV LEISURE CENTRE CAMPSITE,SUPPLIES AND SERVICES,MARKETING,4603,P113302-SERVICE-business cards,08/09/2021 00:00,251059,27.8,SO0582,SOLOPRESS,26/7/2021 00:00:00,29/8/2021 00:00:00,P05-2022
,LV LEISURE CENTRE CAMPSITE,SUPPLIES AND SERVICES,MARKETING,4603,P112545-SERVICE-Barrier Artwork,08/09/2021 00:00,251107,28.5,BL0393,BLUE SEA DESIGN,26/7/2021 00:00:00,29/8/2021 00:00:00,P05-2022
,LV LEISURE CENTRE CAMPSITE,SUPPLIES AND SERVICES,MARKETING,4603,P113303-SERVICE-So ress,16/8/2021 00:00:00,251111,37.65,SO0582,SOLOPRESS,26/7/2021 00:00:00,29/8/2021 00:00:00,P05-2022
,LV LEISURE CENTRE GOLF COURSE,SUPPLIES AND SERVICES,MARKETING,4603,P113396-SERVICE-banners,16/8/2021 00:00:00,251336,147.94,MA0167,MARTIN DANNELL & CO LTD,26/7/2021 00:00:00,29/8/2021 00:00:00,P05-2022
,LV LEISURE CENTRE GOLF COURSE,SUPPLIES AND SERVICES,MARKETING,4603,P113395-SERVICE-BANNERS,16/8/2021 00:00:00,251337,147.94,MA0167,MARTIN DANNELL & CO LTD,26/7/2021 00:00:00,29/8/2021 00:00:00,P05-2022
,LEE VALLEY ATHLETICS CENTRE,SUPPLIES AND SERVICES,MARKETING,4603,P112975-SERVICE-To create artwork for posters and TV screens,29/8/2021 00:00:00,250551,874,BL0393,BLUE SEA DESIGN,26/7/2021 00:00:00,29/8/2021 00:00:00,P05-2022
,LEE VALLEY WHITE WATER CENTRE,SUPPLIES AND SERVICES,MARKETING,4603,P112818-SERVICE-2 x Pay here signs,08/03/2021 00:00,250755,400,SI0024,SIGNS EXPRESS (HARLOW),26/7/2021 00:00:00,29/8/2021 00:00:00,P05-2022
,LEE VALLEY WHITE WATER CENTRE,SUPPLIES AND SERVICES,MARKETING,4603,P112818-SERVICE-3 x Double sided lamp post banners,08/03/2021 00:00,250755,255,SI0024,SIGNS EXPRESS (HARLOW),26/7/2021 00:00:00,29/8/2021 00:00:00,P05-2022
,LEE VALLEY WHITE WATER CENTRE,SUPPLIES AND SERVICES,MARKETING,4603,P112818-SERVICE-1 x installation,08/03/2021 00:00,250755,325,SI0024,SIGNS EXPRESS (HARLOW),26/7/2021 00:00:00,29/8/2021 00:00:00,P05-2022
,LEE VALLEY WHITE WATER CENTRE,SUPPLIES AND SERVICES,MARKETING,4603,P112818-SERVICE-50 x composite panels,08/03/2021 00:00,250755,225,SI0024,SIGNS EXPRESS (HARLOW),26/7/2021 00:00:00,29/8/2021 00:00:00,P05-2022
,LEE VALLEY WHITE WATER CENTRE,SUPPLIES AND SERVICES,MARKETING,4603,P113232-SERVICE-4 x A1 posters printed on pull up banner viny,16/8/2021 00:00:00,251040,45.96,MA0167,MARTIN DANNELL & CO LTD,26/7/2021 00:00:00,29/8/2021 00:00:00,P05-2022
,LEE VALLEY WHITE WATER CENTRE,SUPPLIES AND SERVICES,MARKETING,4603,P112861-SERVICE-2 x 1860 x 800mm black backed vinyl banners f,16/8/2021 00:00:00,251097,70,MA0167,MARTIN DANNELL & CO LTD,26/7/2021 00:00:00,29/8/2021 00:00:00,P05-2022
,LEE VALLEY WATERWORKS CENTRE,SUPPLIES AND SERVICES,PEST CONTROL,4625,P112193-SERVICE-Pest Control - WaterWorks,08/04/2021 00:00,250067,165,VE0006,VERMINATE CITY & RURAL PEST CONTROL LTD,26/7/2021 00:00:00,29/8/2021 00:00:00,P05-2022
P&V,NORTH AREA RANGERS,SUPPLIES AND SERVICES,PEST CONTROL,4625,P111749-SERVICE-Pest Control - Ware Town Centre,16/8/2021 00:00:00,250065,53.34,VE0006,VERMINATE CITY & RURAL PEST CONTROL LTD,26/7/2021 00:00:00,29/8/2021 00:00:00,P05-2022
P&V,FORMER LV LIDO SITE,SUPPLIES AND SERVICES,PEST CONTROL,4625,P111748-SERVICE-Pest Control - North Sites,16/8/2021 00:00:00,250064,200,VE0006,VERMINATE CITY & RURAL PEST CONTROL LTD,26/7/2021 00:00:00,29/8/2021 00:00:00,P05-2022
,LEE VALLEY WHITE WATER CENTRE,SUPPLIES AND SERVICES,PEST CONTROL,4625,P113463-SERVICE-Pest Control 20.07.21 to 19.07.22,16/8/2021 00:00:00,251427,684,RE0014,RENTOKIL INITIAL PEST CONTROL,26/7/2021 00:00:00,29/8/2021 00:00:00,P05-2022
,LEE VALLEY MARINA SPRINGFIELD,SUPPLIES AND SERVICES,MERCHANT PROCESSING CHARGES,4641,WORLDPAY,24/8/2021 00:00:00,251295,15,WO0338,WORLDPAY,26/7/2021 00:00:00,29/8/2021 00:00:00,P05-2022
,LEE VALLEY MARINA STANSTEAD,SUPPLIES AND SERVICES,MERCHANT PROCESSING CHARGES,4641,WORLDPAY,24/8/2021 00:00:00,251295,15,WO0338,WORLDPAY,26/7/2021 00:00:00,29/8/2021 00:00:00,P05-2022
,LEE VALLEY CARAVAN PARK,SUPPLIES AND SERVICES,SECURITY,4650,P113667-SERVICE-Intruder alarm maintenance,24/8/2021 00:00:00,251399,726.73,AD0015,ADT FIRE & SECURITY PLC,26/7/2021 00:00:00,29/8/2021 00:00:00,P05-2022
P&V,EAST INDIA DOCK AND BOW CREEK,SUPPLIES AND SERVICES,SECURITY,4650,P112286-SERVICE-Security - South of the Park,08/09/2021 00:00,251319,9853.65,PA0059,PARKGUARD LTD,26/7/2021 00:00:00,29/8/2021 00:00:00,P05-2022
P&V,EAST INDIA DOCK AND BOW CREEK,SUPPLIES AND SERVICES,SECURITY,4650,P112286-SERVICE-Security - South of the Park,08/09/2021 00:00,251320,1146.35,PA0059,PARKGUARD LTD,26/7/2021 00:00:00,29/8/2021 00:00:00,P05-2022
P&V,NORTH AREA RANGERS,SUPPLIES AND SERVICES,SECURITY,4650,P112285-SERVICE-Security - North of the Park,08/09/2021 00:00,251318,5663.97,PA0059,PARKGUARD LTD,26/7/2021 00:00:00,29/8/2021 00:00:00,P05-2022
P&V,SOUTH AREA RANGERS,SUPPLIES AND SERVICES,SECURITY,4650,P113191-SERVICE-Additional Security - Coppermill,08/09/2021 00:00,251133,432,PA0059,PARKGUARD LTD,26/7/2021 00:00:00,29/8/2021 00:00:00,P05-2022
P&V,SOUTH AREA RANGERS,SUPPLIES AND SERVICES,SECURITY,4650,P113020-SERVICE-AdditionalSecurity - South of Park,08/09/2021 00:00,251134,1080,PA0059,PARKGUARD LTD,26/7/2021 00:00:00,29/8/2021 00:00:00,P05-2022
P&V,SOUTH AREA RANGERS,SUPPLIES AND SERVICES,SECURITY,4650,P113020-SERVICE-AdditionalSecurity - South of Park,08/09/2021 00:00,251134,864,PA0059,PARKGUARD LTD,26/7/2021 00:00:00,29/8/2021 00:00:00,P05-2022
P&V,SOUTH AREA RANGERS,SUPPLIES AND SERVICES,SECURITY,4650,P113066-SERVICE-Additional Security - Coppermill Rave,08/09/2021 00:00,251136,648,PA0059,PARKGUARD LTD,26/7/2021 00:00:00,29/8/2021 00:00:00,P05-2022
P&V,SOUTH AREA RANGERS,SUPPLIES AND SERVICES,SECURITY,4650,P113066-SERVICE-Additional Security - Tottenham Marshes,08/09/2021 00:00,251136,432,PA0059,PARKGUARD LTD,26/7/2021 00:00:00,29/8/2021 00:00:00,P05-2022
P&V,SOUTH AREA RANGERS,SUPPLIES AND SERVICES,SECURITY,4650,P113066-SERVICE-Additional Security - WaterWorks,08/09/2021 00:00,251136,864,PA0059,PARKGUARD LTD,26/7/2021 00:00:00,29/8/2021 00:00:00,P05-2022
P&V,SOUTH AREA RANGERS,SUPPLIES AND SERVICES,SECURITY,4650,P112286-SERVICE-Security - South of the Park,08/09/2021 00:00,251320,4954.23,PA0059,PARKGUARD LTD,26/7/2021 00:00:00,29/8/2021 00:00:00,P05-2022
P&V,SOUTH AREA RANGERS,SUPPLIES AND SERVICES,SECURITY,4650,P112286-SERVICE-Security - South of the Park,08/09/2021 00:00,251321,8423.1,PA0059,PARKGUARD LTD,26/7/2021 00:00:00,29/8/2021 00:00:00,P05-2022
P&V,SOUTH AREA RANGERS,SUPPLIES AND SERVICES,SECURITY,4650,P113457-SERVICE-Additional Security - Coppermill,16/8/2021 00:00:00,251458,360,PA0059,PARKGUARD LTD,26/7/2021 00:00:00,29/8/2021 00:00:00,P05-2022
P&V,SOUTH AREA RANGERS,SUPPLIES AND SERVICES,SECURITY,4650,P113548-SERVICE-Additional Security-Coppermill,17/8/2021 00:00:00,251633,432,PA0059,PARKGUARD LTD,26/7/2021 00:00:00,29/8/2021 00:00:00,P05-2022
P&V,SOUTH AREA RANGERS,SUPPLIES AND SERVICES,SECURITY,4650,P113548-SERVICE-Additional Security-Coppermill,17/8/2021 00:00:00,251633,432,PA0059,PARKGUARD LTD,26/7/2021 00:00:00,29/8/2021 00:00:00,P05-2022
P&V,SOUTH AREA RANGERS,SUPPLIES AND SERVICES,SECURITY,4650,P113548-SERVICE-Additional Security-Coppermill,17/8/2021 00:00:00,251633,216,PA0059,PARKGUARD LTD,26/7/2021 00:00:00,29/8/2021 00:00:00,P05-2022
P&V,SOUTH AREA RANGERS,SUPPLIES AND SERVICES,SECURITY,4650,P113542-SERVICE-Traveller Incursion Security at Rammey Marsh,24/8/2021 00:00:00,251803,846,PA0059,PARKGUARD LTD,26/7/2021 00:00:00,29/8/2021 00:00:00,P05-2022
P&V,SOUTH AREA RANGERS,SUPPLIES AND SERVICES,SECURITY,4650,P113603-SERVICE-Additional Security-Coppermill,29/8/2021 00:00:00,251957,432,PA0059,PARKGUARD LTD,26/7/2021 00:00:00,29/8/2021 00:00:00,P05-2022
P&V,GUNPOWDER PARK,SUPPLIES AND SERVICES,SECURITY,4650,P112286-SERVICE-Security - South of the Park,08/09/2021 00:00,251320,1500,PA0059,PARKGUARD LTD,26/7/2021 00:00:00,29/8/2021 00:00:00,P05-2022
P&V,GUNPOWDER PARK,SUPPLIES AND SERVICES,SECURITY,4650,P113509-SERVICE-Traveller Eviction at Rammey Marsh,17/8/2021 00:00:00,251640,2995,GR0236,G R C BAILIFFS,26/7/2021 00:00:00,29/8/2021 00:00:00,P05-2022
P&V,THREE MILLS,SUPPLIES AND SERVICES,SECURITY,4650,P112286-SERVICE-Security - South of the Park,08/09/2021 00:00,251320,1800,PA0059,PARKGUARD LTD,26/7/2021 00:00:00,29/8/2021 00:00:00,P05-2022
CEO,PR/COMMUNICATIONS,SUPPLIES AND SERVICES,ARTWORK,4664,P112436-SERVICE-Regional summer campaign,29/8/2021 00:00:00,250551,19,BL0393,BLUE SEA DESIGN,26/7/2021 00:00:00,29/8/2021 00:00:00,P05-2022
CEO,PR/COMMUNICATIONS,SUPPLIES AND SERVICES,ARTWORK,4664,P112436-SERVICE-Regional summer campaign,18/8/2021 00:00:00,251108,969,BL0393,BLUE SEA DESIGN,26/7/2021 00:00:00,29/8/2021 00:00:00,P05-2022
R&B,PERFORMANCE MANAGEMENT,SUPPLIES AND SERVICES,OFFSITE ARCHIVED STORAGE,4667,P113585-SERVICE-Off Site storage July 2021,17/8/2021 00:00:00,251390,310.39,DA0154,RESTORE PLC,26/7/2021 00:00:00,29/8/2021 00:00:00,P05-2022
,LEE VALLEY ICE CENTRE,SUPPLIES AND SERVICES,OFFSITE ARCHIVED STORAGE,4667,P113587-SERVICE-July 2021 Project Management,17/8/2021 00:00:00,251455,58615,WR0199,WRENBRIDGE LAND LTD,26/7/2021 00:00:00,29/8/2021 00:00:00,P05-2022
,LEE VALLEY ATHLETICS CENTRE,SUPPLIES AND SERVICES,ENTERTAINMENT & OTHER LICENCES,4711,P113523-SERVICE-LVAC LICENSE LN/201600298,16/8/2021 00:00:00,251083,350,EN0120,LONDON BOROUGH OF ENFIELD,26/7/2021 00:00:00,29/8/2021 00:00:00,P05-2022
,LV WHITE WATER CATERING,SUPPLIES AND SERVICES,ENTERTAINMENT & OTHER LICENCES,4711,P113658-SERVICE-licencess,25/8/2021 00:00:00,251309,70,BR0016,BOROUGH OF BROXBOURNE,26/7/2021 00:00:00,29/8/2021 00:00:00,P05-2022
P&V,LEE VALLEY FARM HOLYFIELDHALL,THIRD PARTY PAYMENTS,VETERINARY SERVICES,4718,P113492-SERVICE-Vets,08/10/2021 00:00,251404,250,NO0108,WESTPOINT GROUP TRADING LTD,26/7/2021 00:00:00,29/8/2021 00:00:00,P05-2022
P&V,LEE VALLEY FARM HOLYFIELDHALL,THIRD PARTY PAYMENTS,VETERINARY SERVICES,4718,P113586-SERVICE-Vets,17/8/2021 00:00:00,251428,250,NO0108,WESTPOINT GROUP TRADING LTD,26/7/2021 00:00:00,29/8/2021 00:00:00,P05-2022
,LEE VALLEY RIDING CENTRE,THIRD PARTY PAYMENTS,VETERINARY SERVICES,4718,P112168-SERVICE-vet services April 2021 onwards,08/03/2021 00:00,250849,580.49,BA0566,BALLINGER EQUINE LTD,26/7/2021 00:00:00,29/8/2021 00:00:00,P05-2022
,LEE VALLEY RIDING CENTRE,THIRD PARTY PAYMENTS,VETERINARY SERVICES,4718,P112168-SERVICE-vet services April 2021 onwards,08/10/2021 00:00,251166,708.63,BA0566,BALLINGER EQUINE LTD,26/7/2021 00:00:00,29/8/2021 00:00:00,P05-2022
,LEE VALLEY RIDING CENTRE,THIRD PARTY PAYMENTS,VETERINARY SERVICES,4718,P112168-SERVICE-vet services April 2021 onwards,16/8/2021 00:00:00,251407,361.58,BA0566,BALLINGER EQUINE LTD,26/7/2021 00:00:00,29/8/2021 00:00:00,P05-2022
,LEE VALLEY RIDING CENTRE,THIRD PARTY PAYMENTS,FARRIER,4719,P112202-SERVICE-farrier services,08/03/2021 00:00,250188,345,CO0061,L COLLINS,26/7/2021 00:00:00,29/8/2021 00:00:00,P05-2022
,LEE VALLEY RIDING CENTRE,THIRD PARTY PAYMENTS,FARRIER,4719,P112202-SERVICE-farrier services,08/03/2021 00:00,250789,305,CO0061,L COLLINS,26/7/2021 00:00:00,29/8/2021 00:00:00,P05-2022
,LEE VALLEY RIDING CENTRE,THIRD PARTY PAYMENTS,FARRIER,4719,P112202-SERVICE-farrier services,08/03/2021 00:00,250790,255,CO0061,L COLLINS,26/7/2021 00:00:00,29/8/2021 00:00:00,P05-2022
,LEE VALLEY RIDING CENTRE,THIRD PARTY PAYMENTS,FARRIER,4719,P112202-SERVICE-farrier services,08/03/2021 00:00,250791,370,CO0061,L COLLINS,26/7/2021 00:00:00,29/8/2021 00:00:00,P05-2022
,LEE VALLEY RIDING CENTRE,THIRD PARTY PAYMENTS,SADDLER,4720,P112909-SERVICE-used saddle for riding school pony,08/09/2021 00:00,251125,100,SH0662,CHARLEY SHANKS,26/7/2021 00:00:00,29/8/2021 00:00:00,P05-2022
,LEE VALLEY VELOPARK CATERING,SUPPLIES AND SERVICES,CATERING PURCHASES (CORPORATE),4772,P113282-SERVICE-Catering 21 July,08/03/2021 00:00,250865,615.85,SH0256,SHARRONS EVENT CATERING COMPANY LTD,26/7/2021 00:00:00,29/8/2021 00:00:00,P05-2022
P&V,MYDDLETON HSE HERITAGE CENTRE,SUPPLIES AND SERVICES,NET CATERING PURCHASES,4777,P112999-SERVICE-Food/drink order w.e. 18.07.2021,08/02/2021 00:00,250757,-8.05,360001,BIDFOOD,26/7/2021 00:00:00,29/8/2021 00:00:00,P05-2022
P&V,MYDDLETON HSE HERITAGE CENTRE,SUPPLIES AND SERVICES,NET CATERING PURCHASES,4777,BIDFOOD,08/03/2021 00:00,250788,206.3,360001,BIDFOOD,26/7/2021 00:00:00,29/8/2021 00:00:00,P05-2022
P&V,MYDDLETON HSE HERITAGE CENTRE,SUPPLIES AND SERVICES,NET CATERING PURCHASES,4777,BIDFOOD,08/03/2021 00:00,250788,-416.05,360001,BIDFOOD,26/7/2021 00:00:00,29/8/2021 00:00:00,P05-2022
P&V,MYDDLETON HSE HERITAGE CENTRE,SUPPLIES AND SERVICES,NET CATERING PURCHASES,4777,P113197-SERVICE-Food/Drink order w.e 25/07/21,08/03/2021 00:00,250788,416.05,360001,BIDFOOD,26/7/2021 00:00:00,29/8/2021 00:00:00,P05-2022
P&V,MYDDLETON HSE HERITAGE CENTRE,SUPPLIES AND SERVICES,NET CATERING PURCHASES,4777,BIDFOOD,08/03/2021 00:00,250788,209.75,360001,BIDFOOD,26/7/2021 00:00:00,29/8/2021 00:00:00,P05-2022
P&V,MYDDLETON HSE HERITAGE CENTRE,SUPPLIES AND SERVICES,NET CATERING PURCHASES,4777,BIDFOOD,08/09/2021 00:00,251020,78.75,360001,BIDFOOD,26/7/2021 00:00:00,29/8/2021 00:00:00,P05-2022
P&V,MYDDLETON HSE HERITAGE CENTRE,SUPPLIES AND SERVICES,NET CATERING PURCHASES,4777,P113315-SERVICE-Food/Drink order w.e 01.08.21,08/09/2021 00:00,251020,255.17,360001,BIDFOOD,26/7/2021 00:00:00,29/8/2021 00:00:00,P05-2022
P&V,MYDDLETON HSE HERITAGE CENTRE,SUPPLIES AND SERVICES,NET CATERING PURCHASES,4777,BIDFOOD,08/09/2021 00:00,251020,-255.17,360001,BIDFOOD,26/7/2021 00:00:00,29/8/2021 00:00:00,P05-2022
P&V,MYDDLETON HSE HERITAGE CENTRE,SUPPLIES AND SERVICES,NET CATERING PURCHASES,4777,BIDFOOD,08/09/2021 00:00,251020,176.42,360001,BIDFOOD,26/7/2021 00:00:00,29/8/2021 00:00:00,P05-2022
P&V,MYDDLETON HSE HERITAGE CENTRE,SUPPLIES AND SERVICES,NET CATERING PURCHASES,4777,P113367-SERVICE-Food/Drink order w.e. 08.08.2021,17/8/2021 00:00:00,251362,454.1,360001,BIDFOOD,26/7/2021 00:00:00,29/8/2021 00:00:00,P05-2022
P&V,MYDDLETON HSE HERITAGE CENTRE,SUPPLIES AND SERVICES,NET CATERING PURCHASES,4777,BIDFOOD,17/8/2021 00:00:00,251362,365.02,360001,BIDFOOD,26/7/2021 00:00:00,29/8/2021 00:00:00,P05-2022
P&V,MYDDLETON HSE HERITAGE CENTRE,SUPPLIES AND SERVICES,NET CATERING PURCHASES,4777,BIDFOOD,17/8/2021 00:00:00,251362,-454.1,360001,BIDFOOD,26/7/2021 00:00:00,29/8/2021 00:00:00,P05-2022
P&V,MYDDLETON HSE HERITAGE CENTRE,SUPPLIES AND SERVICES,NET CATERING PURCHASES,4777,BIDFOOD,17/8/2021 00:00:00,251362,89.08,360001,BIDFOOD,26/7/2021 00:00:00,29/8/2021 00:00:00,P05-2022
P&V,MYDDLETON HSE HERITAGE CENTRE,SUPPLIES AND SERVICES,NET CATERING PURCHASES,4777,P113404-SERVICE-Milk order for coffee machine w.e 08.08.2021,18/8/2021 00:00:00,251367,127.49,RO0216,ROMBOUTS COFFEE GB LIMITED,26/7/2021 00:00:00,29/8/2021 00:00:00,P05-2022
P&V,MYDDLETON HSE HERITAGE CENTRE,SUPPLIES AND SERVICES,NET CATERING PURCHASES,4777,P113367-SERVICE-Food/Drink order w.e. 08.08.2021,17/8/2021 00:00:00,251449,-14.03,360001,BIDFOOD,26/7/2021 00:00:00,29/8/2021 00:00:00,P05-2022
P&V,MYDDLETON HSE HERITAGE CENTRE,SUPPLIES AND SERVICES,NET CATERING PURCHASES,4777,P113068-SERVICE-Hot Chocolate & coffee beans Order July 2021,18/8/2021 00:00:00,251632,95.5,TU0194,TUDOR TEA & COFFEE,26/7/2021 00:00:00,29/8/2021 00:00:00,P05-2022
P&V,MYDDLETON HSE HERITAGE CENTRE,SUPPLIES AND SERVICES,NET CATERING PURCHASES,4777,BIDFOOD,29/8/2021 00:00:00,251848,328.25,360001,BIDFOOD,26/7/2021 00:00:00,29/8/2021 00:00:00,P05-2022
P&V,MYDDLETON HSE HERITAGE CENTRE,SUPPLIES AND SERVICES,NET CATERING PURCHASES,4777,BIDFOOD,29/8/2021 00:00:00,251848,349.98,360001,BIDFOOD,26/7/2021 00:00:00,29/8/2021 00:00:00,P05-2022
P&V,MYDDLETON HSE HERITAGE CENTRE,SUPPLIES AND SERVICES,NET CATERING PURCHASES,4777,BIDFOOD,29/8/2021 00:00:00,251848,-678.23,360001,BIDFOOD,26/7/2021 00:00:00,29/8/2021 00:00:00,P05-2022
P&V,MYDDLETON HSE HERITAGE CENTRE,SUPPLIES AND SERVICES,NET CATERING PURCHASES,4777,P113528-SERVICE-Food/Drink order w.e. 15.08.2021,29/8/2021 00:00:00,251848,678.23,360001,BIDFOOD,26/7/2021 00:00:00,29/8/2021 00:00:00,P05-2022
P&V,MYDDLETON HSE HERITAGE CENTRE,SUPPLIES AND SERVICES,NET CATERING PURCHASES,4777,P113528-SERVICE-Food/Drink order w.e. 15.08.2021,29/8/2021 00:00:00,251849,-16.98,360001,BIDFOOD,26/7/2021 00:00:00,29/8/2021 00:00:00,P05-2022
P&V,MYDDLETON HSE HERITAGE CENTRE,SUPPLIES AND SERVICES,NET CATERING PURCHASES,4777,P113367-SERVICE-Food/Drink order w.e. 08.08.2021,24/8/2021 00:00:00,251851,-59,360001,BIDFOOD,26/7/2021 00:00:00,29/8/2021 00:00:00,P05-2022
P&V,MYDDLETON HSE HERITAGE CENTRE,SUPPLIES AND SERVICES,NET CATERING PURCHASES,4777,P113602-SERVICE-Food/Drink order w.e 22.08.2021,29/8/2021 00:00:00,251909,560.62,360001,BIDFOOD,26/7/2021 00:00:00,29/8/2021 00:00:00,P05-2022
P&V,MYDDLETON HSE HERITAGE CENTRE,SUPPLIES AND SERVICES,NET CATERING PURCHASES,4777,BIDFOOD,29/8/2021 00:00:00,251909,-560.62,360001,BIDFOOD,26/7/2021 00:00:00,29/8/2021 00:00:00,P05-2022
P&V,MYDDLETON HSE HERITAGE CENTRE,SUPPLIES AND SERVICES,NET CATERING PURCHASES,4777,BIDFOOD,29/8/2021 00:00:00,251909,330.07,360001,BIDFOOD,26/7/2021 00:00:00,29/8/2021 00:00:00,P05-2022
P&V,MYDDLETON HSE HERITAGE CENTRE,SUPPLIES AND SERVICES,NET CATERING PURCHASES,4777,BIDFOOD,29/8/2021 00:00:00,251909,230.55,360001,BIDFOOD,26/7/2021 00:00:00,29/8/2021 00:00:00,P05-2022
P&V,MYDDLETON HSE HERITAGE CENTRE,SUPPLIES AND SERVICES,NET CATERING PURCHASES,4777,P113602-SERVICE-Food/Drink order w.e 22.08.2021,29/8/2021 00:00:00,251930,15.68,360001,BIDFOOD,26/7/2021 00:00:00,29/8/2021 00:00:00,P05-2022
P&V,MYDDLETON HSE HERITAGE CENTRE,SUPPLIES AND SERVICES,NET GIFT SHOP PURCHASES,4779,"P113591-SERVICE-Footpath Maps, Heritage Walks Clay Hill &",18/8/2021 00:00:00,251631,157.5,EN0338,ENFIELD PRESERVATION SOCIETY LTD,26/7/2021 00:00:00,29/8/2021 00:00:00,P05-2022
P&V,MYDDELTON HOUSE,SUPPLIES AND SERVICES,TRADING AC - EXTERNAL PURCHASE,4875,P113285-SERVICE-1 x Box Coronet White Sugar 1000,08/09/2021 00:00,251023,36.99,360001,BIDFOOD,26/7/2021 00:00:00,29/8/2021 00:00:00,P05-2022
,LEE VALLEY MARINA SPRINGFIELD,SUPPLIES AND SERVICES,TRADING AC - EXTERNAL PURCHASE,4875,P113000-SERVICE-Chandlery Stock  728231,18/8/2021 00:00:00,250712,3.68,MI0200,MIDLAND CHANDLERS LIMITED,26/7/2021 00:00:00,29/8/2021 00:00:00,P05-2022
,LEE VALLEY MARINA SPRINGFIELD,SUPPLIES AND SERVICES,TRADING AC - EXTERNAL PURCHASE,4875,P113021-SERVICE-Chandlery Stock,08/02/2021 00:00,250820,-33.33,CA0006,CALOR GAS LIMITED,26/7/2021 00:00:00,29/8/2021 00:00:00,P05-2022
,LEE VALLEY MARINA SPRINGFIELD,SUPPLIES AND SERVICES,TRADING AC - EXTERNAL PURCHASE,4875,P113305-SERVICE-Chandlery Stock  737444,08/09/2021 00:00,251018,448.84,MI0200,MIDLAND CHANDLERS LIMITED,26/7/2021 00:00:00,29/8/2021 00:00:00,P05-2022
,LEE VALLEY MARINA SPRINGFIELD,SUPPLIES AND SERVICES,TRADING AC - EXTERNAL PURCHASE,4875,P112782-SERVICE-Chandlery Stock  58897,08/09/2021 00:00,251024,5.98,AQ0033,AQUAFAX LIMITED,26/7/2021 00:00:00,29/8/2021 00:00:00,P05-2022
,LEE VALLEY MARINA SPRINGFIELD,SUPPLIES AND SERVICES,TRADING AC - EXTERNAL PURCHASE,4875,P113329-SERVICE-Chandlery Stock,08/09/2021 00:00,251113,428.75,AQ0033,AQUAFAX LIMITED,26/7/2021 00:00:00,29/8/2021 00:00:00,P05-2022
,LEE VALLEY MARINA SPRINGFIELD,SUPPLIES AND SERVICES,TRADING AC - EXTERNAL PURCHASE,4875,P113335-SERVICE-Chandlery Stock,08/09/2021 00:00,251121,5402.7,SP0543,SPEEDY FUELS LIMITED,26/7/2021 00:00:00,29/8/2021 00:00:00,P05-2022
,LEE VALLEY MARINA SPRINGFIELD,SUPPLIES AND SERVICES,TRADING AC - EXTERNAL PURCHASE,4875,CALOR GAS LIMITED,08/09/2021 00:00,251271,4.76,CA0006,CALOR GAS LIMITED,26/7/2021 00:00:00,29/8/2021 00:00:00,P05-2022
,LEE VALLEY MARINA SPRINGFIELD,SUPPLIES AND SERVICES,TRADING AC - EXTERNAL PURCHASE,4875,CALOR GAS LIMITED,08/09/2021 00:00,251271,-868.73,CA0006,CALOR GAS LIMITED,26/7/2021 00:00:00,29/8/2021 00:00:00,P05-2022
,LEE VALLEY MARINA SPRINGFIELD,SUPPLIES AND SERVICES,TRADING AC - EXTERNAL PURCHASE,4875,CALOR GAS LIMITED,08/09/2021 00:00,251271,863.97,CA0006,CALOR GAS LIMITED,26/7/2021 00:00:00,29/8/2021 00:00:00,P05-2022
,LEE VALLEY MARINA SPRINGFIELD,SUPPLIES AND SERVICES,TRADING AC - EXTERNAL PURCHASE,4875,P113162-SERVICE-Chandlery Stock (Gas),08/09/2021 00:00,251271,868.73,CA0006,CALOR GAS LIMITED,26/7/2021 00:00:00,29/8/2021 00:00:00,P05-2022
,LEE VALLEY MARINA SPRINGFIELD,SUPPLIES AND SERVICES,TRADING AC - EXTERNAL PURCHASE,4875,P113054-SERVICE-Chandlery Stock  116238,08/09/2021 00:00,251272,83.07,AS0036,ASAP SUPPLIES,26/7/2021 00:00:00,29/8/2021 00:00:00,P05-2022
,LEE VALLEY MARINA SPRINGFIELD,SUPPLIES AND SERVICES,TRADING AC - EXTERNAL PURCHASE,4875,P113366-SERVICE-Chandlery Stock  740042,08/09/2021 00:00,251287,617.01,MI0200,MIDLAND CHANDLERS LIMITED,26/7/2021 00:00:00,29/8/2021 00:00:00,P05-2022
,LEE VALLEY MARINA SPRINGFIELD,SUPPLIES AND SERVICES,TRADING AC - EXTERNAL PURCHASE,4875,P113422-SERVICE-Chandlery Stock  64413,16/8/2021 00:00:00,251364,218.71,AQ0033,AQUAFAX LIMITED,26/7/2021 00:00:00,29/8/2021 00:00:00,P05-2022
,LEE VALLEY MARINA SPRINGFIELD,SUPPLIES AND SERVICES,TRADING AC - EXTERNAL PURCHASE,4875,P113532-SERVICE-Chandlery Stock,16/8/2021 00:00:00,251605,568.69,CR0651,CRAFTMASTER PAINTS,26/7/2021 00:00:00,29/8/2021 00:00:00,P05-2022
,LEE VALLEY MARINA SPRINGFIELD,SUPPLIES AND SERVICES,TRADING AC - EXTERNAL PURCHASE,4875,P113329-SERVICE-Chandlery Stock,16/8/2021 00:00:00,251611,20.79,AQ0033,AQUAFAX LIMITED,26/7/2021 00:00:00,29/8/2021 00:00:00,P05-2022
,LEE VALLEY MARINA SPRINGFIELD,SUPPLIES AND SERVICES,TRADING AC - EXTERNAL PURCHASE,4875,P113589-SERVICE-Chandlery Stock  123757,24/8/2021 00:00:00,251666,160.29,AS0036,ASAP SUPPLIES,26/7/2021 00:00:00,29/8/2021 00:00:00,P05-2022
,LEE VALLEY MARINA SPRINGFIELD,SUPPLIES AND SERVICES,TRADING AC - EXTERNAL PURCHASE,4875,P113623-SERVICE-Chandlery Stock  748042,24/8/2021 00:00:00,251827,535.21,MI0200,MIDLAND CHANDLERS LIMITED,26/7/2021 00:00:00,29/8/2021 00:00:00,P05-2022
,LEE VALLEY MARINA SPRINGFIELD,SUPPLIES AND SERVICES,TRADING AC - EXTERNAL PURCHASE,4875,P113623-SERVICE-Chandlery Stock  748042,24/8/2021 00:00:00,251928,32.88,MI0200,MIDLAND CHANDLERS LIMITED,26/7/2021 00:00:00,29/8/2021 00:00:00,P05-2022
,LEE VALLEY MARINA SPRINGFIELD,SUPPLIES AND SERVICES,TRADING AC - EXTERNAL PURCHASE,4875,P113650-SERVICE-Chandlery Stock  66345,29/8/2021 00:00:00,251973,412.66,AQ0033,AQUAFAX LIMITED,26/7/2021 00:00:00,29/8/2021 00:00:00,P05-2022
,LEE VALLEY MARINA SPRINGFIELD,SUPPLIES AND SERVICES,TRADING AC - EXTERNAL PURCHASE,4875,P113680-SERVICE-Chandlery Stock  66543,29/8/2021 00:00:00,252014,401.38,AQ0033,AQUAFAX LIMITED,26/7/2021 00:00:00,29/8/2021 00:00:00,P05-2022
,LEE VALLEY MARINA SPRINGFIELD,SUPPLIES AND SERVICES,TRADING AC - EXTERNAL PURCHASE,4875,P113660-SERVICE-Chandlery Stock  WSO0228448,29/8/2021 00:00:00,252015,154.65,CE0510,CENTURION EUROPE LIMITED,26/7/2021 00:00:00,29/8/2021 00:00:00,P05-2022
,LEE VALLEY MARINA SPRINGFIELD,SUPPLIES AND SERVICES,TRADING AC - EXTERNAL PURCHASE,4875,P113622-SERVICE-Collection & safe disposal of 1300. litres,29/8/2021 00:00:00,252035,295,BR0635,BRENT OIL CONTRACTORS LTD,26/7/2021 00:00:00,29/8/2021 00:00:00,P05-2022
,LEE VALLEY MARINA SPRINGFIELD,SUPPLIES AND SERVICES,TRADING AC - EXTERNAL PURCHASE,4875,MIDLAND CHANDLERS LIMITED,29/8/2021 00:00:00,252158,6.56,MI0200,MIDLAND CHANDLERS LIMITED,26/7/2021 00:00:00,29/8/2021 00:00:00,P05-2022
,LEE VALLEY MARINA SPRINGFIELD,SUPPLIES AND SERVICES,TRADING AC - EXTERNAL PURCHASE,4875,MIDLAND CHANDLERS LIMITED,29/8/2021 00:00:00,252158,-495.77,MI0200,MIDLAND CHANDLERS LIMITED,26/7/2021 00:00:00,29/8/2021 00:00:00,P05-2022
,LEE VALLEY MARINA SPRINGFIELD,SUPPLIES AND SERVICES,TRADING AC - EXTERNAL PURCHASE,4875,P113729-SERVICE-Chandlery Stock  751611,29/8/2021 00:00:00,252158,495.77,MI0200,MIDLAND CHANDLERS LIMITED,26/7/2021 00:00:00,29/8/2021 00:00:00,P05-2022
,LEE VALLEY MARINA SPRINGFIELD,SUPPLIES AND SERVICES,TRADING AC - EXTERNAL PURCHASE,4875,MIDLAND CHANDLERS LIMITED,29/8/2021 00:00:00,252158,489.21,MI0200,MIDLAND CHANDLERS LIMITED,26/7/2021 00:00:00,29/8/2021 00:00:00,P05-2022
,LEE VALLEY MARINA SPRINGFIELD,SUPPLIES AND SERVICES,TRADING AC - EXTERNAL PURCHASE,4875,P113508-SERVICE-Chandlery Stock (Gas),29/8/2021 00:00:00,252172,280.51,CA0006,CALOR GAS LIMITED,26/7/2021 00:00:00,29/8/2021 00:00:00,P05-2022
,STANSTEAD RECHARGEABLE WORKS,SUPPLIES AND SERVICES,TRADING AC - EXTERNAL PURCHASE,4875,P112729-SERVICE-chandlery stock,08/11/2021 00:00,250800,-19.31,EP0353,E P BARRUS LTD,26/7/2021 00:00:00,29/8/2021 00:00:00,P05-2022
,STANSTEAD RECHARGEABLE WORKS,SUPPLIES AND SERVICES,TRADING AC - EXTERNAL PURCHASE,4875,P112110-SERVICE-CALOR GAS,08/11/2021 00:00,250819,-33.33,CA0006,CALOR GAS LIMITED,26/7/2021 00:00:00,29/8/2021 00:00:00,P05-2022
,STANSTEAD RECHARGEABLE WORKS,SUPPLIES AND SERVICES,TRADING AC - EXTERNAL PURCHASE,4875,P111906-SERVICE-calor cage rental,08/02/2021 00:00,250822,13,CA0006,CALOR GAS LIMITED,26/7/2021 00:00:00,29/8/2021 00:00:00,P05-2022
,STANSTEAD RECHARGEABLE WORKS,SUPPLIES AND SERVICES,TRADING AC - EXTERNAL PURCHASE,4875,P113217-SERVICE-chandlery stock,08/02/2021 00:00,250833,429.42,MI0200,MIDLAND CHANDLERS LIMITED,26/7/2021 00:00:00,29/8/2021 00:00:00,P05-2022
,STANSTEAD RECHARGEABLE WORKS,SUPPLIES AND SERVICES,TRADING AC - EXTERNAL PURCHASE,4875,P113137-SERVICE-chandlery stock,08/02/2021 00:00,250834,35.13,AQ0033,AQUAFAX LIMITED,26/7/2021 00:00:00,29/8/2021 00:00:00,P05-2022
,STANSTEAD RECHARGEABLE WORKS,SUPPLIES AND SERVICES,TRADING AC - EXTERNAL PURCHASE,4875,P113258-SERVICE-chandlery stock,08/11/2021 00:00,250856,382.17,MI0200,MIDLAND CHANDLERS LIMITED,26/7/2021 00:00:00,29/8/2021 00:00:00,P05-2022
,STANSTEAD RECHARGEABLE WORKS,SUPPLIES AND SERVICES,TRADING AC - EXTERNAL PURCHASE,4875,P112984-SERVICE-chandlery stock,08/02/2021 00:00,250993,39.14,MI0200,MIDLAND CHANDLERS LIMITED,26/7/2021 00:00:00,29/8/2021 00:00:00,P05-2022
,STANSTEAD RECHARGEABLE WORKS,SUPPLIES AND SERVICES,TRADING AC - EXTERNAL PURCHASE,4875,P113259-SERVICE-chandlery stock,08/04/2021 00:00,251033,291.41,CA0660,CALFIRE SPARELINE LIMITED,26/7/2021 00:00:00,29/8/2021 00:00:00,P05-2022
,STANSTEAD RECHARGEABLE WORKS,SUPPLIES AND SERVICES,TRADING AC - EXTERNAL PURCHASE,4875,P113270-SERVICE-chandlery stock,08/11/2021 00:00,251041,16.57,AQ0033,AQUAFAX LIMITED,26/7/2021 00:00:00,29/8/2021 00:00:00,P05-2022
,STANSTEAD RECHARGEABLE WORKS,SUPPLIES AND SERVICES,TRADING AC - EXTERNAL PURCHASE,4875,P113323-SERVICE-chandlery stock,08/11/2021 00:00,251042,257.95,MI0200,MIDLAND CHANDLERS LIMITED,26/7/2021 00:00:00,29/8/2021 00:00:00,P05-2022
,STANSTEAD RECHARGEABLE WORKS,SUPPLIES AND SERVICES,TRADING AC - EXTERNAL PURCHASE,4875,P113266-SERVICE-2200L RED DIESEL @ 56.94PPL,08/11/2021 00:00,251043,1252.68,TE0052,TEAM FLITWICK,26/7/2021 00:00:00,29/8/2021 00:00:00,P05-2022
,STANSTEAD RECHARGEABLE WORKS,SUPPLIES AND SERVICES,TRADING AC - EXTERNAL PURCHASE,4875,P113152-SERVICE-chandlery stock,08/11/2021 00:00,251112,3.9,MI0200,MIDLAND CHANDLERS LIMITED,26/7/2021 00:00:00,29/8/2021 00:00:00,P05-2022
,STANSTEAD RECHARGEABLE WORKS,SUPPLIES AND SERVICES,TRADING AC - EXTERNAL PURCHASE,4875,P113379-SERVICE-chandlery stock,24/8/2021 00:00:00,251146,192.78,CR0651,CRAFTMASTER PAINTS,26/7/2021 00:00:00,29/8/2021 00:00:00,P05-2022
,STANSTEAD RECHARGEABLE WORKS,SUPPLIES AND SERVICES,TRADING AC - EXTERNAL PURCHASE,4875,P113379-SERVICE-extra items for free delivery,24/8/2021 00:00:00,251146,15.14,CR0651,CRAFTMASTER PAINTS,26/7/2021 00:00:00,29/8/2021 00:00:00,P05-2022
,STANSTEAD RECHARGEABLE WORKS,SUPPLIES AND SERVICES,TRADING AC - EXTERNAL PURCHASE,4875,P113392-SERVICE-chandlery stock,24/8/2021 00:00:00,251292,155.4,AS0036,ASAP SUPPLIES,26/7/2021 00:00:00,29/8/2021 00:00:00,P05-2022
